Workbook

Sheet _com.sap.ip.bi.xl.hiddensheet (hidden)

Sheet Notice
B2: 1. The workbook contains the inputs and calculations underpinning the calculation of the Farmgate Milk Price for the 2024/25 season.
B3: 2. This workbook is the property of Fonterra Co-operative Group Limited (Fonterra).
B4: 3. Fonterra does not warrant that the workbook is free from error, and disclaims any liability to any third party with respect to any use they may make of the workbook.
B5: 4. Third party recipients of this workbook use it at their own risk. Fonterra will not accept any responsibility for any loss which may result from the use of the workbook including the direct or indirect consequences of computer viruses.
B6: 5. The workbook was not designed for use by third parties and Fonterra provides no assurance that third parties will be able to readily operate the workbook.
B7: 6. Consistent with Fonterra's obligations under section 150QA of the Dairy Industry Restructuring Act 2001, the full suite of models informing the calculation of the Farmgate Milk Price for the 2024/25 season (with commercially sensitive information redacted) will be available online from 13 October 2025 at:
B8: https://www.fonterra.com/nz/en/investors/farmgate-milk-price/dira-disclosures.html

Sheet Global
N1: Farmgate Milk Price
K2: Current Milk Price | N2: =Summary!L131 -> 10.16291169
U3: Milk Price Reporting v1.05 F11 July 11 FINAL v1.xlsm 26/08/2011 3:04:22 p.m.
K6: Average FX conversion rate (Sales) | N6: =Calculations!N728/Calculations!N736 -> 0.5988077291
F8: Period Ended | Q8: =EOMONTH(T8,-1) -> 2024-05-31 | R8: =EOMONTH(S8,-1) -> 2024-04-30 | S8: =EOMONTH(T8,-1) -> 2024-05-31 | T8: =K29 -> 2024-06-30 | U8: =EOMONTH(T8,1) -> 2024-07-31 | V8: 2024-08-31 | W8: 2024-09-30 | X8: 2024-10-31 | Y8: 2024-11-30 | Z8: 2024-12-31 | AA8: 2025-01-31 | AB8: 2025-02-28 | AC8: 2025-03-31 | AD8: 2025-04-30 | AE8: 2025-05-31 | AF8: 2025-06-30 | AG8: 2025-07-31 | AH8: 2025-08-31 | AI8: 2025-09-30 | AJ8: 2025-10-31 | AK8: 2025-11-30 | AL8: 2025-12-31 | AM8: 2026-01-31 | AN8: 2026-02-28 | AO8: 2026-03-31 | AP8: 46142
D9: Calendar Year | T9: =YEAR(T8) -> 2024 | U9: 2024 | V9: 2024 | W9: 2024 | X9: 2024 | Y9: 2024 | Z9: 2024 | AA9: 2025 | AB9: 2025 | AC9: 2025 | AD9: 2025 | AE9: 2025 | AF9: 2025 | AG9: 2025 | AH9: 2025 | AI9: 2025 | AJ9: 2025 | AK9: 2025 | AL9: 2025 | AM9: 2026 | AN9: 2026 | AO9: 2026
D10: Month Number | T10: 1 | U10: =T10+1 -> 2 | V10: 3 | W10: 4 | X10: 5 | Y10: 6 | Z10: 7 | AA10: 8 | AB10: 9 | AC10: 10 | AD10: 11 | AE10: 12 | AF10: 13 | AG10: 14 | AH10: 15 | AI10: 16 | AJ10: 17 | AK10: 18 | AL10: 19 | AM10: 20 | AN10: 21 | AO10: 22
D11: Days in Period | R11: =R8-EOMONTH(R8,-1) -> 30 | S11: =S8-R8 -> 31 | T11: =T8-S8 -> 30 | U11: =U8-T8 -> 31 | V11: 31 | W11: 30 | X11: 31 | Y11: 30 | Z11: 31 | AA11: 31 | AB11: 28 | AC11: 31 | AD11: 30 | AE11: 31 | AF11: 30 | AG11: 31 | AH11: 31 | AI11: 30 | AJ11: 31 | AK11: 30 | AL11: 31 | AM11: 31 | AN11: 28 | AO11: 31
D12: Year to date flag | P12: =LookupTables!I9 -> 14 | T12: =IF(T10<=$P$12,1,0) -> 1 | U12: 1 | V12: 1 | W12: 1 | X12: 1 | Y12: 1 | Z12: 1 | AA12: 1 | AB12: 1 | AC12: 1 | AD12: 1 | AE12: 1 | AF12: 1 | AG12: 1 | AH12: 0 | AI12: 0 | AJ12: 0 | AK12: 0 | AL12: 0 | AM12: 0 | AN12: 0 | AO12: 0
C14: GENERAL MODEL INPUTS
C17: INPUT KEY
F19: Colour Key: | K19: Description
K20: Data input cell.
K21: Data input cell containing commercially sensitive information which has been redacted.
K22: Calculation cell which has been overwritten with hard-coded values due to commercial sensitivity of underlying inputs.
K23: Different formula to subsequent cells.
K24: Cell deliberately left blank.
C26: DATE AND TIME DATA
F28: First Day of the season | K28: 2024-06-01
F29: End Date of First Period | K29: =EOMONTH(K28,0) -> 2024-06-30
F31: End of season | K31: =EOMONTH(K28,11) -> 2025-05-31
C33: GLOBAL TIME DEPENDENT INPUTS | R33: =R8 -> 2024-04-30 | S33: 2024-05-31 | T33: 2024-06-30 | U33: 2024-07-31 | V33: 2024-08-31 | W33: 2024-09-30 | X33: 2024-10-31 | Y33: 2024-11-30 | Z33: 2024-12-31 | AA33: 2025-01-31 | AB33: 2025-02-28 | AC33: 2025-03-31 | AD33: 2025-04-30 | AE33: 2025-05-31 | AF33: 2025-06-30 | AG33: 2025-07-31 | AH33: 2025-08-31 | AI33: 2025-09-30 | AJ33: 2025-10-31 | AK33: 2025-11-30 | AL33: 2025-12-31 | AM33: 2026-01-31 | AN33: 2026-02-28 | AO33: 2026-03-31
F35: WACC - Annual | O35: 0.051
F36: WACC - monthly | O36: =(1+$O$35)^(1/12)-1 -> 0.004153777443
C38: SUMMARY OF ERROR CHECKS
F40: Worksheet name:
F41: Data Input | K41: ='Data Input'!J4 -> Okay
F42: Calculations | K42: =Calculations!J5 -> Okay
F43: Summary | K43: =Summary!L170 -> Okay
F44: Overall model | K44: =IF(COUNTA(K41:K43)=COUNTIF(K41:K43,"Okay"),"Okay","Error") -> Okay
F47: Calculations Worksheet:
F48: Debtor Reconciliation Check | K48: =Calculations!B1349 -> Okay
F49: Closing Inventory Check | K49: =Calculations!B1427 -> Okay
F50: FIFO Production Volume Check | K50: =Calculations!B1461 -> Okay
F51: Milk Solids Volume Check | K51: =Calculations!B1480 -> Okay
F52: Milk Price Calculation Check | K52: =Calculations!B1717 -> Okay
F53: PV of Cash Flow Check | K53: =Calculations!B1731 -> Okay
F55: Summary Worksheet
F56: Operating Cash Flow Check | K56: =Summary!L170 -> Okay

Sheet Data Input
F4: =Calculations!F5 -> Overall error check | J4: =IF(COUNTA(B:B)=COUNTIF(B:B,"Okay"),"Okay","Error") -> Okay | M4: Annual | T4: Monthly
J6: Units | K6: Input | R6: =Global!R8 -> 2024-04-30 | S6: =Global!S8 -> 2024-05-31 | T6: =Global!T8 -> 2024-06-30 | U6: =Global!U8 -> 2024-07-31 | V6: =Global!V8 -> 2024-08-31 | W6: =Global!W8 -> 2024-09-30 | X6: =Global!X8 -> 2024-10-31 | Y6: =Global!Y8 -> 2024-11-30 | Z6: =Global!Z8 -> 2024-12-31 | AA6: =Global!AA8 -> 2025-01-31 | AB6: =Global!AB8 -> 2025-02-28 | AC6: =Global!AC8 -> 2025-03-31 | AD6: =Global!AD8 -> 2025-04-30 | AE6: =Global!AE8 -> 2025-05-31 | AF6: =Global!AF8 -> 2025-06-30 | AG6: =Global!AG8 -> 2025-07-31 | AH6: =Global!AH8 -> 2025-08-31 | AI6: =Global!AI8 -> 2025-09-30 | AJ6: =Global!AJ8 -> 2025-10-31 | AK6: =Global!AK8 -> 2025-11-30 | AL6: =Global!AL8 -> 2025-12-31 | AM6: =Global!AM8 -> 2026-01-31 | AN6: =Global!AN8 -> 2026-02-28 | AO6: =Global!AO8 -> 2026-03-31
D7: Calendar Year | T7: =YEAR(T6) -> 2024 | U7: 2024 | V7: 2024 | W7: 2024 | X7: 2024 | Y7: 2024 | Z7: 2024 | AA7: =YEAR(AA6) -> 2025 | AB7: 2025 | AC7: 2025 | AD7: 2025 | AE7: 2025 | AF7: 2025 | AG7: 2025 | AH7: 2025 | AI7: 2025 | AJ7: 2025 | AK7: 2025 | AL7: 2025 | AM7: 2026 | AN7: =YEAR(AN6) -> 2026 | AO7: =YEAR(AO6) -> 2026
D8: Month Number | T8: =Global!T10 -> 1 | U8: =Global!U10 -> 2 | V8: =Global!V10 -> 3 | W8: =Global!W10 -> 4 | X8: =Global!X10 -> 5 | Y8: =Global!Y10 -> 6 | Z8: =Global!Z10 -> 7 | AA8: =Global!AA10 -> 8 | AB8: =Global!AB10 -> 9 | AC8: =Global!AC10 -> 10 | AD8: =Global!AD10 -> 11 | AE8: =Global!AE10 -> 12 | AF8: =Global!AF10 -> 13 | AG8: =Global!AG10 -> 14 | AH8: =Global!AH10 -> 15 | AI8: =Global!AI10 -> 16 | AJ8: =Global!AJ10 -> 17 | AK8: =Global!AK10 -> 18 | AL8: =Global!AL10 -> 19 | AM8: =Global!AM10 -> 20 | AN8: =Global!AN10 -> 21 | AO8: =Global!AO10 -> 22
D9: Days in Period | R9: =Global!R11 -> 30 | S9: =Global!S11 -> 31 | T9: =Global!T11 -> 30 | U9: =Global!U11 -> 31 | V9: =Global!V11 -> 31 | W9: =Global!W11 -> 30 | X9: =Global!X11 -> 31 | Y9: =Global!Y11 -> 30 | Z9: =Global!Z11 -> 31 | AA9: =Global!AA11 -> 31 | AB9: =Global!AB11 -> 28 | AC9: =Global!AC11 -> 31 | AD9: =Global!AD11 -> 30 | AE9: =Global!AE11 -> 31 | AF9: =Global!AF11 -> 30 | AG9: =Global!AG11 -> 31 | AH9: =Global!AH11 -> 31 | AI9: =Global!AI11 -> 30 | AJ9: =Global!AJ11 -> 31 | AK9: =Global!AK11 -> 30 | AL9: =Global!AL11 -> 31 | AM9: =Global!AM11 -> 31 | AN9: =Global!AN11 -> 28 | AO9: =Global!AO11 -> 31
D10: Year to date flag | T10: =Global!T12 -> 1 | U10: =Global!U12 -> 1 | V10: =Global!V12 -> 1 | W10: =Global!W12 -> 1 | X10: =Global!X12 -> 1 | Y10: =Global!Y12 -> 1 | Z10: =Global!Z12 -> 1 | AA10: =Global!AA12 -> 1 | AB10: =Global!AB12 -> 1 | AC10: =Global!AC12 -> 1 | AD10: =Global!AD12 -> 1 | AE10: =Global!AE12 -> 1 | AF10: =Global!AF12 -> 1 | AG10: =Global!AG12 -> 1 | AH10: =Global!AH12 -> 0 | AI10: =Global!AI12 -> 0 | AJ10: =Global!AJ12 -> 0 | AK10: =Global!AK12 -> 0 | AL10: =Global!AL12 -> 0 | AM10: =Global!AM12 -> 0 | AN10: =Global!AN12 -> 0 | AO10: =Global!AO12 -> 0
T11: =T6 -> 2024-06-30 | U11: 2024-07-31 | V11: 2024-08-31 | W11: 2024-09-30 | X11: 2024-10-31 | Y11: 2024-11-30 | Z11: 2024-12-31 | AA11: 2025-01-31 | AB11: 2025-02-28 | AC11: 2025-03-31 | AD11: 2025-04-30 | AE11: 2025-05-31 | AF11: 2025-06-30 | AG11: 2025-07-31 | AH11: 2025-08-31 | AI11: 2025-09-30 | AJ11: 2025-10-31 | AK11: 2025-11-30 | AL11: 2025-12-31 | AM11: 2026-01-31 | AN11: =AN6 -> 2026-02-28 | AO11: =AO6 -> 2026-03-31
F14: GLOBAL
F16: Notes | J16: Weighted average annual FX rate for revenue and import costs.
F19: Exchange rate
F20: Average monthly cash conversion rate | J20: USD : NZD | R20: 0.6038069414 | S20: 0.6063521711 | T20: 0.6097776645 | U20: 0.6181492832 | V20: 0.6044701393 | W20: 0.6044378424 | X20: 0.6192081561 | Y20: 0.6135790535 | Z20: 0.6139017436 | AA20: 0.5973277015 | AB20: 0.5924412555 | AC20: 0.5906901523 | AD20: 0.5868726625 | AE20: 0.592832089 | AF20: 0.5998737919 | AG20: 0.595802968 | AH20: 0.5976338031 | AI20: 0.5971349671 | AJ20: 0.5913166722 | AK20: 0.5928469156 | AL20: 0.5928469156 | AM20: 0.5928469156 | AN20: 0.5928469156
F22: MILK SUPPLY
F24: Notes | J24: Total solids collected and paid for by Fonterra with the minor difference between 'milk paid for' and 'milk collected' reflects circumstances where Fonterra is unable to collect and process milk (eg due to adverse weather events) but is contractually obliged to pay for it.
J25: The calculation of the aggregate amount available to pay for milk is based on milk actually collected and therefore available for processing. The average milk price per kgMS is calculated based on all milk paid for by Fonterra.
F27: North Island KgMS
F28: North Island Milk Paid For | J28: 000 kgms | N28: =SUM(T28:AE28) -> 855669.2562 | T28: 11890.5141 | U28: 18868.7997 | V28: 69960.6483 | W28: 104632.7159 | X28: 119014.5975 | Y28: 109630.6585 | Z28: 99778.3933 | AA28: 90323.9919 | AB28: 69160.8166 | AC28: 68238.6697 | AD28: 57721.1358 | AE28: 36448.3149
F29: Fonterra Milk paid for but not collected | J29: 000 kgms | N29: =SUM(T29:AE29) -> 0 | T29: 0 | U29: 0 | V29: 0 | W29: 0 | X29: 0 | Y29: 0 | Z29: 0 | AA29: 0 | AB29: 0 | AC29: 0 | AD29: 0 | AE29: 0
F30: Notional Business Milk paid for not collected | J30: 000 kgms
F31: North Island Milk Supply (collected) | J31: 000 kgms | N31: =SUM(T31:AE31) -> 855669.2562 | T31: =T28-SUM(T29:T30) -> 11890.5141 | U31: =U28-SUM(U29:U30) -> 18868.7997 | V31: 69960.6483 | W31: 104632.7159 | X31: 119014.5975 | Y31: 109630.6585 | Z31: 99778.3933 | AA31: 90323.9919 | AB31: 69160.8166 | AC31: 68238.6697 | AD31: 57721.1358 | AE31: 36448.3149
F33: South Island KgMS
F34: South Island Milk Paid For | J34: 000 kgms | N34: =SUM(T34:AE34) -> 653361.2035 | T34: 2565.2152 | U34: 1705.2058 | V34: 28019.9343 | W34: 69588.5334 | X34: 86002.5448 | Y34: 82093.6083 | Z34: 78701.7812 | AA34: 75396.2351 | AB34: 64563.7062 | AC34: 66643.2233 | AD34: 57505.8519 | AE34: 40575.364
F35: Fonterra Milk paid for but not collected | J35: 000 kgms | N35: =SUM(T35:AE35) -> 22.7805 | T35: 0 | U35: 0 | V35: 0 | W35: 0 | X35: 22.7805 | Y35: 0 | Z35: 0 | AA35: 0 | AB35: 0 | AC35: 0 | AD35: 0 | AE35: 0
F36: Notional Business Milk paid for not collected | J36: 000 kgms
F37: South Island Milk Supply (collected) | J37: 000 kgms | N37: =SUM(T37:AE37) -> 653338.423 | T37: =T34-SUM(T35:T36) -> 2565.2152 | U37: =U34-SUM(U35:U36) -> 1705.2058 | V37: 28019.9343 | W37: 69588.5334 | X37: 85979.7643 | Y37: 82093.6083 | Z37: 78701.7812 | AA37: 75396.2351 | AB37: 64563.7062 | AC37: 66643.2233 | AD37: 57505.8519 | AE37: 40575.364
F39: Milk Supply (collected) | J39: 000 kgms | N39: =SUM(T39:AE39) -> 1509007.679 | T39: =SUM(T31,T37) -> 14455.7293 | U39: 20574.0055 | V39: 97980.5826 | W39: 174221.2493 | X39: 204994.3618 | Y39: 191724.2668 | Z39: 178480.1745 | AA39: 165720.227 | AB39: 133724.5228 | AC39: 134881.893 | AD39: 115226.9877 | AE39: 77023.6789
F40: Monthly distribution | J40: % | N40: =SUM(T40:AE40) -> 1 | T40: =T39/$N$39 -> 0.009579626068 | U40: =U39/$N$39 -> 0.01363412909 | V40: 0.06493047315 | W40: 0.1154541834 | X40: 0.1358471296 | Y40: 0.1270532082 | Z40: 0.1182765184 | AA40: 0.1098206651 | AB40: 0.08861752305 | AC40: 0.08938449741 | AD40: 0.07635944422 | AE40: 0.05104260234
F42: PRODUCTION
F44: Notes | J44: Milk composition and processing parameters. The butter milk injection logic has been added to the Milk Price model in the 2025 season, however this is consistent with the modelled impact in prior seasons.
F47: National Average Milk Composition
F48: Fat | J48: % w/w | T48: 0.05028512751 | U48: 0.049177579 | V48: 0.04876046786 | W48: 0.04787712845 | X48: 0.04770803857 | Y48: 0.0477666186 | Z48: 0.0485170773 | AA48: 0.0501656159 | AB48: 0.0523162164 | AC48: 0.05644375205 | AD48: 0.05874136954 | AE48: 0.05955016919
F49: Protein | J49: % w/w | T49: 0.03899571846 | U49: 0.03943042117 | V49: 0.03853237739 | W49: 0.03723001282 | X49: 0.03723683938 | Y49: 0.03764133911 | Z49: 0.03767783873 | AA49: 0.03864647797 | AB49: 0.03946992181 | AC49: 0.04224879076 | AD49: 0.04436432474 | AE49: 0.04529480649
F50: Lactose + Minerals | J50: % w/w | T50: 0.05331779319 | U50: 0.0536246831 | V50: 0.05446955344 | W50: 0.05473804049 | X50: 0.05466818547 | Y50: 0.05425561734 | Z50: 0.05374706381 | AA50: 0.0535158599 | AB50: 0.05339621797 | AC50: 0.05270890328 | AD50: 0.05251519099 | AE50: 0.05250186713
F52: Milk Composition Input Parameters
F53: Cream Fat Content | J53: % | N53: 0.42
F54: Skimmilk Fat Content | J54: % | N54: 0.0008
F55: Wholemilk Density | J55: % | N55: 1.032
F57: Lactose Standardising Inputs
F58: Lactose losses - WMP | J58: % | N58: 0.0033
F59: Lactose losses - SMP | J59: % | N59: 0.005
F60: Lactose losses - BMP | J60: % | N60: 0.0093
F61: Lactose content of lactose powder | J61: % | N61: 0.95
F63: Specification limits | M63: Fat | N63: Protein
F64: Butter | J64: kg/mt | M64: 820 | N64: 5
F65: AMF | J65: kg/mt | M65: 999 | N65: 0
F66: SMP | J66: kg/mt | M66: 8 | N66: 324
F67: BMP | J67: kg/mt | M67: 70 | N67: 301
F68: WMP | J68: kg/mt | M68: 260 | N68: 240
F70: Offsets from specification limits | M70: Fat | N70: Protein
J71: kg/mt
F72: AMF | J72: kg/mt
F73: SMP | J73: kg/mt
F74: BMP | J74: kg/mt
F75: WMP | J75: kg/mt
F77: Moisture | M77: Spec Max % | N77: Wgt Avg Offset
F78: Butter | J78: % | M78: 16 | N78: 0.25
F79: AMF | J79: % | M79: 0.1 | N79: 0.04
F80: SMP | J80: % | M80: 4 | N80: 0.14
F81: BMP | J81: % | M81: 4 | N81: 0.18
F82: WMP | J82: % | M82: 3.5 | N82: 0.13
F84: Loss allowances | M84: Fat | N84: Milk Protein
F85: Butter | J85: kgs/T
F86: AMF | J86: kgs/T
F87: SMP | J87: kgs/T
F88: BMP | J88: kgs/T
F89: WMP | J89: kgs/T
F91: Composition targets | L91: Fat-Min | M91: Protein-Min | N91: Moisture-Max
F92: Butter | J92: %w/w
F93: AMF | J93: %w/w
F94: SMP | J94: %w/w
F95: BMP | J95: %w/w
F96: WMP | J96: %w/w
F98: gDT Spec Limits - Protein | L98: Protein-Min
F99: SMP | J99: % w/w | L99: 0.324
F100: WMP | J100: % w/w | L100: 0.24
F102: Value Component Usage | L102: Fat | M102: Milk Protein
F103: Butter | J103: kg/mt | L103: 830.4101961 | M103: 5.226441973
F104: AMF | J104: kg/mt | L104: 1001.273707 | M104: 0.7695178014
F105: SMP | J105: kg/mt | L105: 8.952646533 | M105: 327.4689562
F106: BMP | J106: kg/mt | L106: 78.16594862 | M106: 305.7045036
F107: WMP | J107: kg/mt | L107: 262.1786569 | M107: 241.9980967
F109: Product mix
F110: Target ratio of WMP MT to WMP + SMP | J110: % | N110: =SUMPRODUCT($T$40:$AE$40,T110:AE110) -> 0.735196623 | T110: 0.4628854911 | U110: 0.3056019351 | V110: 0.671938925 | W110: 0.7535030986 | X110: 0.7740290192 | Y110: 0.75208342 | Z110: 0.7719826606 | AA110: 0.7246019198 | AB110: 0.687715609 | AC110: 0.7897208232 | AD110: 0.7372124638 | AE110: 0.7162220037
F111: Target ratio of Butter MT to Butter + AMF | J111: % | N111: =SUMPRODUCT($T$40:$AE$40,T111:AE111) -> 0.6323433928 | T111: 0.01482482676 | U111: 0.192087377 | V111: 0.636109481 | W111: 0.6570441708 | X111: 0.6681148783 | Y111: 0.6711530837 | Z111: 0.6695798829 | AA111: 0.6686001832 | AB111: 0.6715902237 | AC111: 0.5848301864 | AD111: 0.5590936194 | AE111: 0.5737210835
F113: Fat : Protein Valued Component Ratio | N113: 1.06
F115: BMP diverted to WMP and SMP production
F116: Buttermilk diverted to WMP | J116: m3 | T116: 0 | U116: 335 | V116: 4649.342 | W116: 15911.978 | X116: 19484.688 | Y116: 26050.864 | Z116: 21915.864 | AA116: 15975.516 | AB116: 12606.378 | AC116: 14372.303 | AD116: 6650.06 | AE116: 4700.719
F117: Ratio of BMP to buttermilk | J117: MT | N117: 0.116
F119: Daily processing capacity by region | L119: NI | M119: SI
F120: SMP | J120: MT / Day | L120: 2111.105167 | M120: 1241.449151
F121: WMP | J121: MT / Day | L121: 4423.935483 | M121: 3258.20563
F123: Overriding % for Standardised / Unstandardised production
F124: North Island | J124: % | T124: 1 | U124: 1 | V124: 1 | W124: 1 | X124: 1 | Y124: 1 | Z124: 1 | AA124: 1 | AB124: 1 | AC124: 1 | AD124: 1 | AE124: 1
F125: South Island | J125: % | T125: 1 | U125: 1 | V125: 1 | W125: 1 | X125: 0.9752890832 | Y125: 0.9884686869 | Z125: 1 | AA125: 1 | AB125: 1 | AC125: 1 | AD125: 1 | AE125: 1
F128: REVENUE
F130: Notes | J130: Lactose prices to model are for calculated prices of lactose in month of use, under the assumption that lactose has been imported in prior months and stored for a period prior to usage.
J131: A two-tier GDT fee structure was implemented in F25.
J132: Downgrade costs (across four cost items being placement specs, edible downgrade, stockfood and rework) are modelled as % of production downgrade x % of loss in sales price x Notional Revenue ('000 USD).
E133: 1. Monthly commodity prices
F136: Adjustments for freight rebate, ocean freight recovery and reseller fees
F137: Allowance for ocean freight rebate & fees paid by resellers | J137: USD/MT
F138: Allowace for receivables management and L/C costs | J138: USD | N138: =(-12876204.6606828+(-4641264.73708306))*Global!N6 -> -10489596.07
F139: Receivables management and L/C allowance per MT | J139: USD/MT | N139: =N138/Calculations!N542 -> -3.629585303
F140: Ocean Freight & Insurance Margin | J140: USD/MT
F141: Total rebate adjustment to BCPs | J141: USD/MT | N141: 6.25628658
F143: Monthly average shipment month prices
F144: Butter | J144: USD/MT | V144: 0 | W144: 0 | X144: 6682.161593 | Y144: 6494.702857 | Z144: 6611.921829 | AA144: 6638.293033 | AB144: 6660.120305 | AC144: 6832.14146 | AD144: 7246.085777 | AE144: 7440.991124 | AF144: 7688.127676 | AG144: 7782.465043 | AH144: 7740.617517 | AI144: 7760.366823 | AJ144: 7490.374059 | AK144: 7230.648998 | AL144: 7120.094207 | AM144: 7007.035977 | AN144: 6964.895462 | AO144: 6952.978704
F145: AMF | J145: USD/MT | V145: 0 | W145: 7894.319824 | X145: 7245.318937 | Y145: 7224.83863 | Z145: 7265.83941 | AA145: 7431.206229 | AB145: 7423.609567 | AC145: 7107.883998 | AD145: 6899.16644 | AE145: 6829.182716 | AF145: 6978.566216 | AG145: 7100.237312 | AH145: 7340.636029 | AI145: 7279.227357 | AJ145: 6875.297873 | AK145: 6786.791976 | AL145: 6731.244715 | AM145: 6668.932271 | AN145: 6656.818549 | AO145: 6656.818549
F146: SMP | J146: USD/MT | V146: 2774.490706 | W146: 2673.4767 | X146: 2670.786175 | Y146: 2707.677007 | Z146: 2797.982977 | AA146: 2831.112583 | AB146: 2892.63103 | AC146: 2882.566371 | AD146: 2928.905346 | AE146: 2924.161058 | AF146: 2986.362132 | AG146: 2990.167031 | AH146: 2916.826432 | AI146: 2984.976313 | AJ146: 2778.389366 | AK146: 2768.371318 | AL146: 2798.151783 | AM146: 2842.602813 | AN146: 2889.351308 | AO146: 2930.66163
F147: BMP | J147: USD/MT | V147: 0 | W147: 3054.670538 | X147: 3067.41409 | Y147: 3044.439198 | Z147: 3296.155076 | AA147: 3309.614507 | AB147: 3445.365812 | AC147: 3541.250425 | AD147: 3550.949504 | AE147: 3483.63185 | AF147: 3403.22671 | AG147: 3611.43309 | AH147: 3208.388794 | AI147: 3171.611454 | AJ147: 3324.825366 | AK147: 3301.257948 | AL147: 3307.792356 | AM147: 3302.721959 | AN147: 3321.860576 | AO147: 3351.843961
F148: WMP | J148: USD/MT | V148: 0 | W148: 3279.088424 | X148: 3366.067603 | Y148: 3386.654335 | Z148: 3493.426792 | AA148: 3652.285006 | AB148: 3801.056812 | AC148: 3892.809323 | AD148: 4018.373406 | AE148: 4074.206626 | AF148: 4114.4078 | AG148: 4211.751091 | AH148: 4138.083615 | AI148: 4039.992652 | AJ148: 3800.388335 | AK148: 3724.82067 | AL148: 3676.062425 | AM148: 3660.757325 | AN148: 3662.939537 | AO148: 3672.627851
F150: Monthly average shipment month prices adjusted for rebates, etc
F151: Butter | J151: USD/MT | N151: =SUM(T151:AO151)/COUNTIF(T151:AO151,"<>0") -> 7136.479756 | T151: =IF(T144=0,0,T144+$N$141) -> 0 | U151: 0 | V151: 0 | W151: 0 | X151: 6688.41788 | Y151: 6500.959144 | Z151: 6618.178115 | AA151: 6644.54932 | AB151: 6666.376591 | AC151: 6838.397746 | AD151: 7252.342064 | AE151: 7447.247411 | AF151: 7694.383963 | AG151: 7788.721329 | AH151: 7746.873803 | AI151: 7766.623109 | AJ151: 7496.630346 | AK151: 7236.905284 | AL151: 7126.350493 | AM151: 7013.292264 | AN151: 6971.151749 | AO151: 6959.23499
F152: AMF | J152: USD/MT | N152: =SUM(T152:AO152)/COUNTIF(T152:AO152,"<>0") -> 7079.726634 | T152: =IF(T145=0,0,T145+$N$141) -> 0 | U152: 0 | V152: 0 | W152: 7900.57611 | X152: 7251.575223 | Y152: 7231.094917 | Z152: 7272.095697 | AA152: 7437.462515 | AB152: 7429.865854 | AC152: 7114.140284 | AD152: 6905.422726 | AE152: 6835.439002 | AF152: 6984.822503 | AG152: 7106.493599 | AH152: 7346.892316 | AI152: 7285.483643 | AJ152: 6881.55416 | AK152: 6793.048263 | AL152: 6737.501002 | AM152: 6675.188558 | AN152: 6663.074836 | AO152: 6663.074836
F153: SMP | J153: USD/MT | N153: =SUM(T153:AO153)/COUNTIF(T153:AO153,"<>0") -> 2854.738791 | T153: =IF(T146=0,0,T146+$N$141) -> 0 | U153: 0 | V153: 2780.746992 | W153: 2679.732986 | X153: 2677.042462 | Y153: 2713.933294 | Z153: 2804.239263 | AA153: 2837.36887 | AB153: 2898.887316 | AC153: 2888.822658 | AD153: 2935.161633 | AE153: 2930.417345 | AF153: 2992.618419 | AG153: 2996.423318 | AH153: 2923.082719 | AI153: 2991.2326 | AJ153: 2784.645653 | AK153: 2774.627605 | AL153: 2804.40807 | AM153: 2848.8591 | AN153: 2895.607594 | AO153: 2936.917916
F154: BMP | J154: USD/MT | N154: =SUM(T154:AO154)/COUNTIF(T154:AO154,"<>0") -> 3327.227508 | T154: =IF(T147=0,0,T147+$N$141) -> 0 | U154: 0 | V154: 0 | W154: 3060.926825 | X154: 3073.670377 | Y154: 3050.695484 | Z154: 3302.411362 | AA154: 3315.870794 | AB154: 3451.622099 | AC154: 3547.506711 | AD154: 3557.205791 | AE154: 3489.888136 | AF154: 3409.482996 | AG154: 3617.689377 | AH154: 3214.64508 | AI154: 3177.867741 | AJ154: 3331.081652 | AK154: 3307.514234 | AL154: 3314.048643 | AM154: 3308.978246 | AN154: 3328.116863 | AO154: 3358.100247
F155: WMP | J155: USD/MT | N155: =SUM(T155:AO155)/COUNTIF(T155:AO155,"<>0") -> 3778.140477 | T155: =IF(T148=0,0,T148+$N$141) -> 0 | U155: 0 | V155: 0 | W155: 3285.34471 | X155: 3372.32389 | Y155: 3392.910621 | Z155: 3499.683078 | AA155: 3658.541293 | AB155: 3807.313098 | AC155: 3899.065609 | AD155: 4024.629693 | AE155: 4080.462913 | AF155: 4120.664086 | AG155: 4218.007378 | AH155: 4144.339901 | AI155: 4046.248938 | AJ155: 3806.644621 | AK155: 3731.076956 | AL155: 3682.318711 | AM155: 3667.013612 | AN155: 3669.195823 | AO155: 3678.884137
F157: Average lactose cost by month of assumed usage
F158: Fonterra price | J158: USD/MT
F159: Non-Fonterra average price | J159: USD/MT | N159: =SUMPRODUCT($T$159:$AE$159,Calculations!$T$568:$AE$568)/SUM(Calculations!$T$568:$AE$568) -> 883.8479286 | T159: 733.4518106 | U159: 738.9649608 | V159: 769.8393969 | W159: 798.3267726 | X159: 840.7039724 | Y159: 870.5316984 | Z159: 875.9943552 | AA159: 885.869632 | AB159: 886.8897669 | AC159: 934.5961726 | AD159: 983.1870833 | AE159: 1023.081969
F161: Lactose price to calculations | J161: USD/MT | N161: =N159 -> 883.8479286 | T161: =T159 -> 733.4518106 | U161: =U159 -> 738.9649608 | V161: 769.8393969 | W161: 798.3267726 | X161: 840.7039724 | Y161: 870.5316984 | Z161: 875.9943552 | AA161: 885.869632 | AB161: 886.8897669 | AC161: 934.5961726 | AD161: 983.1870833 | AE161: 1023.081969
E163: 2. Sales Phasing
F165: Monthly sales phasings
F166: Butter | J166: % | N166: =SUM(T166:AO166) -> 1 | T166: 0 | U166: 0 | V166: 0 | W166: 0 | X166: 0.08407547696 | Y166: 0.1256023235 | Z166: 0.1202288413 | AA166: 0.1365341825 | AB166: 0.1098393742 | AC166: 0.07935762777 | AD166: 0.06180431414 | AE166: 0.07595699705 | AF166: 0.06052038865 | AG166: 0.05774406358 | AH166: 0.0318173101 | AI166: 0.03512307897 | AJ166: 0.02139602133 | AK166: 0 | AL166: 0 | AM166: 0 | AN166: 0 | AO166: 0
F167: AMF | J167: % | N167: =SUM(T167:AO167) -> 1 | T167: 0 | U167: 0 | V167: 0 | W167: 0.01112850338 | X167: 0.07446657911 | Y167: 0.1044837192 | Z167: 0.07043777079 | AA167: 0.08470912762 | AB167: 0.07260529697 | AC167: 0.09360527429 | AD167: 0.08656274448 | AE167: 0.1294816056 | AF167: 0.09427199607 | AG167: 0.1020009572 | AH167: 0.05891227624 | AI167: 0.01733414914 | AJ167: 0 | AK167: 0 | AL167: 0 | AM167: 0 | AN167: 0 | AO167: 0
F168: SMP | J168: % | N168: =SUM(T168:AO168) -> 1 | T168: 0 | U168: 0 | V168: 0.02145355575 | W168: 0.03866061697 | X168: 0.08706906807 | Y168: 0.1036020462 | Z168: 0.1310996284 | AA168: 0.1146791579 | AB168: 0.1196307244 | AC168: 0.09636473711 | AD168: 0.06529844875 | AE168: 0.06930217593 | AF168: 0.05118027078 | AG168: 0.06617813326 | AH168: 0.03174895994 | AI168: 0.003732476586 | AJ168: 0 | AK168: 0 | AL168: 0 | AM168: 0 | AN168: 0 | AO168: 0
F169: BMP | J169: % | N169: =SUM(T169:AO169) -> 1 | T169: 0 | U169: 0 | V169: 0 | W169: 0.01574966825 | X169: 0.1076572761 | Y169: 0.0618473427 | Z169: 0.1094013031 | AA169: 0.09945877393 | AB169: 0.09497935863 | AC169: 0.09342171572 | AD169: 0.09455542166 | AE169: 0.08460965336 | AF169: 0.06732963608 | AG169: 0.07981039543 | AH169: 0.05444459285 | AI169: 0.03673486225 | AJ169: 0 | AK169: 0 | AL169: 0 | AM169: 0 | AN169: 0 | AO169: 0
F170: WMP | J170: % | N170: =SUM(T170:AO170) -> 1 | T170: 0 | U170: 0 | V170: 0 | W170: 0.03677017925 | X170: 0.0943821633 | Y170: 0.1158900407 | Z170: 0.1260810644 | AA170: 0.09379103532 | AB170: 0.1041604405 | AC170: 0.09259153248 | AD170: 0.06940559147 | AE170: 0.07214859722 | AF170: 0.07994590568 | AG170: 0.07091116872 | AH170: 0.02521325296 | AI170: 0.01870902805 | AJ170: 0 | AK170: 0 | AL170: 0 | AM170: 0 | AN170: 0 | AO170: 0
E172: 3. Edible, Stockfood and Placement Spec Downgrade
L174: Butter | M174: AMF | N174: SMP | O174: BMP | P174: WMP
F175: Placement Specs Downgrade Adjustment | J175: % of Loss in Price x % of Production | L175: 0 | M175: 0 | N175: 0.0001 | O175: 0.0012 | P175: 0.0001
F176: Edible Downgrade Adjustment | J176: % of Loss in Price x % of Production | L176: 0 | M176: 0 | N176: 0.0002 | O176: 0.001125 | P176: 0.00015
F177: Stockfood Downgrade Adjustment | J177: % of Loss in Price x % of Production | L177: 0.001 | M177: 0.0001 | N177: 0.0009 | O177: 0.0021 | P177: 0.000275
E179: 4. Trader's Commission
F181: PPI FY23-FY25 | J181: % | N181: 0.07984496124
F182: LCI FY23-FY25 | J182: % | N182: 0.06456456456
F183: USD fixed costs (FY23 value) | J183: USD 000's | N183: 46391.26769 | O183: =N183*(1+$N$182) -> 49386.49969
F184: NZD fixed costs (FY23 value) | J184: NZD 000's | N184: 6080.293171 | O184: =N184*(1+$N$182) -> 6472.864652
F185: Annual production sold on GDT | J185: % | N185: 0.7
F186: Sales support cost across all volume (FY23 value) | J186: USD / MT | N186: 1.787242315 | O186: =N186*(1+$N$181) -> 1.929944608
F188: GDT fees schedule thresholds
F189: Base level threshold (upper limit) | J189: MT | N189: 600000
F190: 2nd level threshold (upper limit) | J190: MT | N190: 5000000
F191: [SPARE]
F193: Base level threshold | J193: USD / MT | N193: 16.4
F194: 2nd level threshold | J194: USD / MT | N194: 4.1
F195: Commission costs beyond 2rd level threshold | J195: USD / MT | N195: 0
F196: [SPARE] | J196: USD / MT
F198: Fixed commission phasing | J198: % | N198: =SUM(V198:AG198) -> 1 | V198: 0.08333333333 | W198: 0.08333333333 | X198: 0.08333333333 | Y198: 0.08333333333 | Z198: 0.08333333333 | AA198: 0.08333333333 | AB198: 0.08333333333 | AC198: 0.08333333333 | AD198: 0.08333333333 | AE198: 0.08333333333 | AF198: 0.08333333333 | AG198: 0.08333333333
F201: COLLECTION
F203: Notes
F206: By Product Diversion (Transport Cost) | J206: NZD '000 | N206: 9765.345394
F207: Farm Milk Collection | J207: NZD '000 | N207: 449190.4563
F208: Total | J208: NZD '000 | N208: =SUM(RCollectionCosts) -> 458955.8017
F210: Phasing | J210: NZD '000 | N210: =SUM(Q210:AO210) -> 1 | T210: 0.04133948466 | U210: 0.04624914536 | V210: 0.06282986389 | W210: 0.1024957554 | X210: 0.1336531502 | Y210: 0.1259140978 | Z210: 0.1101401768 | AA210: 0.1014414357 | AB210: 0.0767290354 | AC210: 0.07488876682 | AD210: 0.06680260318 | AE210: 0.0575164849
F212: OPEX
F214: Notes
F217: Variable Costs | L217: Butter | M217: AMF | N217: SMP | O217: BMP | P217: WMP
F218: Rework - downgrade adjustment | J218: % of Production
F219: Packaging | J219: NZD / MT
F220: Energy (Exclusive of ETS Costs) | J220: NZD / MT | L220: 16.05851896 | M220: 14.98930622 | N220: 146.4600654 | O220: 173.5990554 | P220: 113.8456598
F221: Water | J221: NZD / MT | L221: 0.5364902216 | M221: 0.121504754 | N221: 3.522710349 | O221: 3.923823249 | P221: 2.290412698
F222: Cleaning & CIP | J222: NZD / MT | L222: 0.6639754768 | M222: 2.442038336 | N222: 10.32642313 | O222: 14.60609074 | P222: 6.325016209
F223: Consumables | J223: NZD / MT | L223: 0 | M223: 0.09865323698 | N223: 0 | O223: 0 | P223: 8.490444814
F224: Effluent | J224: NZD / MT | L224: 2.665097259 | M224: 5.381118814 | N224: 5.545910875 | O224: 3.607268213 | P224: 2.749650848
F225: Laboratory | J225: NZD / MT | L225: 5.570794194 | M225: 3.556587497 | N225: 5.673224829 | O225: 12.90228805 | P225: 3.711413399
F226: Carbon Credit Requirement | J226: MT CO2e / MT
F228: Fixed Costs
F229: Wages & ERE | J229: NZD '000s | N229: 186625.1135
F230: Repairs & Maintenance | J230: NZD '000s | N230: 179419.9872
F231: Energy | J231: NZD '000s | N231: 61942.15779
F232: Water (Fixed) | J232: NZD '000s | N232: 2020.85215
F233: Cleaning & CIP (Fixed) | J233: NZD '000s | N233: 11904.29768
F234: Consumables (Fixed) | J234: NZD '000s | N234: 8959.076849
F235: Effluent (Fixed) | J235: NZD '000s | N235: 13968.21627
F236: Laboratory (Fixed) | J236: NZD '000s | N236: 16608.14568
F237: Total | J237: NZD '000s | N237: =SUM(RFOpex) -> 481447.8472
F239: Site Overheads
F240: Staff Costs | J240: NZD '000s | N240: 28088.64923
F241: Other | J241: NZD '000s | N241: 18388.29731
F242: Total | J242: NZD '000s | N242: =SUM(ROpexOverheads) -> 46476.94654
F244: Fixed Opex - Phasing | J244: % | N244: =SUM(T244:AE244) -> 1 | T244: 0.0953967276 | U244: 0.09545026095 | V244: 0.08759421194 | W244: 0.08041636686 | X244: 0.08181526152 | Y244: 0.07762094773 | Z244: 0.07879251644 | AA244: 0.07472657194 | AB244: 0.07246617621 | AC244: 0.07832896852 | AD244: 0.08200343218 | AE244: 0.0953885581
F246: Fonterra CIF costs per MT | J246: USD
F247: Competitor CIF costs per MT | J247: USD | N247: =SUMPRODUCT(T247:AE247,Calculations!$T$568:$AE$568)/SUM(Calculations!$T$568:$AE$568) -> 167.9261656 | T247: 189.0030644 | U247: 187.7540611 | V247: 197.5074418 | W247: 187.1819944 | X247: 175.7412408 | Y247: 162.8968846 | Z247: 157.3597954 | AA247: 148.1133899 | AB247: 156.2769308 | AC247: 162.9897358 | AD247: 172.177746 | AE247: 167.5563984
F249: Lactose CIF costs per MT | J249: USD | N249: =N247 -> 167.9261656 | T249: =T247 -> 189.0030644 | U249: 187.7540611 | V249: 197.5074418 | W249: 187.1819944 | X249: 175.7412408 | Y249: 162.8968846 | Z249: 157.3597954 | AA249: 148.1133899 | AB249: 156.2769308 | AC249: 162.9897358 | AD249: 172.177746 | AE249: =AE247 -> 167.5563984
F251: NZUS Surrender Ratio | J251: %
F252: NZUSSPOT Index | J252: NZD / MT CO2e
F254: SUPPLY CHAIN
F256: Notes
F259: Freight Costs per MT
F260: Butter | J260: NZD / MT | N260: 63.7868409
F261: Other (Excl Lactose) | J261: NZD / MT | N261: 44.29165023
F262: Lactose | J262: NZD / MT | N262: 45.0568313
F264: Variable Supply Chain Costs
F265: Kotahi Fees | J265: USD / MT
F266: Non-significant complaints | J266: % of revenue
F267: Supply chain admin etc (excl depn & amortisation) | J267: NZD / MT
F268: Pallets & Recycling | J268: NZD / MT
F269: Port Costs | J269: NZD / MT
F270: Dry Storage Costs | J270: NZD / MT
F271: Cool Storage Costs (Butter) per month | J271: NZD / MT
... 68 more rows

Sheet Calculations
F5: Overall error check | J5: =IF(COUNTA(B:B)=COUNTIF(B:B,"Okay"),"Okay","Error") -> Okay | N5: Annual | T5: Monthly
J9: Units | K9: Cross Reference | N9: =Global!O8 -> 00:00:00 | R9: =Global!R8 -> 2024-04-30 | S9: =Global!S8 -> 2024-05-31 | T9: =Global!T8 -> 2024-06-30 | U9: =Global!U8 -> 2024-07-31 | V9: =Global!V8 -> 2024-08-31 | W9: =Global!W8 -> 2024-09-30 | X9: =Global!X8 -> 2024-10-31 | Y9: =Global!Y8 -> 2024-11-30 | Z9: =Global!Z8 -> 2024-12-31 | AA9: =Global!AA8 -> 2025-01-31 | AB9: =Global!AB8 -> 2025-02-28 | AC9: =Global!AC8 -> 2025-03-31 | AD9: =Global!AD8 -> 2025-04-30 | AE9: =Global!AE8 -> 2025-05-31 | AF9: =Global!AF8 -> 2025-06-30 | AG9: =Global!AG8 -> 2025-07-31 | AH9: =Global!AH8 -> 2025-08-31 | AI9: =Global!AI8 -> 2025-09-30 | AJ9: =Global!AJ8 -> 2025-10-31 | AK9: =Global!AK8 -> 2025-11-30 | AL9: =Global!AL8 -> 2025-12-31 | AM9: =Global!AM8 -> 2026-01-31 | AN9: =Global!AN8 -> 2026-02-28 | AO9: =Global!AO8 -> 2026-03-31 | AP9: =Global!AP8 -> 2026-04-30 | AQ9: =EOMONTH(AP9,1) -> 2026-05-31
D10: Calendar Year | T10: =YEAR(T9) -> 2024 | U10: =YEAR(U9) -> 2024 | V10: 2024 | W10: 2024 | X10: 2024 | Y10: 2024 | Z10: 2024 | AA10: 2025 | AB10: 2025 | AC10: 2025 | AD10: 2025 | AE10: 2025 | AF10: 2025 | AG10: 2025 | AH10: 2025 | AI10: 2025 | AJ10: 2025 | AK10: 2025 | AL10: 2025 | AM10: =YEAR(AM9) -> 2026 | AN10: =YEAR(AN9) -> 2026 | AO10: =YEAR(AO9) -> 2026 | AP10: =YEAR(AP9) -> 2026
D11: Month Number | T11: 1 | U11: =T11+1 -> 2 | V11: =U11+1 -> 3 | W11: =V11+1 -> 4 | X11: 5 | Y11: 6 | Z11: 7 | AA11: 8 | AB11: 9 | AC11: 10 | AD11: 11 | AE11: 12 | AF11: 13 | AG11: 14 | AH11: 15 | AI11: 16 | AJ11: 17 | AK11: 18 | AL11: 19 | AM11: =AL11+1 -> 20 | AN11: =AM11+1 -> 21 | AO11: =AN11+1 -> 22 | AP11: =AO11+1 -> 23
D12: Days in Period | R12: =Global!R11 -> 30 | S12: =Global!S11 -> 31 | T12: =Global!T11 -> 30 | U12: =U9-T9 -> 31 | V12: =V9-U9 -> 31 | W12: 30 | X12: 31 | Y12: 30 | Z12: 31 | AA12: 31 | AB12: 28 | AC12: 31 | AD12: 30 | AE12: 31 | AF12: 30 | AG12: 31 | AH12: 31 | AI12: 30 | AJ12: 31 | AK12: 30 | AL12: 31 | AM12: 31 | AN12: 28 | AO12: 31 | AP12: 30
D13: Year to Go flag | N13: 1 | P13: =Global!P12 -> 14 | T13: =Global!T12 -> 1 | U13: =Global!U12 -> 1 | V13: =Global!V12 -> 1 | W13: =Global!W12 -> 1 | X13: =Global!X12 -> 1 | Y13: =Global!Y12 -> 1 | Z13: =Global!Z12 -> 1 | AA13: =Global!AA12 -> 1 | AB13: =Global!AB12 -> 1 | AC13: =Global!AC12 -> 1 | AD13: =Global!AD12 -> 1 | AE13: =Global!AE12 -> 1 | AF13: =Global!AF12 -> 1 | AG13: =Global!AG12 -> 1 | AH13: =Global!AH12 -> 0 | AI13: =Global!AI12 -> 0 | AJ13: =Global!AJ12 -> 0 | AK13: =Global!AK12 -> 0 | AL13: =Global!AL12 -> 0 | AM13: =Global!AM12 -> 0 | AN13: =Global!AN12 -> 0 | AO13: =Global!AO12 -> 0 | AP13: =Global!AP12 -> 0
D14: PRODUCTION
D16: COMMENT
D20: DATA INPUT
F21: ='Data Input'!F31 -> North Island Milk Supply (collected) | J21: ='Data Input'!J37 -> 000 kgms | N21: ='Data Input'!N31 -> 855669.2562 | T21: ='Data Input'!T31 -> 11890.5141 | U21: ='Data Input'!U31 -> 18868.7997 | V21: ='Data Input'!V31 -> 69960.6483 | W21: ='Data Input'!W31 -> 104632.7159 | X21: ='Data Input'!X31 -> 119014.5975 | Y21: ='Data Input'!Y31 -> 109630.6585 | Z21: ='Data Input'!Z31 -> 99778.3933 | AA21: ='Data Input'!AA31 -> 90323.9919 | AB21: ='Data Input'!AB31 -> 69160.8166 | AC21: ='Data Input'!AC31 -> 68238.6697 | AD21: ='Data Input'!AD31 -> 57721.1358 | AE21: ='Data Input'!AE31 -> 36448.3149
F22: ='Data Input'!F37 -> South Island Milk Supply (collected) | J22: =J21 -> 000 kgms | N22: ='Data Input'!N37 -> 653338.423 | T22: ='Data Input'!T37 -> 2565.2152 | U22: ='Data Input'!U37 -> 1705.2058 | V22: ='Data Input'!V37 -> 28019.9343 | W22: ='Data Input'!W37 -> 69588.5334 | X22: ='Data Input'!X37 -> 85979.7643 | Y22: ='Data Input'!Y37 -> 82093.6083 | Z22: ='Data Input'!Z37 -> 78701.7812 | AA22: ='Data Input'!AA37 -> 75396.2351 | AB22: ='Data Input'!AB37 -> 64563.7062 | AC22: ='Data Input'!AC37 -> 66643.2233 | AD22: ='Data Input'!AD37 -> 57505.8519 | AE22: ='Data Input'!AE37 -> 40575.364
F23: Total Collected | J23: ='Data Input'!J39 -> 000 kgms | N23: ='Data Input'!N39 -> 1509007.679 | T23: =SUM(T21:T22) -> 14455.7293 | U23: =SUM(U21:U22) -> 20574.0055 | V23: 97980.5826 | W23: 174221.2493 | X23: 204994.3618 | Y23: 191724.2668 | Z23: 178480.1745 | AA23: 165720.227 | AB23: 133724.5228 | AC23: 134881.893 | AD23: 115226.9877 | AE23: 77023.6789
F25: Milk Supply - Phasing | J25: ='Data Input'!J40 -> % | N25: =SUM(T25:AE25) -> 1 | T25: ='Data Input'!T40 -> 0.009579626068 | U25: ='Data Input'!U40 -> 0.01363412909 | V25: ='Data Input'!V40 -> 0.06493047315 | W25: ='Data Input'!W40 -> 0.1154541834 | X25: ='Data Input'!X40 -> 0.1358471296 | Y25: ='Data Input'!Y40 -> 0.1270532082 | Z25: ='Data Input'!Z40 -> 0.1182765184 | AA25: ='Data Input'!AA40 -> 0.1098206651 | AB25: ='Data Input'!AB40 -> 0.08861752305 | AC25: ='Data Input'!AC40 -> 0.08938449741 | AD25: ='Data Input'!AD40 -> 0.07635944422 | AE25: ='Data Input'!AE40 -> 0.05104260234
F27: ='Data Input'!F47 -> National Average Milk Composition
F28: ='Data Input'!F48 -> Fat | J28: ='Data Input'!J48 -> % w/w | T28: ='Data Input'!T48 -> 0.05028512751 | U28: ='Data Input'!U48 -> 0.049177579 | V28: ='Data Input'!V48 -> 0.04876046786 | W28: ='Data Input'!W48 -> 0.04787712845 | X28: ='Data Input'!X48 -> 0.04770803857 | Y28: ='Data Input'!Y48 -> 0.0477666186 | Z28: ='Data Input'!Z48 -> 0.0485170773 | AA28: ='Data Input'!AA48 -> 0.0501656159 | AB28: ='Data Input'!AB48 -> 0.0523162164 | AC28: ='Data Input'!AC48 -> 0.05644375205 | AD28: ='Data Input'!AD48 -> 0.05874136954 | AE28: ='Data Input'!AE48 -> 0.05955016919
F29: ='Data Input'!F49 -> Protein | J29: ='Data Input'!J49 -> % w/w | T29: ='Data Input'!T49 -> 0.03899571846 | U29: ='Data Input'!U49 -> 0.03943042117 | V29: ='Data Input'!V49 -> 0.03853237739 | W29: ='Data Input'!W49 -> 0.03723001282 | X29: ='Data Input'!X49 -> 0.03723683938 | Y29: ='Data Input'!Y49 -> 0.03764133911 | Z29: ='Data Input'!Z49 -> 0.03767783873 | AA29: ='Data Input'!AA49 -> 0.03864647797 | AB29: ='Data Input'!AB49 -> 0.03946992181 | AC29: ='Data Input'!AC49 -> 0.04224879076 | AD29: ='Data Input'!AD49 -> 0.04436432474 | AE29: ='Data Input'!AE49 -> 0.04529480649
F30: ='Data Input'!F50 -> Lactose + Minerals | J30: ='Data Input'!J50 -> % w/w | T30: ='Data Input'!T50 -> 0.05331779319 | U30: ='Data Input'!U50 -> 0.0536246831 | V30: ='Data Input'!V50 -> 0.05446955344 | W30: ='Data Input'!W50 -> 0.05473804049 | X30: ='Data Input'!X50 -> 0.05466818547 | Y30: ='Data Input'!Y50 -> 0.05425561734 | Z30: ='Data Input'!Z50 -> 0.05374706381 | AA30: ='Data Input'!AA50 -> 0.0535158599 | AB30: ='Data Input'!AB50 -> 0.05339621797 | AC30: ='Data Input'!AC50 -> 0.05270890328 | AD30: ='Data Input'!AD50 -> 0.05251519099 | AE30: ='Data Input'!AE50 -> 0.05250186713
F32: ='Data Input'!F109 -> Product mix
F33: ='Data Input'!F110 -> Target ratio of WMP MT to WMP + SMP | J33: ='Data Input'!J110 -> % | T33: ='Data Input'!T110 -> 0.4628854911 | U33: ='Data Input'!U110 -> 0.3056019351 | V33: ='Data Input'!V110 -> 0.671938925 | W33: ='Data Input'!W110 -> 0.7535030986 | X33: ='Data Input'!X110 -> 0.7740290192 | Y33: ='Data Input'!Y110 -> 0.75208342 | Z33: ='Data Input'!Z110 -> 0.7719826606 | AA33: ='Data Input'!AA110 -> 0.7246019198 | AB33: ='Data Input'!AB110 -> 0.687715609 | AC33: ='Data Input'!AC110 -> 0.7897208232 | AD33: ='Data Input'!AD110 -> 0.7372124638 | AE33: ='Data Input'!AE110 -> 0.7162220037
F34: ='Data Input'!F111 -> Target ratio of Butter MT to Butter + AMF | J34: ='Data Input'!J111 -> % | T34: ='Data Input'!T111 -> 0.01482482676 | U34: ='Data Input'!U111 -> 0.192087377 | V34: ='Data Input'!V111 -> 0.636109481 | W34: ='Data Input'!W111 -> 0.6570441708 | X34: ='Data Input'!X111 -> 0.6681148783 | Y34: ='Data Input'!Y111 -> 0.6711530837 | Z34: ='Data Input'!Z111 -> 0.6695798829 | AA34: ='Data Input'!AA111 -> 0.6686001832 | AB34: ='Data Input'!AB111 -> 0.6715902237 | AC34: ='Data Input'!AC111 -> 0.5848301864 | AD34: ='Data Input'!AD111 -> 0.5590936194 | AE34: ='Data Input'!AE111 -> 0.5737210835
F36: ='Data Input'!F52 -> Milk Composition Input Parameters
F37: ='Data Input'!F53 -> Cream Fat Content | J37: ='Data Input'!J53 -> % | N37: ='Data Input'!N53 -> 0.42
F38: ='Data Input'!F54 -> Skimmilk Fat Content | J38: ='Data Input'!J54 -> % | N38: ='Data Input'!N54 -> 0.0008
F39: ='Data Input'!F55 -> Wholemilk Density | J39: ='Data Input'!J55 -> % | N39: ='Data Input'!N55 -> 1.032
F41: ='Data Input'!F57 -> Lactose Standardising Inputs
F42: ='Data Input'!F58 -> Lactose losses - WMP | J42: ='Data Input'!J58 -> % | N42: ='Data Input'!N58 -> 0.0033
F43: ='Data Input'!F59 -> Lactose losses - SMP | J43: ='Data Input'!J59 -> % | N43: ='Data Input'!N59 -> 0.005
F44: ='Data Input'!F60 -> Lactose losses - BMP | J44: ='Data Input'!J60 -> % | N44: ='Data Input'!N60 -> 0.0093
F45: ='Data Input'!F61 -> Lactose content of lactose powder | J45: ='Data Input'!J61 -> % | N45: ='Data Input'!N61 -> 0.95
F47: Losses | M47: Fat | N47: Milk Protein
F48: ='Data Input'!F92 -> Butter | J48: ='Data Input'!J85 -> kgs/T | M48: ='Data Input'!M85 -> 0 | N48: ='Data Input'!N85 -> 0
F49: ='Data Input'!F93 -> AMF | J49: ='Data Input'!J86 -> kgs/T | M49: ='Data Input'!M86 -> 0 | N49: ='Data Input'!N86 -> 0
F50: ='Data Input'!F94 -> SMP | J50: ='Data Input'!J87 -> kgs/T | M50: ='Data Input'!M87 -> 0 | N50: ='Data Input'!N87 -> 0
F51: ='Data Input'!F95 -> BMP | J51: ='Data Input'!J88 -> kgs/T | M51: ='Data Input'!M88 -> 0 | N51: ='Data Input'!N88 -> 0
F52: ='Data Input'!F96 -> WMP | J52: ='Data Input'!J89 -> kgs/T | M52: ='Data Input'!M89 -> 0 | N52: ='Data Input'!N89 -> 0
F54: ='Data Input'!F91 -> Composition targets | L54: ='Data Input'!L91 -> Fat-Min | M54: ='Data Input'!M91 -> Protein-Min | N54: ='Data Input'!N91 -> Moisture-Max
F55: ='Data Input'!F92 -> Butter | J55: ='Data Input'!J92 -> %w/w | L55: ='Data Input'!L92 -> 0 | M55: ='Data Input'!M92 -> 0 | N55: ='Data Input'!N92 -> 0
F56: ='Data Input'!F93 -> AMF | J56: ='Data Input'!J93 -> %w/w | L56: ='Data Input'!L93 -> 0 | M56: ='Data Input'!M93 -> 0 | N56: ='Data Input'!N93 -> 0
F57: ='Data Input'!F94 -> SMP | J57: ='Data Input'!J94 -> %w/w | L57: ='Data Input'!L94 -> 0 | M57: ='Data Input'!M94 -> 0 | N57: ='Data Input'!N94 -> 0
F58: ='Data Input'!F95 -> BMP | J58: ='Data Input'!J95 -> %w/w | L58: ='Data Input'!L95 -> 0 | M58: ='Data Input'!M95 -> 0 | N58: ='Data Input'!N95 -> 0
F59: ='Data Input'!F96 -> WMP | J59: ='Data Input'!J96 -> %w/w | L59: ='Data Input'!L96 -> 0 | M59: ='Data Input'!M96 -> 0 | N59: ='Data Input'!N96 -> 0
F61: gDT Spec Limits - Protein | L61: Protein-Min
F62: SMP | J62: % w/w | L62: ='Data Input'!L99 -> 0.324
F63: WMP | J63: % w/w | L63: ='Data Input'!L100 -> 0.24
F65: ='Data Input'!F102 -> Value Component Usage | L65: ='Data Input'!L102 -> Fat | M65: ='Data Input'!M102 -> Milk Protein
F66: ='Data Input'!F103 -> Butter | J66: ='Data Input'!J103 -> kg/mt | L66: ='Data Input'!L103 -> 830.4101961 | M66: ='Data Input'!M103 -> 5.226441973
F67: ='Data Input'!F104 -> AMF | J67: ='Data Input'!J104 -> kg/mt | L67: ='Data Input'!L104 -> 1001.273707 | M67: ='Data Input'!M104 -> 0.7695178014
F68: ='Data Input'!F105 -> SMP | J68: ='Data Input'!J105 -> kg/mt | L68: ='Data Input'!L105 -> 8.952646533 | M68: ='Data Input'!M105 -> 327.4689562
F69: ='Data Input'!F106 -> BMP | J69: ='Data Input'!J106 -> kg/mt | L69: ='Data Input'!L106 -> 78.16594862 | M69: ='Data Input'!M106 -> 305.7045036
F70: ='Data Input'!F107 -> WMP | J70: ='Data Input'!J107 -> kg/mt | L70: ='Data Input'!L107 -> 262.1786569 | M70: ='Data Input'!M107 -> 241.9980967
F72: Daily Processing Capacity | L72: NI | M72: SI
F73: ='Data Input'!F120 -> SMP | J73: ='Data Input'!J120 -> MT / Day | L73: ='Data Input'!L120 -> 2111.105167 | M73: ='Data Input'!M120 -> 1241.449151
F74: ='Data Input'!F121 -> WMP | J74: ='Data Input'!J121 -> MT / Day | L74: ='Data Input'!L121 -> 4423.935483 | M74: ='Data Input'!M121 -> 3258.20563
F76: BMP diverted to WMP and SMP production
F77: Buttermilk diverted to WMP | J77: m3 | T77: ='Data Input'!T116 -> 0 | U77: ='Data Input'!U116 -> 335 | V77: ='Data Input'!V116 -> 4649.342 | W77: ='Data Input'!W116 -> 15911.978 | X77: ='Data Input'!X116 -> 19484.688 | Y77: ='Data Input'!Y116 -> 26050.864 | Z77: ='Data Input'!Z116 -> 21915.864 | AA77: ='Data Input'!AA116 -> 15975.516 | AB77: ='Data Input'!AB116 -> 12606.378 | AC77: ='Data Input'!AC116 -> 14372.303 | AD77: ='Data Input'!AD116 -> 6650.06 | AE77: ='Data Input'!AE116 -> 4700.719
F78: BMP in liquid buttermilk | J78: MT | L78: ='Data Input'!N117 -> 0.116
F80: Overriding % for Standardised / Unstandardised production
F81: ='Data Input'!F124 -> North Island | J81: % | T81: =CHOOSE(LookupTables!$I$29,100%,0%,IF(ISBLANK('Data Input'!T124),"na",'Data Input'!T124)) -> 1 | U81: =CHOOSE(LookupTables!$I$29,100%,0%,IF(ISBLANK('Data Input'!U124),"na",'Data Input'!U124)) -> 1 | V81: =CHOOSE(LookupTables!$I$29,100%,0%,IF(ISBLANK('Data Input'!V124),"na",'Data Input'!V124)) -> 1 | W81: =CHOOSE(LookupTables!$I$29,100%,0%,IF(ISBLANK('Data Input'!W124),"na",'Data Input'!W124)) -> 1 | X81: =CHOOSE(LookupTables!$I$29,100%,0%,IF(ISBLANK('Data Input'!X124),"na",'Data Input'!X124)) -> 1 | Y81: =CHOOSE(LookupTables!$I$29,100%,0%,IF(ISBLANK('Data Input'!Y124),"na",'Data Input'!Y124)) -> 1 | Z81: =CHOOSE(LookupTables!$I$29,100%,0%,IF(ISBLANK('Data Input'!Z124),"na",'Data Input'!Z124)) -> 1 | AA81: =CHOOSE(LookupTables!$I$29,100%,0%,IF(ISBLANK('Data Input'!AA124),"na",'Data Input'!AA124)) -> 1 | AB81: =CHOOSE(LookupTables!$I$29,100%,0%,IF(ISBLANK('Data Input'!AB124),"na",'Data Input'!AB124)) -> 1 | AC81: =CHOOSE(LookupTables!$I$29,100%,0%,IF(ISBLANK('Data Input'!AC124),"na",'Data Input'!AC124)) -> 1 | AD81: =CHOOSE(LookupTables!$I$29,100%,0%,IF(ISBLANK('Data Input'!AD124),"na",'Data Input'!AD124)) -> 1 | AE81: =CHOOSE(LookupTables!$I$29,100%,0%,IF(ISBLANK('Data Input'!AE124),"na",'Data Input'!AE124)) -> 1
F82: ='Data Input'!F125 -> South Island | J82: % | T82: =CHOOSE(LookupTables!$I$29,100%,0%,IF(ISBLANK('Data Input'!T125),"na",'Data Input'!T125)) -> 1 | U82: =CHOOSE(LookupTables!$I$29,100%,0%,IF(ISBLANK('Data Input'!U125),"na",'Data Input'!U125)) -> 1 | V82: =CHOOSE(LookupTables!$I$29,100%,0%,IF(ISBLANK('Data Input'!V125),"na",'Data Input'!V125)) -> 1 | W82: =CHOOSE(LookupTables!$I$29,100%,0%,IF(ISBLANK('Data Input'!W125),"na",'Data Input'!W125)) -> 1 | X82: =CHOOSE(LookupTables!$I$29,100%,0%,IF(ISBLANK('Data Input'!X125),"na",'Data Input'!X125)) -> 0.9752890832 | Y82: =CHOOSE(LookupTables!$I$29,100%,0%,IF(ISBLANK('Data Input'!Y125),"na",'Data Input'!Y125)) -> 0.9884686869 | Z82: =CHOOSE(LookupTables!$I$29,100%,0%,IF(ISBLANK('Data Input'!Z125),"na",'Data Input'!Z125)) -> 1 | AA82: =CHOOSE(LookupTables!$I$29,100%,0%,IF(ISBLANK('Data Input'!AA125),"na",'Data Input'!AA125)) -> 1 | AB82: =CHOOSE(LookupTables!$I$29,100%,0%,IF(ISBLANK('Data Input'!AB125),"na",'Data Input'!AB125)) -> 1 | AC82: =CHOOSE(LookupTables!$I$29,100%,0%,IF(ISBLANK('Data Input'!AC125),"na",'Data Input'!AC125)) -> 1 | AD82: =CHOOSE(LookupTables!$I$29,100%,0%,IF(ISBLANK('Data Input'!AD125),"na",'Data Input'!AD125)) -> 1 | AE82: =CHOOSE(LookupTables!$I$29,100%,0%,IF(ISBLANK('Data Input'!AE125),"na",'Data Input'!AE125)) -> 1
D85: CALCULATIONS
F86: Wholemilk Composition Parameters
F87: Fat | J87: kg Fat / m3 wholemilk | T87: =$N$39*T28*1000 -> 51.89425159 | U87: =$N$39*U28*1000 -> 50.75126153 | V87: 50.32080283 | W87: 49.40919656 | X87: 49.2346958 | Y87: 49.2951504 | Z87: 50.06962377 | AA87: 51.7709156 | AB87: 53.99033532 | AC87: 58.24995212 | AD87: 60.62109337 | AE87: 61.45577461
F88: Protein | J88: kg Protein / m3 wholemilk | T88: =$N$39*T29*1000 -> 40.24358146 | U88: 40.69219465 | V88: 39.76541347 | W88: 38.42137323 | X88: 38.42841824 | Y88: 38.84586196 | Z88: 38.88352957 | AA88: 39.88316527 | AB88: 40.7329593 | AC88: 43.60075207 | AD88: 45.78398313 | AE88: 46.74424029
F89: Raw Milk Protein : SNF Ratio | J89: % | T89: =T29/SUM(T29:T30) -> 0.4224269857 | U89: =U29/SUM(U29:U30) -> 0.4237319541 | V89: 0.4143180367 | W89: 0.4048146229 | X89: 0.4051665232 | Y89: 0.4096037623 | Z89: 0.4121178988 | AA89: 0.4193304865 | AB89: 0.4250195163 | AC89: 0.4449222487 | AD89: 0.4579329738 | AE89: 0.4631528334
F90: Cream Protein | J90: % | T90: =(1-$N$37)/(1-T28)*T29 -> 0.02381506004 | U90: 0.02405248738 | V90: 0.02349437563 | W90: 0.02267922353 | X90: 0.02267935435 | Y90: 0.02292712806 | Z90: 0.02296746052 | AA90: 0.02359880586 | AB90: 0.02415632202 | AC90: 0.02597015143 | AD90: 0.02733712873 | AE90: 0.02793449145
D92: STANDARDISED YIELD CALCULATION
F93: Standardised Protein Composition Target
F94: =F57 -> SMP | J94: %w/w
F95: =F59 -> WMP | J95: %w/w
F97: Valued Component Usage: Fat
F98: Butter | J98: kg/mt
F99: AMF | J99: kg/mt
F100: SMP | J100: kg/mt
F101: BMP | J101: kg/mt
F102: WMP | J102: kg/mt
F104: Valued Component Usage: Protein
F105: Butter | J105: kg/mt
F106: AMF | J106: kg/mt
F107: SMP | J107: kg/mt
F108: BMP | J108: kg/mt
F109: WMP | J109: kg/mt
F112: SMP
F113: Excess Cream
F114: kg cream | J114: kg /m3 wholemilk | T114: 121.1259479 | U114: 118.3729032 | V114: 117.4025439 | W114: 115.3102217 | X114: 114.8936711 | Y114: 115.0124685 | Z114: 116.8570604 | AA114: 120.8536278 | AB114: 126.0952729 | AC114: 136.0823159 | AD114: 141.6077187 | AE114: 143.541572
F115: Fat | J115: kg /m3 wholemilk | T115: 50.8728981 | U115: 49.71661936 | V115: 49.30906842 | W115: 48.4302931 | X115: 48.25534188 | Y115: 48.30523675 | Z115: 49.07996538 | AA115: 50.75852369 | AB115: 52.96001463 | AC115: 57.15457266 | AD115: 59.47524187 | AE115: 60.28746023
F116: Protein | J116: kg /m3 wholemilk | T116: 2.884621721 | U116: 2.847162761 | V116: 2.758299466 | W116: 2.615146293 | X116: 2.605714281 | Y116: 2.636905593 | Z116: 2.683909922 | AA116: 2.8520013 | AB116: 3.045998018 | AC116: 3.53407835 | AD116: 3.871148436 | AE116: 4.009760816
F118: SMP | J118: kg /m3 wholemilk | T118: 114.0839736 | U118: 115.568304 | V118: 113.0095336 | W118: 109.3423552 | X118: 109.3926715 | Y118: 110.57218 | Z118: 110.5436682 | AA118: 113.0829756 | AB118: 115.0856 | AC118: 122.3525863 | AD118: 127.9902534 | AE118: 130.4993303
F119: Butter | J119: kg /m3 wholemilk | T119: 60.47148428 | U119: 59.08837368 | V119: 58.62420589 | W119: 57.60840697 | X119: 57.40029578 | Y119: 57.45085766 | Z119: 58.37081195 | AA119: 60.34359018 | AB119: 62.93912218 | AC119: 67.84792522 | AD119: 70.54308124 | AE119: 71.48000189
F120: BMP | J120: kg /m3 wholemilk | T120: 8.402136662 | U120: 8.303249624 | V120: 8.020501585 | W120: 7.569595049 | X120: 7.542299635 | Y120: 7.643466132 | Z120: 7.781495635 | AA120: 8.297617465 | AB120: 8.887832256 | AC120: 10.40048501 | AD120: 11.45700856 | AE120: 11.8944101
F121: AMF | J121: kg /m3 wholemilk | T121: 50.08139066 | U121: 48.93592345 | V121: 48.55150807 | W121: 47.71024176 | X121: 47.53788783 | Y121: 47.57976227 | Z121: 48.34165179 | AA121: 49.97547108 | AB121: 52.12504378 | AC121: 56.19042576 | AD121: 58.42250528 | AE121: 59.19844604
F122: BMP | J122: kg /m3 wholemilk | T122: 9.309915837 | U122: 9.190265971 | V122: 8.900549989 | W122: 8.434394595 | X122: 8.40397508 | Y122: 8.505900596 | Z122: 8.657740168 | AA122: 9.203476733 | AB122: 9.832654846 | AC122: 11.41899703 | AD122: 12.51597943 | AE122: 12.96744572
F124: Lactose Standardising
F125: Primary product (excl Losses) | J125: kg/mt | T125: 182.8526367 | U125: 185.2256935 | V125: 167.7716392 | W125: 149.3282556 | X125: 150.026618 | Y125: 158.729565 | Z125: 163.5774736 | AA125: 177.1626156 | AB125: 187.5528153 | AC125: 221.8115012 | AD125: 242.5972873 | AE125: 250.6082291
F126: Primary product (incl Losses) | J126: kg/mt | T126: 193.4436781 | U126: 195.9541851 | V126: 177.4891713 | W126: 157.9775251 | X126: 158.7163375 | Y126: 167.9233694 | Z126: 173.0520746 | AA126: 187.4240842 | AB126: 198.4160966 | AC126: 234.6590861 | AD126: 256.6488097 | AE126: 265.1237547
F127: BMP (excl Losses) | J127: kg/mt | T127: 166.779552 | U127: 168.9893017 | V127: 152.7363866 | W127: 135.5622251 | X127: 136.2125282 | Y127: 144.3165627 | Z127: 148.8308517 | AA127: 161.4811023 | AB127: 171.1562775 | AC127: 203.0573763 | AD127: 222.4127428 | AE127: 229.872394
F128: BMP (incl Losses and Moisture) | J128: kg/mt | T128: 177.2054337 | U128: 179.5533213 | V128: 162.2843886 | W128: 144.0366196 | X128: 144.727575 | Y128: 153.3382166 | Z128: 158.1347072 | AA128: 171.5757623 | AB128: 181.8557612 | AC128: 215.7510918 | AD128: 236.3164194 | AE128: 244.2423953
F130: WMP
F131: Excess Cream
F132: kg cream | J132: kg /m3 wholemilk | T132: 21.04191582 | U132: 16.9204912 | V132: 18.34840192 | W132: 19.68444623 | X132: 19.22385708 | Y132: 18.24542041 | Z132: 20.10426575 | AA132: 21.70668213 | AB132: 25.03774804 | AC132: 28.10482141 | AD132: 28.22641969 | AE132: 27.74561834
F133: Fat | J133: kg /m3 wholemilk | T133: 8.837604642 | U133: 7.106606305 | V133: 7.706328805 | W133: 8.267467415 | X133: 8.074019975 | Y133: 7.663076574 | Z133: 8.443791615 | AA133: 9.116806494 | AB133: 10.51585418 | AC133: 11.80402499 | AD133: 11.85509627 | AE133: 11.6531597
F134: Protein | J134: kg /m3 wholemilk | T134: 0.5011144885 | U134: 0.406979901 | V134: 0.4310842469 | W134: 0.4464279561 | X134: 0.4359846668 | Y134: 0.4183150904 | Z134: 0.4617439299 | AA134: 0.5122517773 | AB134: 0.6048199042 | AC134: 0.729886468 | AD134: 0.7716292688 | AE134: 0.7750597385
F136: WMP | J136: kg /m3 wholemilk | T136: 164.2263617 | U136: 166.4691388 | V136: 162.5398288 | W136: 156.9224956 | X136: 156.9947619 | Y136: 158.7927649 | Z136: 158.7689579 | AA136: 162.6910047 | AB136: 165.820062 | AC136: 177.1537305 | AD136: 186.0029251 | AE136: 189.9567855
F137: Butter | J137: kg /m3 wholemilk | T137: 10.50506439 | U137: 8.446226119 | V137: 9.162156596 | W137: 9.834250361 | X137: 9.604141565 | Y137: 9.113925344 | Z137: 10.04220294 | AA137: 10.83839314 | AB137: 12.49732719 | AC137: 14.01250272 | AD137: 14.0612294 | AE137: 13.81660257
F138: BMP | J138: kg /m3 wholemilk | T138: 1.459613365 | U138: 1.186885329 | V138: 1.25349402 | W138: 1.292194955 | X138: 1.261967599 | Y138: 1.212548995 | Z138: 1.3387403 | AA138: 1.490346198 | AB138: 1.764787049 | AC138: 2.147992352 | AD138: 2.283705543 | AE138: 2.299109299
F139: AMF | J139: kg /m3 wholemilk | T139: 8.700104518 | U139: 6.995011862 | V139: 7.587932548 | W139: 8.14454846 | X139: 7.953976513 | Y139: 7.547988296 | Z139: 8.316771025 | AA139: 8.976161363 | AB139: 10.35006057 | AC139: 11.60490157 | AD139: 11.64525612 | AE139: 11.4426606
F140: BMP | J140: kg /m3 wholemilk | T140: 1.617312135 | U140: 1.313677457 | V140: 1.391033474 | W140: 1.439823673 | X140: 1.406141994 | Y140: 1.349364416 | Z140: 1.489490738 | AA140: 1.653048795 | AB140: 1.952393051 | AC140: 2.358343698 | AD140: 2.494788359 | AE140: 2.506519853
F142: Lactose Standardising
F143: Primary product (excl Losses) | J143: kg/mt | T143: 133.6770238 | U143: 135.4362207 | V143: 122.4971629 | W143: 108.8246945 | X143: 109.3424053 | Y143: 115.794083 | Z143: 119.3879397 | AA143: 129.4588914 | AB143: 137.1613651 | AC143: 162.5580499 | AD143: 177.9669906 | AE143: 183.9056703
F144: Primary product (incl Losses) | J144: kg/mt | T144: 141.1785458 | U144: 143.0364632 | V144: 129.3713074 | W144: 114.9315843 | X144: 115.4783473 | Y144: 122.2920723 | Z144: 126.0876046 | AA144: 136.7237055 | AB144: 144.8584171 | AC144: 171.6802816 | AD144: 187.9539222 | AE144: 194.2258615
F145: BMP (excl Losses) | J145: kg/mt | T145: 166.779552 | U145: 168.9893017 | V145: 152.7363866 | W145: 135.5622251 | X145: 136.2125282 | Y145: 144.3165627 | Z145: 148.8308517 | AA145: 161.4811023 | AB145: 171.1562775 | AC145: 203.0573763 | AD145: 222.4127428 | AE145: 229.872394
F146: BMP (incl Losses and Moisture) | J146: kg/mt | T146: 177.2054337 | U146: 179.5533213 | V146: 162.2843886 | W146: 144.0366196 | X146: 144.727575 | Y146: 153.3382166 | Z146: 158.1347072 | AA146: 171.5757623 | AB146: 181.8557612 | AC146: 215.7510918 | AD146: 236.3164194 | AE146: 244.2423953
F148: Monthly National Average Yields
F149: SMP | J149: % | N149: =SUMPRODUCT(T149:AE149,$T$23:$AE$23)/$N$23 -> 1.2341217 | T149: =T118/SUM(T$87:T$88) -> 1.238188156 | U149: =U118/SUM(U$87:U$88) -> 1.263822573 | V149: 1.254459764 | W149: 1.24492367 | X149: 1.24787572 | Y149: 1.254491831 | Z149: 1.242717814 | AA149: 1.233801861 | AB149: 1.214966186 | AC149: 1.201293474 | AD149: 1.202858526 | AE149: 1.20609346
F150: SMP Butter | J150: % | N150: =SUMPRODUCT(T150:AE150,$T$23:$AE$23)/$N$23 -> 0.6575290663 | T150: =T119/SUM(T$87:T$88) -> 0.65631546 | U150: 0.6461738887 | V150: 0.6507566673 | W150: 0.6559038283 | X150: 0.6547827602 | Y150: 0.6518061924 | Z150: 0.6561972202 | AA150: 0.6583841069 | AB150: 0.6644524182 | AC150: 0.666150772 | AD150: 0.6629672527 | AE150: 0.6606283923
F151: SMP Butter BMP | J151: % | N151: =SUMPRODUCT(T151:AE151,$T$23:$AE$23)/$N$23 -> 0.09211290238 | T151: =T120/SUM(T$87:T$88) -> 0.09119095147 | U151: 0.09080201002 | V151: 0.08903139586 | W151: 0.08618405946 | X151: 0.08603732274 | Y151: 0.08671861064 | Z151: 0.08747858107 | AA151: 0.09053189324 | AB151: 0.09382942486 | AC151: 0.1021150034 | AD151: 0.1076735147 | AE151: 0.1099298379
F152: SMP AMF | J152: % | N152: =SUMPRODUCT(T152:AE152,$T$23:$AE$23)/$N$23 -> 0.5445536922 | T152: =T121/SUM(T$87:T$88) -> 0.5435486054 | U152: 0.5351495393 | V152: 0.5389449137 | W152: 0.5432076995 | X152: 0.5422792511 | Y152: 0.5398141115 | Z152: 0.5434506813 | AA152: 0.5452618214 | AB152: 0.5502874872 | AC152: 0.5516940331 | AD152: 0.5490575 | AE152: 0.547120498
F153: SMP AMF BMP | J153: % | N153: =SUMPRODUCT(T153:AE153,$T$23:$AE$23)/$N$23 -> 0.1019835249 | T153: =T122/SUM(T$87:T$88) -> 0.1010433557 | U153: 0.1005021721 | V153: 0.09880035321 | W153: 0.09603028439 | X153: 0.09586671854 | Y153: 0.09650332313 | Z153: 0.0973292103 | AA153: 0.1004153513 | AB153: 0.1038039786 | AC153: 0.1121150523 | AD153: 0.1176257735 | AE153: 0.1198469865
F155: WMP | J155: % | N155: =SUMPRODUCT(T155:AE155,$T$23:$AE$23)/$N$23 -> 1.777245273 | T155: =T136/SUM(T$87:T$88) -> 1.782398786 | U155: =U136/SUM(U$87:U$88) -> 1.820459831 | V155: 1.804269682 | W155: 1.786650092 | X155: 1.790887349 | Y155: 1.801576367 | Z155: 1.784860367 | AA155: 1.775054675 | AB155: 1.750573211 | AC155: 1.739347135 | AD155: 1.74806439 | AE155: 1.755607758
F156: WMP Butter | J156: % | N156: =SUMPRODUCT(T156:AE156,$T$23:$AE$23)/$N$23 -> 0.1168401213 | T156: =T137/SUM(T$87:T$88) -> 0.1140146674 | U156: 0.09236556088 | V156: 0.1017043114 | W156: 0.1119684227 | X156: 0.1095573853 | Y156: 0.1034016413 | Z156: 0.1128931641 | AA156: 0.1182532522 | AB156: 0.1319350983 | AC156: 0.1375788497 | AD156: 0.1321481067 | AE156: 0.1276950154
F157: WMP Butter BMP | J157: % | N157: =SUMPRODUCT(T157:AE157,$T$23:$AE$23)/$N$23 -> 0.01645961959 | T157: =T138/SUM(T$87:T$88) -> 0.01584162896 | U157: 0.01297944521 | V157: 0.01391438193 | W157: 0.01471235992 | X157: 0.01439565104 | Y157: 0.01375692158 | Z157: 0.01504994764 | AA157: 0.01626055472 | AB157: 0.01863097199 | AC157: 0.02108961709 | AD157: 0.02146237396 | AE157: 0.0212486967
F158: WMP AMF | J158: % | N158: =SUMPRODUCT(T158:AE158,$T$23:$AE$23)/$N$23 -> 0.09676487737 | T158: =T139/SUM(T$87:T$88) -> 0.09442488747 | U158: 0.07649548862 | V158: 0.08422967308 | W158: 0.09273022456 | X158: 0.09073344701 | Y158: 0.08563537103 | Z158: 0.0934960787 | AA158: 0.09793520679 | AB158: 0.1092662646 | AC158: 0.1139403175 | AD158: 0.1094426742 | AE158: 0.1057547045
F159: WMP AMF BMP | J159: % | N159: =SUMPRODUCT(T159:AE159,$T$23:$AE$23)/$N$23 -> 0.01821358727 | T159: =T140/SUM(T$87:T$88) -> 0.0175531818 | U159: 0.01436600837 | V159: 0.01544113552 | W159: 0.01639319517 | X159: 0.01604029254 | Y159: 0.01530915496 | Z159: 0.01674466482 | AA159: 0.01803573588 | AB159: 0.02061154079 | AC159: 0.02315490813 | AD159: 0.02344614037 | AE159: 0.02316561468
F161: Calculated Mix to Model
F162: % of milksolids allocated to WMP | J162: % | N162: =SUMPRODUCT(T162:AE162,'Data Input'!$T$40:$AE$40) -> 0.6602587594 | T162: =IFERROR(T33/(T33+(1-T33)*(T155/T149)),0) -> 0.3744805523 | U162: 0.2340270417 | V162: 0.5874701251 | W162: 0.6805097769 | X162: 0.7047320138 | Y162: 0.678704258 | Z162: 0.7021382759 | AA162: 0.6464963938 | AB162: 0.6044959812 | AC162: 0.7217447069 | AD162: 0.6587484796 | AE162: 0.6342213006
F163: % of milkfat allocated to Butter - SMP | J163: % | N163: =SUMPRODUCT(T163:AE163,'Data Input'!$T$40:$AE$40) -> 0.5890091996 | T163: =IFERROR(T34/(T34+(1-T34)*(T150/T152)),0) -> 0.01230900683 | U163: 0.1645128919 | V163: 0.5914578218 | W163: 0.613400113 | X163: 0.6250757455 | Y163: 0.6282887444 | Z163: 0.6266245613 | AA163: 0.6255887166 | AB163: 0.6287513458 | AC163: 0.5384517953 | AD163: 0.5122380421 | AE163: 0.5271051689
F164: % of milkfat allocated to Butter - WMP | J164: % | N164: =SUMPRODUCT(T164:AE164,'Data Input'!$T$40:$AE$40) -> 0.5890091996 | T164: =IFERROR(T34/(T34+(1-T34)*(T156/T158)),0) -> 0.01230900683 | U164: 0.1645128919 | V164: 0.5914578218 | W164: 0.613400113 | X164: 0.6250757455 | Y164: 0.6282887444 | Z164: 0.6266245613 | AA164: 0.6255887166 | AB164: 0.6287513458 | AC164: 0.5384517953 | AD164: 0.5122380421 | AE164: 0.5271051689
F166: Product Weights
F167: SMP | J167: % | N167: =1-N162 -> 0.3397412406 | T167: =1-T162 -> 0.6255194477 | U167: =1-U162 -> 0.7659729583 | V167: 0.4125298749 | W167: 0.3194902231 | X167: 0.2952679862 | Y167: 0.321295742 | Z167: 0.2978617241 | AA167: 0.3535036062 | AB167: 0.3955040188 | AC167: 0.2782552931 | AD167: 0.3412515204 | AE167: 0.3657786994
F168: SMP Butter | J168: % | N168: =N167*N163 -> 0.2001107162 | T168: =T167*T163 -> 0.007699523155 | U168: =U167*U163 -> 0.1260124265 | V168: 0.2439940212 | W168: 0.195975339 | X168: 0.1845648566 | Y168: 0.2018664983 | Z168: 0.1866474722 | AA168: 0.2211478673 | AB168: 0.2486736841 | AC168: 0.1498270621 | AD168: 0.1748020107 | AE168: 0.1928038431
F169: SMP Butter BMP | J169: % | N169: =N168 -> 0.2001107162 | T169: =T168 -> 0.007699523155 | U169: =U168 -> 0.1260124265 | V169: 0.2439940212 | W169: 0.195975339 | X169: 0.1845648566 | Y169: 0.2018664983 | Z169: 0.1866474722 | AA169: 0.2211478673 | AB169: 0.2486736841 | AC169: 0.1498270621 | AD169: 0.1748020107 | AE169: 0.1928038431
F170: SMP AMF | J170: % | N170: =N167*(1-N163) -> 0.1396305244 | T170: =T167*(1-T163) -> 0.6178199246 | U170: 0.6399605318 | V170: 0.1685358537 | W170: 0.1235148841 | X170: 0.1107031296 | Y170: 0.1194292437 | Z170: 0.1112142519 | AA170: 0.1323557389 | AB170: 0.1468303347 | AC170: 0.128428231 | AD170: 0.1664495097 | AE170: 0.1729748563
F171: SMP AMF BMP | J171: % | N171: =N170 -> 0.1396305244 | T171: =T170 -> 0.6178199246 | U171: =U170 -> 0.6399605318 | V171: 0.1685358537 | W171: 0.1235148841 | X171: 0.1107031296 | Y171: 0.1194292437 | Z171: 0.1112142519 | AA171: 0.1323557389 | AB171: 0.1468303347 | AC171: 0.128428231 | AD171: 0.1664495097 | AE171: 0.1729748563
F173: WMP | J173: % | N173: =N162 -> 0.6602587594 | T173: =T162 -> 0.3744805523 | U173: 0.2340270417 | V173: 0.5874701251 | W173: 0.6805097769 | X173: 0.7047320138 | Y173: 0.678704258 | Z173: 0.7021382759 | AA173: 0.6464963938 | AB173: 0.6044959812 | AC173: 0.7217447069 | AD173: 0.6587484796 | AE173: 0.6342213006
F174: WMP Butter | J174: % | N174: =N173*N164 -> 0.3888984834 | T174: =T173*T164 -> 0.004609483676 | U174: 0.03850046541 | V174: 0.3474638005 | W174: 0.4174247741 | X174: 0.4405108889 | Y174: 0.4264222461 | Z174: 0.4399770891 | AA174: 0.4044408493 | AB174: 0.3800776617 | AC174: 0.3886247331 | AD174: 0.3374360314 | AE174: 0.3343013258
F175: WMP Butter BMP | J175: % | N175: =N174 -> 0.3888984834 | T175: =T174 -> 0.004609483676 | U175: =U174 -> 0.03850046541 | V175: 0.3474638005 | W175: 0.4174247741 | X175: 0.4405108889 | Y175: 0.4264222461 | Z175: 0.4399770891 | AA175: 0.4044408493 | AB175: 0.3800776617 | AC175: 0.3886247331 | AD175: 0.3374360314 | AE175: 0.3343013258
F176: WMP AMF | J176: % | N176: =N173*(1-N164) -> 0.271360276 | T176: =T173*(1-T164) -> 0.3698710686 | U176: =U173*(1-U164) -> 0.1955265763 | V176: 0.2400063245 | W176: 0.2630850028 | X176: 0.2642211249 | Y176: 0.2522820119 | Z176: 0.2621611868 | AA176: 0.2420555446 | AB176: 0.2244183195 | AC176: 0.3331199737 | AD176: 0.3213124482 | AE176: 0.2999199748
F177: WMP AMF BMP | J177: % | N177: =N176 -> 0.271360276 | T177: =T176 -> 0.3698710686 | U177: =U176 -> 0.1955265763 | V177: 0.2400063245 | W177: 0.2630850028 | X177: 0.2642211249 | Y177: 0.2522820119 | Z177: 0.2621611868 | AA177: 0.2420555446 | AB177: 0.2244183195 | AC177: 0.3331199737 | AD177: 0.3213124482 | AE177: 0.2999199748
F179: Calculated Standardised Yields
F180: Butter | N180: =SUMPRODUCT(T180:AE180,$T$23:$AE$23)/$N$23 -> 0.1746701516 | T180: =T168*T150+T174*T156 -> 0.00557886483 | U180: =U168*U150+U174*U156 -> 0.08498205671 | V180: 0.1941193027 | W180: 0.1752793686 | X180: 0.1691111074 | Y180: 0.1756705938 | Z180: 0.1721479581 | AA180: 0.1934266868 | AB180: 0.2153774144 | AC180: 0.1532739568 | AD180: 0.1604795415 | AE180: 0.1700603058
F181: AMF | N181: =SUMPRODUCT(T181:AE181,$T$23:$AE$23)/$N$23 -> 0.1042949169 | T181: =T170*T152+T176*T158 -> 0.3707401924 | U181: =U170*U152+U176*U158 -> 0.3574314848 | V181: 0.1110471954 | W181: 0.09149016746 | X181: 0.08400570366 | Y181: 0.08607385476 | Z181: 0.08495050393 | AA181: 0.09587429107 | AB181: 0.1053202474 | AC181: 0.1088088843 | AD181: 0.1265556453 | AE181: 0.1263560378
F182: SMP | N182: =SUMPRODUCT(T182:AE182,$T$23:$AE$23)/$N$23 -> 0.4194076458 | T182: =T167*T149 -> 0.7745107712 | U182: =U167*U149 -> 0.9680539146 | V182: 0.5175021293 | W182: 0.397740941 | X182: 0.3684577509 | Y182: 0.4030628838 | Z182: 0.3701580705 | AA182: 0.4361534072 | AB182: 0.4805240091 | AC182: 0.3342662678 | AD182: 0.4104773008 | AE182: 0.4411632971
F183: BMP | N183: =SUMPRODUCT(T183:AE183,$T$23:$AE$23)/$N$23 -> 0.04410282231 | T183: =T169*T151+T175*T157+T171*T153+T177*T159 -> 0.06969416107 | U183: =U169*U151+U175*U157+U171*U153+U177*U159 -> 0.07906825623 | V183: 0.04691524437 | W183: 0.03920522703 | X183: 0.03707183707 | Y183: 0.03875938298 | Z183: 0.0381634847 | AA183: 0.04425356556 | AB183: 0.05028130529 | AC183: 0.045607638 | AD183: 0.05317601425 | AE183: 0.05597670853
F184: WMP | N184: =SUMPRODUCT(T184:AE184,$T$23:$AE$23)/$N$23 -> 1.173206896 | T184: =T173*T155 -> 0.6674736816 | U184: =U173*U155 -> 0.4260368289 | V184: 1.059954536 | W184: 1.215832856 | X184: 1.262095648 | Y184: 1.222737552 | Z184: 1.253218781 | AA184: 1.147566446 | AB184: 1.058214471 | AC184: 1.255364588 | AD184: 1.151534759 | AE184: 1.113443835
F185: Total | N185: =SUM(N180:N184) -> 1.915682433 | T185: =SUM(T180:T184) -> 1.887997671 | U185: 1.915572541 | V185: 1.929538408 | W185: 1.91954856 | X185: 1.920742047 | Y185: 1.926304267 | Z185: 1.918638798 | AA185: 1.917274397 | AB185: 1.909717447 | AC185: 1.897321335 | AD185: 1.902223261 | AE185: 1.907000185
D187: UNSTANDARDISED YIELD CALCULATION
F188: Recalculated unstandardised Protein Composition Target
F189: SMP | T189: 0.4027418881 | U189: 0.403986045 | V189: 0.3950108162 | W189: 0.3859502615 | X189: 0.3862857632 | Y189: 0.390516227 | Z189: 0.3929132047 | AA189: 0.3997896858 | AB189: 0.4052136068 | AC189: 0.4241888719 | AD189: 0.4365932972 | AE189: 0.4415699114
F190: WMP | T190: 0.2977687822 | U190: 0.2986886544 | V190: 0.292052784 | W190: 0.2853538277 | X190: 0.2856018822 | Y190: 0.2887296921 | Z190: 0.2905019068 | AA190: 0.2955860599 | AB190: 0.299596257 | AC190: 0.3136256931 | AD190: 0.3227969532 | AE190: 0.3264764323
F192: Adjusted Protein Comp Target for gDT spec requirements
F193: SMP | T193: 0.4027418881 | U193: 0.403986045 | V193: 0.3950108162 | W193: 0.3859502615 | X193: 0.3862857632 | Y193: 0.390516227 | Z193: 0.3929132047 | AA193: 0.3997896858 | AB193: 0.4052136068 | AC193: 0.4241888719 | AD193: 0.4365932972 | AE193: 0.4415699114
F194: WMP | T194: 0.2977687822 | U194: 0.2986886544 | V194: 0.292052784 | W194: 0.2853538277 | X194: 0.2856018822 | Y194: 0.2887296921 | Z194: 0.2905019068 | AA194: 0.2955860599 | AB194: 0.299596257 | AC194: 0.3136256931 | AD194: 0.3227969532 | AE194: 0.3264764323
F196: Valued Component Usage: Fat
F197: Butter | J197: kg/mt
F198: AMF | J198: kg/mt
F199: SMP | J199: kg/mt
F200: BMP | J200: kg/mt
F201: WMP | J201: kg/mt
F203: Valued Component Usage: Protein
F204: Butter | J204: kg/mt
F205: AMF | J205: kg/mt
F206: SMP** | J206: kg/mt
F207: BMP | J207: kg/mt
F208: WMP** | J208: kg/mt
F209: ** Note the calculation is different for these two RCP's, as it incorporates the recalculated target protein composition
F211: SMP
F212: Excess Cream
F213: kg cream | J213: kg /m3 wholemilk | T213: 121.5906556 | U213: 118.8497779 | V213: 117.8248715 | W213: 115.6738762 | X213: 115.2591957 | Y213: 115.4033882 | Z213: 117.2598259 | AA213: 121.2999072 | AB213: 126.5761299 | AC213: 136.6870682 | AD213: 142.2997299 | AE213: 144.2704953
F214: Fat | J214: kg /m3 wholemilk | T214: 51.06807536 | U214: 49.91690673 | V214: 49.48644601 | W214: 48.58302801 | X214: 48.40886221 | Y214: 48.46942305 | Z214: 49.24912688 | AA214: 50.94596101 | AB214: 53.16197458 | AC214: 57.40856863 | AD214: 59.76588654 | AE214: 60.59360801
F215: Protein | J215: kg /m3 wholemilk | T215: 2.895688764 | U215: 2.858632783 | V215: 2.768221789 | W215: 2.623393696 | X215: 2.614004143 | Y215: 2.645868261 | Z215: 2.693160422 | AA215: 2.86253296 | AB215: 3.057613755 | AC215: 3.549783859 | AD215: 3.890066033 | AE215: 4.030122917
F217: SMP | J217: kg /m3 wholemilk | T217: 92.28290573 | U217: 93.19644235 | V217: 93.19666708 | W217: 92.28204715 | X217: 92.24463301 | Y217: 92.23276508 | Z217: 91.64852894 | AA217: 92.14644925 | AB217: 92.52691292 | AC217: 93.98153823 | AD217: 95.52558793 | AE217: 96.30298605
F218: Butter | J218: kg /m3 wholemilk | T218: 60.70348715 | U218: 59.32641591 | V218: 58.83509246 | W218: 57.79008695 | X218: 57.58291001 | Y218: 57.64612932 | Z218: 58.57199575 | AA218: 60.56642253 | AB218: 63.17913688 | AC218: 68.14944264 | AD218: 70.88781243 | AE218: 71.8429869
F219: BMP | J219: kg /m3 wholemilk | T219: 8.434372017 | U219: 8.336699928 | V219: 8.049353422 | W219: 7.593467327 | X219: 7.56629483 | Y219: 7.669445767 | Z219: 7.808315734 | AA219: 8.328258292 | AB219: 8.92172549 | AC219: 10.44670495 | AD219: 11.51299688 | AE219: 11.9548115
F220: AMF | J220: kg /m3 wholemilk | T220: 50.27353124 | U220: 49.13306572 | V220: 48.72616052 | W220: 47.86070584 | X220: 47.68912564 | Y220: 47.74148273 | Z220: 48.50826858 | AA220: 50.1600168 | AB220: 52.32381961 | AC220: 56.44013704 | AD220: 58.70800543 | AE220: 59.49906366
F221: BMP | J221: kg /m3 wholemilk | T221: 9.345633947 | U221: 9.227289691 | V221: 8.93256759 | W221: 8.460994196 | X221: 8.430711623 | Y221: 8.534811589 | Z221: 8.687580375 | AA221: 9.23746265 | AB221: 9.870151106 | AC221: 11.46974326 | AD221: 12.57714274 | AE221: 13.03329615
F223: Lactose Standardising
F224: Primary product (excl Losses) | J224: kg/mt | T224: 0 | U224: 0 | V224: 0 | W224: 0 | X224: 0 | Y224: 1.110223025e-13 | Z224: 0 | AA224: 0 | AB224: 0 | AC224: 0 | AD224: 0 | AE224: 0
F225: Primary product (incl Losses) | J225: kg/mt | T225: 0 | U225: 0 | V225: 0 | W225: 0 | X225: 0 | Y225: 1.174528458e-13 | Z225: 0 | AA225: 0 | AB225: 0 | AC225: 0 | AD225: 0 | AE225: 0
F226: BMP (excl Losses) | J226: kg/mt | T226: 166.779552 | U226: 168.9893017 | V226: 152.7363866 | W226: 135.5622251 | X226: 136.2125282 | Y226: 144.3165627 | Z226: 148.8308517 | AA226: 161.4811023 | AB226: 171.1562775 | AC226: 203.0573763 | AD226: 222.4127428 | AE226: 229.872394
F227: BMP (incl Losses and Moisture) | J227: kg/mt | T227: 177.2054337 | U227: 179.5533213 | V227: 162.2843886 | W227: 144.0366196 | X227: 144.727575 | Y227: 153.3382166 | Z227: 158.1347072 | AA227: 171.5757623 | AB227: 181.8557612 | AC227: 215.7510918 | AD227: 236.3164194 | AE227: 244.2423953
F229: WMP
F230: Excess Cream
F231: kg cream | J231: kg /m3 wholemilk | T231: 41.45422126 | U231: 37.89155461 | V231: 36.86624286 | W231: 35.55587625 | X231: 35.17745492 | Y231: 35.33429285 | Z231: 37.71716247 | AA231: 41.28790505 | AB231: 46.19470592 | AC231: 54.9342259 | AD231: 59.10643743 | AE231: 60.35401395
F232: Fat | J232: kg /m3 wholemilk | T232: 17.41077293 | U232: 15.91445293 | V232: 15.483822 | W232: 14.93346802 | X232: 14.77453107 | Y232: 14.840403 | Z232: 15.84120824 | AA232: 17.34092012 | AB232: 19.40177649 | AC232: 23.07237488 | AD232: 24.82470372 | AE232: 25.34868586
F233: Protein | J233: kg /m3 wholemilk | T233: 0.9872347683 | U233: 0.9113861389 | V233: 0.8661493581 | W233: 0.8063796653 | X233: 0.7978019655 | Y233: 0.8101138572 | Z233: 0.8662674399 | AA233: 0.9743452554 | AB233: 1.115894192 | AC233: 1.426650165 | AD233: 1.615800289 | AE233: 1.685958687
F235: WMP | J235: kg /m3 wholemilk | T235: 131.5266432 | U235: 132.8743118 | V235: 132.8749687 | W235: 131.4970827 | X235: 131.4377194 | Y235: 131.4170566 | Z235: 130.5537832 | AA235: 131.322648 | AB235: 131.9274393 | AC235: 134.1740691 | AD235: 136.5343391 | AE235: 137.7194054
F236: Butter | J236: kg /m3 wholemilk | T236: 20.69579916 | U236: 18.91438223 | V236: 18.40892149 | W236: 17.763537 | X236: 17.57447819 | Y236: 17.65013356 | Z236: 18.8399519 | AA236: 20.61552033 | AB236: 23.05759901 | AC236: 27.38910804 | AD236: 29.44437107 | AE236: 30.05474283
F237: BMP | J237: kg /m3 wholemilk | T237: 2.875552583 | U237: 2.657897441 | V237: 2.518563479 | W237: 2.334082624 | X237: 2.309256052 | Y237: 2.34823645 | Z237: 2.511580678 | AA237: 2.834761754 | AB237: 3.256036391 | AC237: 4.198507272 | AD237: 4.782104858 | AE237: 5.001167139
F238: AMF | J238: kg /m3 wholemilk | T238: 17.13988692 | U238: 15.66454961 | V238: 15.24593615 | W238: 14.71144038 | X238: 14.55486529 | Y238: 14.6175217 | Z238: 15.60290775 | AA238: 17.07340145 | AB238: 19.09588688 | AC238: 22.6831644 | AD238: 24.38529611 | AE238: 24.89079497
F239: BMP | J239: kg /m3 wholemilk | T239: 3.186231504 | U239: 2.941834283 | V239: 2.794912501 | W239: 2.600743335 | X239: 2.57307867 | Y239: 2.613194784 | Z239: 2.794400196 | AA239: 3.144235554 | AB239: 3.602169919 | AC239: 4.609664071 | AD239: 5.224114629 | AE239: 5.452339621
F241: Lactose Standardising
F242: Primary product (excl Losses) | J242: kg/mt | T242: 0 | U242: 0 | V242: 0 | W242: 1.110223025e-13 | X242: 0 | Y242: 0 | Z242: 0 | AA242: 1.110223025e-13 | AB242: 0 | AC242: 0 | AD242: 0 | AE242: 0
F243: Primary product (incl Losses) | J243: kg/mt | T243: 0 | U243: 0 | V243: 0 | W243: 1.172525148e-13 | X243: 0 | Y243: 0 | Z243: 0 | AA243: 1.172525148e-13 | AB243: 0 | AC243: 0 | AD243: 0 | AE243: 0
F244: BMP (excl Losses) | J244: kg/mt | T244: 166.779552 | U244: 168.9893017 | V244: 152.7363866 | W244: 135.5622251 | X244: 136.2125282 | Y244: 144.3165627 | Z244: 148.8308517 | AA244: 161.4811023 | AB244: 171.1562775 | AC244: 203.0573763 | AD244: 222.4127428 | AE244: 229.872394
F245: BMP (incl Losses and Moisture) | J245: kg/mt | T245: 177.2054337 | U245: 179.5533213 | V245: 162.2843886 | W245: 144.0366196 | X245: 144.727575 | Y245: 153.3382166 | Z245: 158.1347072 | AA245: 171.5757623 | AB245: 181.8557612 | AC245: 215.7510918 | AD245: 236.3164194 | AE245: 244.2423953
F247: Unstandardised Monthly National Average Yields
F248: SMP | J248: % | N248: =SUMPRODUCT(T248:AE248,$T$23:$AE$23)/$N$23 -> 1.003161037 | T248: =T217/SUM(T$87:T$88) -> 1.001574518 | U248: 1.019170165 | V248: 1.034527488 | W248: 1.050682551 | X248: 1.052262791 | Y248: 1.046422802 | Z248: 1.030301069 | AA248: 1.005372029 | AB248: 0.9768126551 | AC248: 0.9227382273 | AD248: 0.8977540459 | AE248: 0.8900459592
F249: SMP Butter | J249: % | N249: =SUMPRODUCT(T249:AE249,$T$23:$AE$23)/$N$23 -> 0.6599862506 | T249: =T218/SUM(T$87:T$88) -> 0.6588334579 | U249: 0.6487770518 | V249: 0.6530976089 | W249: 0.6579723562 | X249: 0.6568658967 | Y249: 0.6540216385 | Z249: 0.6584589029 | AA249: 0.660815339 | AB249: 0.6669862691 | AC249: 0.6691111582 | AD249: 0.666207053 | AE249: 0.6639831516
F250: SMP Butter BMP | J250: % | N250: =SUMPRODUCT(T250:AE250,$T$23:$AE$23)/$N$23 -> 0.0924613696 | T250: =T219/SUM(T$87:T$88) -> 0.09154081161 | U250: 0.09116781316 | V250: 0.08935166503 | W250: 0.08645585865 | X250: 0.08631104327 | Y250: 0.08701336145 | Z250: 0.08778008919 | AA250: 0.09086620271 | AB250: 0.09418723794 | AC250: 0.1025688044 | AD250: 0.1081996955 | AE250: 0.1104880763
F251: SMP AMF | J251: % | N251: =SUMPRODUCT(T251:AE251,$T$23:$AE$23)/$N$23 -> 0.5465886878 | T251: =T220/SUM(T$87:T$88) -> 0.5456339658 | U251: 0.537305432 | V251: 0.5408836393 | W251: 0.5449208169 | X251: 0.5440044671 | Y251: 0.5416489039 | Z251: 0.5453237661 | AA251: 0.5472753239 | AB251: 0.5523859767 | AC251: 0.5541457714 | AD251: 0.551740644 | AE251: 0.549898849
F252: SMP AMF BMP | J252: % | N252: =SUMPRODUCT(T252:AE252,$T$23:$AE$23)/$N$23 -> 0.1023688786 | T252: =T221/SUM(T$87:T$88) -> 0.1014310152 | U252: 0.1009070531 | V252: 0.09915576387 | W252: 0.09633313568 | X252: 0.09617171047 | Y252: 0.09683133153 | Z252: 0.09766467011 | AA252: 0.1007861577 | AB252: 0.104199829 | AC252: 0.1126132936 | AD252: 0.1182005893 | AE252: 0.1204555855
... 1195 more rows

Sheet Summary
J3: 1 | L3: Check
S4: MONTHLY
I5: Period Number | O5: 1 | P5: 1 | Q5: 1 | R5: =IF(Q5=12,1,Q5+1) -> 2 | S5: 3 | T5: 4 | U5: 5 | V5: 6 | W5: 7 | X5: 8 | Y5: 9 | Z5: 10 | AA5: 11 | AB5: 12 | AC5: 1 | AD5: 2 | AE5: 3 | AF5: 4 | AG5: 5 | AH5: 6 | AI5: 7 | AJ5: 8
O6: =Global!R33 -> 2024-04-30 | P6: =Global!S33 -> 2024-05-31 | Q6: =Global!T33 -> 2024-06-30 | R6: =Global!U33 -> 2024-07-31 | S6: =Global!V33 -> 2024-08-31 | T6: =Global!W33 -> 2024-09-30 | U6: =Global!X33 -> 2024-10-31 | V6: =Global!Y33 -> 2024-11-30 | W6: =Global!Z33 -> 2024-12-31 | X6: =Global!AA33 -> 2025-01-31 | Y6: =Global!AB33 -> 2025-02-28 | Z6: =Global!AC33 -> 2025-03-31 | AA6: =Global!AD33 -> 2025-04-30 | AB6: =Global!AE33 -> 2025-05-31 | AC6: =Global!AF33 -> 2025-06-30 | AD6: =Global!AG33 -> 2025-07-31 | AE6: =Global!AH33 -> 2025-08-31 | AF6: =Global!AI33 -> 2025-09-30 | AG6: =Global!AJ33 -> 2025-10-31 | AH6: =Global!AK33 -> 2025-11-30 | AI6: =Global!AL33 -> 2025-12-31 | AJ6: =Global!AM33 -> 2026-01-31
I7: Period | O7: 1 | P7: 1 | Q7: 1 | R7: =Q7+1 -> 2 | S7: 3 | T7: 4 | U7: 5 | V7: 6 | W7: 7 | X7: 8 | Y7: 9 | Z7: 10 | AA7: 11 | AB7: 12 | AC7: 13 | AD7: 14 | AE7: 15 | AF7: 16 | AG7: 17 | AH7: 18 | AI7: 19 | AJ7: 20
I9: Financial Year | L9: 2025-07-01 | O9: =Global!R33 -> 2024-04-30 | P9: =Global!S33 -> 2024-05-31 | Q9: =Global!T33 -> 2024-06-30 | R9: =Global!U33 -> 2024-07-31 | S9: =Global!V33 -> 2024-08-31 | T9: =Global!W33 -> 2024-09-30 | U9: =Global!X33 -> 2024-10-31 | V9: =Global!Y33 -> 2024-11-30 | W9: =Global!Z33 -> 2024-12-31 | X9: =Global!AA33 -> 2025-01-31 | Y9: =Global!AB33 -> 2025-02-28 | Z9: =Global!AC33 -> 2025-03-31 | AA9: =Global!AD33 -> 2025-04-30 | AB9: =Global!AE33 -> 2025-05-31 | AC9: =Global!AF33 -> 2025-06-30 | AD9: =Global!AG33 -> 2025-07-31 | AE9: =Global!AH33 -> 2025-08-31 | AF9: =Global!AI33 -> 2025-09-30 | AG9: =Global!AJ33 -> 2025-10-31 | AH9: =Global!AK33 -> 2025-11-30 | AI9: =Global!AL33 -> 2025-12-31 | AJ9: =Global!AM33 -> 2026-01-31
I10: KGMS '000s
I11: Milk Supply Paid for | L11: =SUM(O11:AB11) -> 1509030.46 | O11: =SUM('Data Input'!R28,'Data Input'!R34) -> 0 | P11: =SUM('Data Input'!S28,'Data Input'!S34) -> 0 | Q11: =SUM('Data Input'!T28,'Data Input'!T34) -> 14455.7293 | R11: =SUM('Data Input'!U28,'Data Input'!U34) -> 20574.0055 | S11: =SUM('Data Input'!V28,'Data Input'!V34) -> 97980.5826 | T11: =SUM('Data Input'!W28,'Data Input'!W34) -> 174221.2493 | U11: =SUM('Data Input'!X28,'Data Input'!X34) -> 205017.1423 | V11: =SUM('Data Input'!Y28,'Data Input'!Y34) -> 191724.2668 | W11: =SUM('Data Input'!Z28,'Data Input'!Z34) -> 178480.1745 | X11: =SUM('Data Input'!AA28,'Data Input'!AA34) -> 165720.227 | Y11: =SUM('Data Input'!AB28,'Data Input'!AB34) -> 133724.5228 | Z11: =SUM('Data Input'!AC28,'Data Input'!AC34) -> 134881.893 | AA11: =SUM('Data Input'!AD28,'Data Input'!AD34) -> 115226.9877 | AB11: =SUM('Data Input'!AE28,'Data Input'!AE34) -> 77023.6789
I12: Milk Supply Collected | L12: =SUM(O12:AB12) -> 1509007.679 | O12: ='Data Input'!R39 -> 0 | P12: ='Data Input'!S39 -> 0 | Q12: ='Data Input'!T39 -> 14455.7293 | R12: ='Data Input'!U39 -> 20574.0055 | S12: ='Data Input'!V39 -> 97980.5826 | T12: ='Data Input'!W39 -> 174221.2493 | U12: ='Data Input'!X39 -> 204994.3618 | V12: ='Data Input'!Y39 -> 191724.2668 | W12: ='Data Input'!Z39 -> 178480.1745 | X12: ='Data Input'!AA39 -> 165720.227 | Y12: ='Data Input'!AB39 -> 133724.5228 | Z12: ='Data Input'!AC39 -> 134881.893 | AA12: ='Data Input'!AD39 -> 115226.9877 | AB12: ='Data Input'!AE39 -> 77023.6789
I14: $'000
I16: NZD Revenue
I17: Sales | J17: =$J$3&I17 -> 1Sales | L17: =SUM(O17:AJ17) -> 19419672.73 | O17: =-SUMIF(Calculations!$I$15:$I$1783,$J17,Calculations!R$15:R$1783) -> 0 | P17: =-SUMIF(Calculations!$I$15:$I$1783,$J17,Calculations!S$15:S$1783) -> 0 | Q17: =-SUMIF(Calculations!$I$15:$I$1783,$J17,Calculations!T$15:T$1783) -> 0 | R17: =-SUMIF(Calculations!$I$15:$I$1783,$J17,Calculations!U$15:U$1783) -> 0 | S17: =-SUMIF(Calculations!$I$15:$I$1783,$J17,Calculations!V$15:V$1783) -> 62923.15068 | T17: =-SUMIF(Calculations!$I$15:$I$1783,$J17,Calculations!W$15:W$1783) -> 483214.0015 | U17: =-SUMIF(Calculations!$I$15:$I$1783,$J17,Calculations!X$15:X$1783) -> 1569393.318 | V17: =-SUMIF(Calculations!$I$15:$I$1783,$J17,Calculations!Y$15:Y$1783) -> 1991141.604 | W17: =-SUMIF(Calculations!$I$15:$I$1783,$J17,Calculations!Z$15:Z$1783) -> 2210743.037 | X17: =-SUMIF(Calculations!$I$15:$I$1783,$J17,Calculations!AA$15:AA$1783) -> 1975375.492 | Y17: =-SUMIF(Calculations!$I$15:$I$1783,$J17,Calculations!AB$15:AB$1783) -> 2066590.975 | Z17: =-SUMIF(Calculations!$I$15:$I$1783,$J17,Calculations!AC$15:AC$1783) -> 1845388.391 | AA17: =-SUMIF(Calculations!$I$15:$I$1783,$J17,Calculations!AD$15:AD$1783) -> 1433457.311 | AB17: =-SUMIF(Calculations!$I$15:$I$1783,$J17,Calculations!AE$15:AE$1783) -> 1597527.305 | AC17: =-SUMIF(Calculations!$I$15:$I$1783,$J17,Calculations!AF$15:AF$1783) -> 1545409.129 | AD17: =-SUMIF(Calculations!$I$15:$I$1783,$J17,Calculations!AG$15:AG$1783) -> 1516394.918 | AE17: =-SUMIF(Calculations!$I$15:$I$1783,$J17,Calculations!AH$15:AH$1783) -> 647342.5277 | AF17: =-SUMIF(Calculations!$I$15:$I$1783,$J17,Calculations!AI$15:AI$1783) -> 403892.6445 | AG17: =-SUMIF(Calculations!$I$15:$I$1783,$J17,Calculations!AJ$15:AJ$1783) -> 70878.92896 | AH17: =-SUMIF(Calculations!$I$15:$I$1783,$J17,Calculations!AK$15:AK$1783) -> 0 | AI17: =-SUMIF(Calculations!$I$15:$I$1783,$J17,Calculations!AL$15:AL$1783) -> 0 | AJ17: =-SUMIF(Calculations!$I$15:$I$1783,$J17,Calculations!AM$15:AM$1783) -> 0
I18: Downgrade expense (excl rework) | J18: =$J$3&I18 -> 1Downgrade expense (excl rework) | L18: =SUM(O18:AJ18) -> -13989.38076 | O18: =-SUMIF(Calculations!$I$15:$I$1783,$J18,Calculations!R$15:R$1783) -> 0 | P18: =-SUMIF(Calculations!$I$15:$I$1783,$J18,Calculations!S$15:S$1783) -> 0 | Q18: =-SUMIF(Calculations!$I$15:$I$1783,$J18,Calculations!T$15:T$1783) -> 0 | R18: =-SUMIF(Calculations!$I$15:$I$1783,$J18,Calculations!U$15:U$1783) -> 0 | S18: =-SUMIF(Calculations!$I$15:$I$1783,$J18,Calculations!V$15:V$1783) -> -75.50778082 | T18: =-SUMIF(Calculations!$I$15:$I$1783,$J18,Calculations!W$15:W$1783) -> -331.820159 | U18: =-SUMIF(Calculations!$I$15:$I$1783,$J18,Calculations!X$15:X$1783) -> -1147.504243 | V18: =-SUMIF(Calculations!$I$15:$I$1783,$J18,Calculations!Y$15:Y$1783) -> -1386.054253 | W18: =-SUMIF(Calculations!$I$15:$I$1783,$J18,Calculations!Z$15:Z$1783) -> -1649.352278 | X18: =-SUMIF(Calculations!$I$15:$I$1783,$J18,Calculations!AA$15:AA$1783) -> -1501.015713 | Y18: =-SUMIF(Calculations!$I$15:$I$1783,$J18,Calculations!AB$15:AB$1783) -> -1539.198382 | Z18: =-SUMIF(Calculations!$I$15:$I$1783,$J18,Calculations!AC$15:AC$1783) -> -1322.240419 | AA18: =-SUMIF(Calculations!$I$15:$I$1783,$J18,Calculations!AD$15:AD$1783) -> -1029.893806 | AB18: =-SUMIF(Calculations!$I$15:$I$1783,$J18,Calculations!AE$15:AE$1783) -> -1100.230383 | AC18: =-SUMIF(Calculations!$I$15:$I$1783,$J18,Calculations!AF$15:AF$1783) -> -1020.629536 | AD18: =-SUMIF(Calculations!$I$15:$I$1783,$J18,Calculations!AG$15:AG$1783) -> -1046.274441 | AE18: =-SUMIF(Calculations!$I$15:$I$1783,$J18,Calculations!AH$15:AH$1783) -> -467.0538572 | AF18: =-SUMIF(Calculations!$I$15:$I$1783,$J18,Calculations!AI$15:AI$1783) -> -301.7265846 | AG18: =-SUMIF(Calculations!$I$15:$I$1783,$J18,Calculations!AJ$15:AJ$1783) -> -70.87892896 | AH18: =-SUMIF(Calculations!$I$15:$I$1783,$J18,Calculations!AK$15:AK$1783) -> 0 | AI18: =-SUMIF(Calculations!$I$15:$I$1783,$J18,Calculations!AL$15:AL$1783) -> 0 | AJ18: =-SUMIF(Calculations!$I$15:$I$1783,$J18,Calculations!AM$15:AM$1783) -> 0
I19: Net Sales | L19: =SUM(L17:L18) -> 19405683.35 | O19: =SUM(O17:O18) -> 0 | P19: =SUM(P17:P18) -> 0 | Q19: =SUM(Q17:Q18) -> 0 | R19: 0 | S19: 62847.6429 | T19: 482882.1813 | U19: 1568245.813 | V19: 1989755.55 | W19: 2209093.684 | X19: 1973874.476 | Y19: 2065051.777 | Z19: 1844066.15 | AA19: 1432427.417 | AB19: 1596427.075 | AC19: 1544388.5 | AD19: 1515348.644 | AE19: 646875.4738 | AF19: 403590.9179 | AG19: 70808.05003 | AH19: 0 | AI19: 0 | AJ19: 0
I20: Average conversion rate (Sales) | L20: =Calculations!N728/Calculations!N736 -> 0.5988077291
I21: Non-Milk Costs
I22: Commission | J22: =$J$3&I22 -> 1Commission | L22: =SUM(O22:AJ22) -> 124181.1765 | O22: =SUMIF(Calculations!$I$15:$I$1783,$J22,Calculations!R$15:R$1783) -> 0 | P22: =SUMIF(Calculations!$I$15:$I$1783,$J22,Calculations!S$15:S$1783) -> 0 | Q22: =SUMIF(Calculations!$I$15:$I$1783,$J22,Calculations!T$15:T$1783) -> 0 | R22: =SUMIF(Calculations!$I$15:$I$1783,$J22,Calculations!U$15:U$1783) -> 0 | S22: =SUMIF(Calculations!$I$15:$I$1783,$J22,Calculations!V$15:V$1783) -> 7514.525022 | T22: =SUMIF(Calculations!$I$15:$I$1783,$J22,Calculations!W$15:W$1783) -> 8358.079915 | U22: =SUMIF(Calculations!$I$15:$I$1783,$J22,Calculations!X$15:X$1783) -> 10366.75583 | V22: =SUMIF(Calculations!$I$15:$I$1783,$J22,Calculations!Y$15:Y$1783) -> 11139.81452 | W22: =SUMIF(Calculations!$I$15:$I$1783,$J22,Calculations!Z$15:Z$1783) -> 11714.84782 | X22: =SUMIF(Calculations!$I$15:$I$1783,$J22,Calculations!AA$15:AA$1783) -> 11110.68399 | Y22: =SUMIF(Calculations!$I$15:$I$1783,$J22,Calculations!AB$15:AB$1783) -> 11319.57165 | Z22: =SUMIF(Calculations!$I$15:$I$1783,$J22,Calculations!AC$15:AC$1783) -> 10870.75673 | AA22: =SUMIF(Calculations!$I$15:$I$1783,$J22,Calculations!AD$15:AD$1783) -> 9994.017016 | AB22: =SUMIF(Calculations!$I$15:$I$1783,$J22,Calculations!AE$15:AE$1783) -> 10104.05933 | AC22: =SUMIF(Calculations!$I$15:$I$1783,$J22,Calculations!AF$15:AF$1783) -> 10007.54658 | AD22: =SUMIF(Calculations!$I$15:$I$1783,$J22,Calculations!AG$15:AG$1783) -> 9943.605117 | AE22: =SUMIF(Calculations!$I$15:$I$1783,$J22,Calculations!AH$15:AH$1783) -> 1052.714331 | AF22: =SUMIF(Calculations!$I$15:$I$1783,$J22,Calculations!AI$15:AI$1783) -> 614.6724635 | AG22: =SUMIF(Calculations!$I$15:$I$1783,$J22,Calculations!AJ$15:AJ$1783) -> 69.52618241 | AH22: =SUMIF(Calculations!$I$15:$I$1783,$J22,Calculations!AK$15:AK$1783) -> 0 | AI22: =SUMIF(Calculations!$I$15:$I$1783,$J22,Calculations!AL$15:AL$1783) -> 0 | AJ22: =SUMIF(Calculations!$I$15:$I$1783,$J22,Calculations!AM$15:AM$1783) -> 0
I23: Collection Costs | J23: 1Collection Costs | L23: =SUM(O23:AJ23) -> 458955.8017 | O23: =SUMIF(Calculations!$I$15:$I$1783,$J23,Calculations!R$15:R$1783) -> 0 | P23: =SUMIF(Calculations!$I$15:$I$1783,$J23,Calculations!S$15:S$1783) -> 0 | Q23: =SUMIF(Calculations!$I$15:$I$1783,$J23,Calculations!T$15:T$1783) -> 18972.99633 | R23: =SUMIF(Calculations!$I$15:$I$1783,$J23,Calculations!U$15:U$1783) -> 21226.31359 | S23: =SUMIF(Calculations!$I$15:$I$1783,$J23,Calculations!V$15:V$1783) -> 28836.13056 | T23: =SUMIF(Calculations!$I$15:$I$1783,$J23,Calculations!W$15:W$1783) -> 47041.02157 | U23: =SUMIF(Calculations!$I$15:$I$1783,$J23,Calculations!X$15:X$1783) -> 61340.8887 | V23: =SUMIF(Calculations!$I$15:$I$1783,$J23,Calculations!Y$15:Y$1783) -> 57789.00569 | W23: =SUMIF(Calculations!$I$15:$I$1783,$J23,Calculations!Z$15:Z$1783) -> 50549.47314 | X23: =SUMIF(Calculations!$I$15:$I$1783,$J23,Calculations!AA$15:AA$1783) -> 46557.13545 | Y23: =SUMIF(Calculations!$I$15:$I$1783,$J23,Calculations!AB$15:AB$1783) -> 35215.23596 | Z23: =SUMIF(Calculations!$I$15:$I$1783,$J23,Calculations!AC$15:AC$1783) -> 34370.63402 | AA23: =SUMIF(Calculations!$I$15:$I$1783,$J23,Calculations!AD$15:AD$1783) -> 30659.4423 | AB23: =SUMIF(Calculations!$I$15:$I$1783,$J23,Calculations!AE$15:AE$1783) -> 26397.52444 | AC23: =SUMIF(Calculations!$I$15:$I$1783,$J23,Calculations!AF$15:AF$1783) -> 0 | AD23: =SUMIF(Calculations!$I$15:$I$1783,$J23,Calculations!AG$15:AG$1783) -> 0 | AE23: =SUMIF(Calculations!$I$15:$I$1783,$J23,Calculations!AH$15:AH$1783) -> 0 | AF23: =SUMIF(Calculations!$I$15:$I$1783,$J23,Calculations!AI$15:AI$1783) -> 0 | AG23: =SUMIF(Calculations!$I$15:$I$1783,$J23,Calculations!AJ$15:AJ$1783) -> 0 | AH23: =SUMIF(Calculations!$I$15:$I$1783,$J23,Calculations!AK$15:AK$1783) -> 0 | AI23: =SUMIF(Calculations!$I$15:$I$1783,$J23,Calculations!AL$15:AL$1783) -> 0 | AJ23: =SUMIF(Calculations!$I$15:$I$1783,$J23,Calculations!AM$15:AM$1783) -> 0
I24: Lactose | J24: 1Lactose | L24: =SUM(O24:AJ24) -> 651839.0886 | O24: =SUMIF(Calculations!$I$15:$I$1783,$J24,Calculations!R$15:R$1783) -> 0 | P24: =SUMIF(Calculations!$I$15:$I$1783,$J24,Calculations!S$15:S$1783) -> 0 | Q24: =SUMIF(Calculations!$I$15:$I$1783,$J24,Calculations!T$15:T$1783) -> 5662.621364 | R24: =SUMIF(Calculations!$I$15:$I$1783,$J24,Calculations!U$15:U$1783) -> 8335.489702 | S24: =SUMIF(Calculations!$I$15:$I$1783,$J24,Calculations!V$15:V$1783) -> 36823.78795 | T24: =SUMIF(Calculations!$I$15:$I$1783,$J24,Calculations!W$15:W$1783) -> 57999.81253 | U24: =SUMIF(Calculations!$I$15:$I$1783,$J24,Calculations!X$15:X$1783) -> 71172.95802 | V24: =SUMIF(Calculations!$I$15:$I$1783,$J24,Calculations!Y$15:Y$1783) -> 72811.76282 | W24: =SUMIF(Calculations!$I$15:$I$1783,$J24,Calculations!Z$15:Z$1783) -> 68326.4978 | X24: =SUMIF(Calculations!$I$15:$I$1783,$J24,Calculations!AA$15:AA$1783) -> 68631.81519 | Y24: =SUMIF(Calculations!$I$15:$I$1783,$J24,Calculations!AB$15:AB$1783) -> 58587.50456 | Z24: =SUMIF(Calculations!$I$15:$I$1783,$J24,Calculations!AC$15:AC$1783) -> 74711.53367 | AA24: =SUMIF(Calculations!$I$15:$I$1783,$J24,Calculations!AD$15:AD$1783) -> 74951.8128 | AB24: =SUMIF(Calculations!$I$15:$I$1783,$J24,Calculations!AE$15:AE$1783) -> 53823.49219 | AC24: =SUMIF(Calculations!$I$15:$I$1783,$J24,Calculations!AF$15:AF$1783) -> 0 | AD24: =SUMIF(Calculations!$I$15:$I$1783,$J24,Calculations!AG$15:AG$1783) -> 0 | AE24: =SUMIF(Calculations!$I$15:$I$1783,$J24,Calculations!AH$15:AH$1783) -> 0 | AF24: =SUMIF(Calculations!$I$15:$I$1783,$J24,Calculations!AI$15:AI$1783) -> 0 | AG24: =SUMIF(Calculations!$I$15:$I$1783,$J24,Calculations!AJ$15:AJ$1783) -> 0 | AH24: =SUMIF(Calculations!$I$15:$I$1783,$J24,Calculations!AK$15:AK$1783) -> 0 | AI24: =SUMIF(Calculations!$I$15:$I$1783,$J24,Calculations!AL$15:AL$1783) -> 0 | AJ24: =SUMIF(Calculations!$I$15:$I$1783,$J24,Calculations!AM$15:AM$1783) -> 0
I25: Operating Costs
I26: Packaging | J26: 1Packaging | L26: =SUM(O26:AJ26) -> 226928.2091 | O26: =SUMIF(Calculations!$I$15:$I$1783,$J26,Calculations!R$15:R$1783) -> 0 | P26: =SUMIF(Calculations!$I$15:$I$1783,$J26,Calculations!S$15:S$1783) -> 0 | Q26: =SUMIF(Calculations!$I$15:$I$1783,$J26,Calculations!T$15:T$1783) -> 3790.0318 | R26: =SUMIF(Calculations!$I$15:$I$1783,$J26,Calculations!U$15:U$1783) -> 5237.371725 | S26: =SUMIF(Calculations!$I$15:$I$1783,$J26,Calculations!V$15:V$1783) -> 14972.71367 | T26: =SUMIF(Calculations!$I$15:$I$1783,$J26,Calculations!W$15:W$1783) -> 25332.16551 | U26: =SUMIF(Calculations!$I$15:$I$1783,$J26,Calculations!X$15:X$1783) -> 29245.00703 | V26: =SUMIF(Calculations!$I$15:$I$1783,$J26,Calculations!Y$15:Y$1783) -> 27479.37748 | W26: =SUMIF(Calculations!$I$15:$I$1783,$J26,Calculations!Z$15:Z$1783) -> 25493.48416 | X26: =SUMIF(Calculations!$I$15:$I$1783,$J26,Calculations!AA$15:AA$1783) -> 24258.55472 | Y26: =SUMIF(Calculations!$I$15:$I$1783,$J26,Calculations!AB$15:AB$1783) -> 19936.80411 | Z26: =SUMIF(Calculations!$I$15:$I$1783,$J26,Calculations!AC$15:AC$1783) -> 20554.61167 | AA26: =SUMIF(Calculations!$I$15:$I$1783,$J26,Calculations!AD$15:AD$1783) -> 18371.76517 | AB26: =SUMIF(Calculations!$I$15:$I$1783,$J26,Calculations!AE$15:AE$1783) -> 12256.32199 | AC26: =SUMIF(Calculations!$I$15:$I$1783,$J26,Calculations!AF$15:AF$1783) -> 0 | AD26: =SUMIF(Calculations!$I$15:$I$1783,$J26,Calculations!AG$15:AG$1783) -> 0 | AE26: =SUMIF(Calculations!$I$15:$I$1783,$J26,Calculations!AH$15:AH$1783) -> 0 | AF26: =SUMIF(Calculations!$I$15:$I$1783,$J26,Calculations!AI$15:AI$1783) -> 0 | AG26: =SUMIF(Calculations!$I$15:$I$1783,$J26,Calculations!AJ$15:AJ$1783) -> 0 | AH26: =SUMIF(Calculations!$I$15:$I$1783,$J26,Calculations!AK$15:AK$1783) -> 0 | AI26: =SUMIF(Calculations!$I$15:$I$1783,$J26,Calculations!AL$15:AL$1783) -> 0 | AJ26: =SUMIF(Calculations!$I$15:$I$1783,$J26,Calculations!AM$15:AM$1783) -> 0
I27: Energy - Variable | J27: 1Energy - Variable | L27: 378660.992 | O27: =SUMIF(Calculations!$I$15:$I$1783,$J27,Calculations!R$15:R$1783) -> 0 | P27: =SUMIF(Calculations!$I$15:$I$1783,$J27,Calculations!S$15:S$1783) -> 0 | Q27: =SUMIF(Calculations!$I$15:$I$1783,$J27,Calculations!T$15:T$1783) -> 3615.299893 | R27: =SUMIF(Calculations!$I$15:$I$1783,$J27,Calculations!U$15:U$1783) -> 5219.480234 | S27: =SUMIF(Calculations!$I$15:$I$1783,$J27,Calculations!V$15:V$1783) -> 24755.72942 | T27: =SUMIF(Calculations!$I$15:$I$1783,$J27,Calculations!W$15:W$1783) -> 43772.80904 | U27: =SUMIF(Calculations!$I$15:$I$1783,$J27,Calculations!X$15:X$1783) -> 51564.69623 | V27: =SUMIF(Calculations!$I$15:$I$1783,$J27,Calculations!Y$15:Y$1783) -> 48526.5563 | W27: =SUMIF(Calculations!$I$15:$I$1783,$J27,Calculations!Z$15:Z$1783) -> 44925.65475 | X27: =SUMIF(Calculations!$I$15:$I$1783,$J27,Calculations!AA$15:AA$1783) -> 41599.04666 | Y27: =SUMIF(Calculations!$I$15:$I$1783,$J27,Calculations!AB$15:AB$1783) -> 33212.52768 | Z27: =SUMIF(Calculations!$I$15:$I$1783,$J27,Calculations!AC$15:AC$1783) -> 33436.29991 | AA27: =SUMIF(Calculations!$I$15:$I$1783,$J27,Calculations!AD$15:AD$1783) -> 28724.51996 | AB27: =SUMIF(Calculations!$I$15:$I$1783,$J27,Calculations!AE$15:AE$1783) -> 19308.37192 | AC27: =SUMIF(Calculations!$I$15:$I$1783,$J27,Calculations!AF$15:AF$1783) -> 0 | AD27: =SUMIF(Calculations!$I$15:$I$1783,$J27,Calculations!AG$15:AG$1783) -> 0 | AE27: =SUMIF(Calculations!$I$15:$I$1783,$J27,Calculations!AH$15:AH$1783) -> 0 | AF27: =SUMIF(Calculations!$I$15:$I$1783,$J27,Calculations!AI$15:AI$1783) -> 0 | AG27: =SUMIF(Calculations!$I$15:$I$1783,$J27,Calculations!AJ$15:AJ$1783) -> 0 | AH27: =SUMIF(Calculations!$I$15:$I$1783,$J27,Calculations!AK$15:AK$1783) -> 0 | AI27: =SUMIF(Calculations!$I$15:$I$1783,$J27,Calculations!AL$15:AL$1783) -> 0 | AJ27: =SUMIF(Calculations!$I$15:$I$1783,$J27,Calculations!AM$15:AM$1783) -> 0
I28: Water | J28: 1Water | L28: 8736.859506 | O28: =SUMIF(Calculations!$I$15:$I$1783,$J28,Calculations!R$15:R$1783) -> 0 | P28: =SUMIF(Calculations!$I$15:$I$1783,$J28,Calculations!S$15:S$1783) -> 0 | Q28: =SUMIF(Calculations!$I$15:$I$1783,$J28,Calculations!T$15:T$1783) -> 259.2646876 | R28: =SUMIF(Calculations!$I$15:$I$1783,$J28,Calculations!U$15:U$1783) -> 291.7519785 | S28: =SUMIF(Calculations!$I$15:$I$1783,$J28,Calculations!V$15:V$1783) -> 624.4503269 | T28: =SUMIF(Calculations!$I$15:$I$1783,$J28,Calculations!W$15:W$1783) -> 938.3070683 | U28: =SUMIF(Calculations!$I$15:$I$1783,$J28,Calculations!X$15:X$1783) -> 1074.706579 | V28: =SUMIF(Calculations!$I$15:$I$1783,$J28,Calculations!Y$15:Y$1783) -> 1015.202125 | W28: =SUMIF(Calculations!$I$15:$I$1783,$J28,Calculations!Z$15:Z$1783) -> 950.05569 | X28: =SUMIF(Calculations!$I$15:$I$1783,$J28,Calculations!AA$15:AA$1783) -> 890.4119556 | Y28: =SUMIF(Calculations!$I$15:$I$1783,$J28,Calculations!AB$15:AB$1783) -> 741.5919521 | Z28: =SUMIF(Calculations!$I$15:$I$1783,$J28,Calculations!AC$15:AC$1783) -> 742.7453476 | AA28: =SUMIF(Calculations!$I$15:$I$1783,$J28,Calculations!AD$15:AD$1783) -> 673.4019651 | AB28: =SUMIF(Calculations!$I$15:$I$1783,$J28,Calculations!AE$15:AE$1783) -> 534.969831 | AC28: =SUMIF(Calculations!$I$15:$I$1783,$J28,Calculations!AF$15:AF$1783) -> 0 | AD28: =SUMIF(Calculations!$I$15:$I$1783,$J28,Calculations!AG$15:AG$1783) -> 0 | AE28: =SUMIF(Calculations!$I$15:$I$1783,$J28,Calculations!AH$15:AH$1783) -> 0 | AF28: =SUMIF(Calculations!$I$15:$I$1783,$J28,Calculations!AI$15:AI$1783) -> 0 | AG28: =SUMIF(Calculations!$I$15:$I$1783,$J28,Calculations!AJ$15:AJ$1783) -> 0 | AH28: =SUMIF(Calculations!$I$15:$I$1783,$J28,Calculations!AK$15:AK$1783) -> 0 | AI28: =SUMIF(Calculations!$I$15:$I$1783,$J28,Calculations!AL$15:AL$1783) -> 0 | AJ28: =SUMIF(Calculations!$I$15:$I$1783,$J28,Calculations!AM$15:AM$1783) -> 0
I29: Cleaning & CIP | J29: 1Cleaning & CIP | L29: 31139.89353 | O29: =SUMIF(Calculations!$I$15:$I$1783,$J29,Calculations!R$15:R$1783) -> 0 | P29: =SUMIF(Calculations!$I$15:$I$1783,$J29,Calculations!S$15:S$1783) -> 0 | Q29: =SUMIF(Calculations!$I$15:$I$1783,$J29,Calculations!T$15:T$1783) -> 1341.020864 | R29: =SUMIF(Calculations!$I$15:$I$1783,$J29,Calculations!U$15:U$1783) -> 1441.38089 | S29: =SUMIF(Calculations!$I$15:$I$1783,$J29,Calculations!V$15:V$1783) -> 2331.751037 | T29: =SUMIF(Calculations!$I$15:$I$1783,$J29,Calculations!W$15:W$1783) -> 3169.175885 | U29: =SUMIF(Calculations!$I$15:$I$1783,$J29,Calculations!X$15:X$1783) -> 3559.163477 | V29: =SUMIF(Calculations!$I$15:$I$1783,$J29,Calculations!Y$15:Y$1783) -> 3365.250373 | W29: =SUMIF(Calculations!$I$15:$I$1783,$J29,Calculations!Z$15:Z$1783) -> 3184.969824 | X29: =SUMIF(Calculations!$I$15:$I$1783,$J29,Calculations!AA$15:AA$1783) -> 3003.316664 | Y29: =SUMIF(Calculations!$I$15:$I$1783,$J29,Calculations!AB$15:AB$1783) -> 2571.233547 | Z29: =SUMIF(Calculations!$I$15:$I$1783,$J29,Calculations!AC$15:AC$1783) -> 2604.75621 | AA29: =SUMIF(Calculations!$I$15:$I$1783,$J29,Calculations!AD$15:AD$1783) -> 2442.698838 | AB29: =SUMIF(Calculations!$I$15:$I$1783,$J29,Calculations!AE$15:AE$1783) -> 2125.17592 | AC29: =SUMIF(Calculations!$I$15:$I$1783,$J29,Calculations!AF$15:AF$1783) -> 0 | AD29: =SUMIF(Calculations!$I$15:$I$1783,$J29,Calculations!AG$15:AG$1783) -> 0 | AE29: =SUMIF(Calculations!$I$15:$I$1783,$J29,Calculations!AH$15:AH$1783) -> 0 | AF29: =SUMIF(Calculations!$I$15:$I$1783,$J29,Calculations!AI$15:AI$1783) -> 0 | AG29: =SUMIF(Calculations!$I$15:$I$1783,$J29,Calculations!AJ$15:AJ$1783) -> 0 | AH29: =SUMIF(Calculations!$I$15:$I$1783,$J29,Calculations!AK$15:AK$1783) -> 0 | AI29: =SUMIF(Calculations!$I$15:$I$1783,$J29,Calculations!AL$15:AL$1783) -> 0 | AJ29: =SUMIF(Calculations!$I$15:$I$1783,$J29,Calculations!AM$15:AM$1783) -> 0
I30: Consumables | J30: 1Consumables | L30: 24183.27517 | O30: =SUMIF(Calculations!$I$15:$I$1783,$J30,Calculations!R$15:R$1783) -> 0 | P30: =SUMIF(Calculations!$I$15:$I$1783,$J30,Calculations!S$15:S$1783) -> 0 | Q30: =SUMIF(Calculations!$I$15:$I$1783,$J30,Calculations!T$15:T$1783) -> 937.4459945 | R30: =SUMIF(Calculations!$I$15:$I$1783,$J30,Calculations!U$15:U$1783) -> 930.6935061 | S30: =SUMIF(Calculations!$I$15:$I$1783,$J30,Calculations!V$15:V$1783) -> 1674.639293 | T30: =SUMIF(Calculations!$I$15:$I$1783,$J30,Calculations!W$15:W$1783) -> 2541.498257 | U30: =SUMIF(Calculations!$I$15:$I$1783,$J30,Calculations!X$15:X$1783) -> 2953.940439 | V30: =SUMIF(Calculations!$I$15:$I$1783,$J30,Calculations!Y$15:Y$1783) -> 2716.260023 | W30: =SUMIF(Calculations!$I$15:$I$1783,$J30,Calculations!Z$15:Z$1783) -> 2633.686054 | X30: =SUMIF(Calculations!$I$15:$I$1783,$J30,Calculations!AA$15:AA$1783) -> 2305.37246 | Y30: =SUMIF(Calculations!$I$15:$I$1783,$J30,Calculations!AB$15:AB$1783) -> 1866.666666 | Z30: =SUMIF(Calculations!$I$15:$I$1783,$J30,Calculations!AC$15:AC$1783) -> 2159.819126 | AA30: =SUMIF(Calculations!$I$15:$I$1783,$J30,Calculations!AD$15:AD$1783) -> 1872.807817 | AB30: =SUMIF(Calculations!$I$15:$I$1783,$J30,Calculations!AE$15:AE$1783) -> 1590.445536 | AC30: =SUMIF(Calculations!$I$15:$I$1783,$J30,Calculations!AF$15:AF$1783) -> 0 | AD30: =SUMIF(Calculations!$I$15:$I$1783,$J30,Calculations!AG$15:AG$1783) -> 0 | AE30: =SUMIF(Calculations!$I$15:$I$1783,$J30,Calculations!AH$15:AH$1783) -> 0 | AF30: =SUMIF(Calculations!$I$15:$I$1783,$J30,Calculations!AI$15:AI$1783) -> 0 | AG30: =SUMIF(Calculations!$I$15:$I$1783,$J30,Calculations!AJ$15:AJ$1783) -> 0 | AH30: =SUMIF(Calculations!$I$15:$I$1783,$J30,Calculations!AK$15:AK$1783) -> 0 | AI30: =SUMIF(Calculations!$I$15:$I$1783,$J30,Calculations!AL$15:AL$1783) -> 0 | AJ30: =SUMIF(Calculations!$I$15:$I$1783,$J30,Calculations!AM$15:AM$1783) -> 0
I31: Effluent | J31: 1Effluent | L31: 24167.2895 | O31: =SUMIF(Calculations!$I$15:$I$1783,$J31,Calculations!R$15:R$1783) -> 0 | P31: =SUMIF(Calculations!$I$15:$I$1783,$J31,Calculations!S$15:S$1783) -> 0 | Q31: =SUMIF(Calculations!$I$15:$I$1783,$J31,Calculations!T$15:T$1783) -> 1454.243959 | R31: =SUMIF(Calculations!$I$15:$I$1783,$J31,Calculations!U$15:U$1783) -> 1518.600815 | S31: =SUMIF(Calculations!$I$15:$I$1783,$J31,Calculations!V$15:V$1783) -> 1918.699184 | T31: =SUMIF(Calculations!$I$15:$I$1783,$J31,Calculations!W$15:W$1783) -> 2285.662962 | U31: =SUMIF(Calculations!$I$15:$I$1783,$J31,Calculations!X$15:X$1783) -> 2488.498383 | V31: =SUMIF(Calculations!$I$15:$I$1783,$J31,Calculations!Y$15:Y$1783) -> 2366.138404 | W31: =SUMIF(Calculations!$I$15:$I$1783,$J31,Calculations!Z$15:Z$1783) -> 2273.633932 | X31: =SUMIF(Calculations!$I$15:$I$1783,$J31,Calculations!AA$15:AA$1783) -> 2168.839397 | Y31: =SUMIF(Calculations!$I$15:$I$1783,$J31,Calculations!AB$15:AB$1783) -> 1937.868608 | Z31: =SUMIF(Calculations!$I$15:$I$1783,$J31,Calculations!AC$15:AC$1783) -> 1968.57269 | AA31: =SUMIF(Calculations!$I$15:$I$1783,$J31,Calculations!AD$15:AD$1783) -> 1925.153045 | AB31: =SUMIF(Calculations!$I$15:$I$1783,$J31,Calculations!AE$15:AE$1783) -> 1861.378117 | AC31: =SUMIF(Calculations!$I$15:$I$1783,$J31,Calculations!AF$15:AF$1783) -> 0 | AD31: =SUMIF(Calculations!$I$15:$I$1783,$J31,Calculations!AG$15:AG$1783) -> 0 | AE31: =SUMIF(Calculations!$I$15:$I$1783,$J31,Calculations!AH$15:AH$1783) -> 0 | AF31: =SUMIF(Calculations!$I$15:$I$1783,$J31,Calculations!AI$15:AI$1783) -> 0 | AG31: =SUMIF(Calculations!$I$15:$I$1783,$J31,Calculations!AJ$15:AJ$1783) -> 0 | AH31: =SUMIF(Calculations!$I$15:$I$1783,$J31,Calculations!AK$15:AK$1783) -> 0 | AI31: =SUMIF(Calculations!$I$15:$I$1783,$J31,Calculations!AL$15:AL$1783) -> 0 | AJ31: =SUMIF(Calculations!$I$15:$I$1783,$J31,Calculations!AM$15:AM$1783) -> 0
I32: Laboratory | J32: 1Laboratory | L32: 29558.57665 | O32: =SUMIF(Calculations!$I$15:$I$1783,$J32,Calculations!R$15:R$1783) -> 0 | P32: =SUMIF(Calculations!$I$15:$I$1783,$J32,Calculations!S$15:S$1783) -> 0 | Q32: =SUMIF(Calculations!$I$15:$I$1783,$J32,Calculations!T$15:T$1783) -> 1716.76215 | R32: =SUMIF(Calculations!$I$15:$I$1783,$J32,Calculations!U$15:U$1783) -> 1788.209903 | S32: =SUMIF(Calculations!$I$15:$I$1783,$J32,Calculations!V$15:V$1783) -> 2330.695285 | T32: =SUMIF(Calculations!$I$15:$I$1783,$J32,Calculations!W$15:W$1783) -> 2819.232012 | U32: =SUMIF(Calculations!$I$15:$I$1783,$J32,Calculations!X$15:X$1783) -> 3085.055915 | V32: =SUMIF(Calculations!$I$15:$I$1783,$J32,Calculations!Y$15:Y$1783) -> 2918.579516 | W32: =SUMIF(Calculations!$I$15:$I$1783,$J32,Calculations!Z$15:Z$1783) -> 2809.647949 | X32: =SUMIF(Calculations!$I$15:$I$1783,$J32,Calculations!AA$15:AA$1783) -> 2675.987975 | Y32: =SUMIF(Calculations!$I$15:$I$1783,$J32,Calculations!AB$15:AB$1783) -> 2382.511234 | Z32: =SUMIF(Calculations!$I$15:$I$1783,$J32,Calculations!AC$15:AC$1783) -> 2421.436243 | AA32: =SUMIF(Calculations!$I$15:$I$1783,$J32,Calculations!AD$15:AD$1783) -> 2353.943839 | AB32: =SUMIF(Calculations!$I$15:$I$1783,$J32,Calculations!AE$15:AE$1783) -> 2256.514635 | AC32: =SUMIF(Calculations!$I$15:$I$1783,$J32,Calculations!AF$15:AF$1783) -> 0 | AD32: =SUMIF(Calculations!$I$15:$I$1783,$J32,Calculations!AG$15:AG$1783) -> 0 | AE32: =SUMIF(Calculations!$I$15:$I$1783,$J32,Calculations!AH$15:AH$1783) -> 0 | AF32: =SUMIF(Calculations!$I$15:$I$1783,$J32,Calculations!AI$15:AI$1783) -> 0 | AG32: =SUMIF(Calculations!$I$15:$I$1783,$J32,Calculations!AJ$15:AJ$1783) -> 0 | AH32: =SUMIF(Calculations!$I$15:$I$1783,$J32,Calculations!AK$15:AK$1783) -> 0 | AI32: =SUMIF(Calculations!$I$15:$I$1783,$J32,Calculations!AL$15:AL$1783) -> 0 | AJ32: =SUMIF(Calculations!$I$15:$I$1783,$J32,Calculations!AM$15:AM$1783) -> 0
I33: Variable operating costs | L33: =SUM(L26:L32) -> 723375.0954 | O33: =SUM(O26:O32) -> 0 | P33: 0 | Q33: 13114.06935 | R33: 16427.48905 | S33: 48608.67822 | T33: 80858.85073 | U33: 93971.06805 | V33: 88387.36423 | W33: 82271.13236 | X33: 76901.52984 | Y33: 62649.2038 | Z33: 63888.24119 | AA33: 56364.29064 | AB33: 39933.17795 | AC33: 0 | AD33: 0 | AE33: 0 | AF33: 0 | AG33: 0 | AH33: 0 | AI33: 0 | AJ33: 0
I34: Wages & ERE | J34: 1Wages & ERE | L34: =SUM(O34:AJ34) -> 186625.1135 | O34: =SUMIF(Calculations!$I$15:$I$1783,$J34,Calculations!R$15:R$1783) -> 0 | P34: =SUMIF(Calculations!$I$15:$I$1783,$J34,Calculations!S$15:S$1783) -> 0 | Q34: =SUMIF(Calculations!$I$15:$I$1783,$J34,Calculations!T$15:T$1783) -> 17803.42512 | R34: =SUMIF(Calculations!$I$15:$I$1783,$J34,Calculations!U$15:U$1783) -> 17813.41579 | S34: =SUMIF(Calculations!$I$15:$I$1783,$J34,Calculations!V$15:V$1783) -> 16347.27975 | T34: =SUMIF(Calculations!$I$15:$I$1783,$J34,Calculations!W$15:W$1783) -> 15007.71359 | U34: =SUMIF(Calculations!$I$15:$I$1783,$J34,Calculations!X$15:X$1783) -> 15268.78247 | V34: =SUMIF(Calculations!$I$15:$I$1783,$J34,Calculations!Y$15:Y$1783) -> 14486.01818 | W34: =SUMIF(Calculations!$I$15:$I$1783,$J34,Calculations!Z$15:Z$1783) -> 14704.66233 | X34: =SUMIF(Calculations!$I$15:$I$1783,$J34,Calculations!AA$15:AA$1783) -> 13945.85497 | Y34: =SUMIF(Calculations!$I$15:$I$1783,$J34,Calculations!AB$15:AB$1783) -> 13524.00836 | Z34: =SUMIF(Calculations!$I$15:$I$1783,$J34,Calculations!AC$15:AC$1783) -> 14618.15264 | AA34: =SUMIF(Calculations!$I$15:$I$1783,$J34,Calculations!AD$15:AD$1783) -> 15303.89984 | AB34: =SUMIF(Calculations!$I$15:$I$1783,$J34,Calculations!AE$15:AE$1783) -> 17801.90048 | AC34: =SUMIF(Calculations!$I$15:$I$1783,$J34,Calculations!AF$15:AF$1783) -> 0 | AD34: =SUMIF(Calculations!$I$15:$I$1783,$J34,Calculations!AG$15:AG$1783) -> 0 | AE34: =SUMIF(Calculations!$I$15:$I$1783,$J34,Calculations!AH$15:AH$1783) -> 0 | AF34: =SUMIF(Calculations!$I$15:$I$1783,$J34,Calculations!AI$15:AI$1783) -> 0 | AG34: =SUMIF(Calculations!$I$15:$I$1783,$J34,Calculations!AJ$15:AJ$1783) -> 0 | AH34: =SUMIF(Calculations!$I$15:$I$1783,$J34,Calculations!AK$15:AK$1783) -> 0 | AI34: =SUMIF(Calculations!$I$15:$I$1783,$J34,Calculations!AL$15:AL$1783) -> 0 | AJ34: =SUMIF(Calculations!$I$15:$I$1783,$J34,Calculations!AM$15:AM$1783) -> 0
I35: Repairs & Maintenance | J35: 1Repairs & Maintenance | L35: =SUM(O35:AJ35) -> 179419.9872 | O35: =SUMIF(Calculations!$I$15:$I$1783,$J35,Calculations!R$15:R$1783) -> 0 | P35: =SUMIF(Calculations!$I$15:$I$1783,$J35,Calculations!S$15:S$1783) -> 0 | Q35: =SUMIF(Calculations!$I$15:$I$1783,$J35,Calculations!T$15:T$1783) -> 17116.07965 | R35: =SUMIF(Calculations!$I$15:$I$1783,$J35,Calculations!U$15:U$1783) -> 17125.6846 | S35: =SUMIF(Calculations!$I$15:$I$1783,$J35,Calculations!V$15:V$1783) -> 15716.15239 | T35: =SUMIF(Calculations!$I$15:$I$1783,$J35,Calculations!W$15:W$1783) -> 14428.30352 | U35: =SUMIF(Calculations!$I$15:$I$1783,$J35,Calculations!X$15:X$1783) -> 14679.29318 | V35: =SUMIF(Calculations!$I$15:$I$1783,$J35,Calculations!Y$15:Y$1783) -> 13926.74945 | W35: =SUMIF(Calculations!$I$15:$I$1783,$J35,Calculations!Z$15:Z$1783) -> 14136.9523 | X35: =SUMIF(Calculations!$I$15:$I$1783,$J35,Calculations!AA$15:AA$1783) -> 13407.44058 | Y35: =SUMIF(Calculations!$I$15:$I$1783,$J35,Calculations!AB$15:AB$1783) -> 13001.88041 | Z35: =SUMIF(Calculations!$I$15:$I$1783,$J35,Calculations!AC$15:AC$1783) -> 14053.78253 | AA35: =SUMIF(Calculations!$I$15:$I$1783,$J35,Calculations!AD$15:AD$1783) -> 14713.05476 | AB35: =SUMIF(Calculations!$I$15:$I$1783,$J35,Calculations!AE$15:AE$1783) -> 17114.61388 | AC35: =SUMIF(Calculations!$I$15:$I$1783,$J35,Calculations!AF$15:AF$1783) -> 0 | AD35: =SUMIF(Calculations!$I$15:$I$1783,$J35,Calculations!AG$15:AG$1783) -> 0 | AE35: =SUMIF(Calculations!$I$15:$I$1783,$J35,Calculations!AH$15:AH$1783) -> 0 | AF35: =SUMIF(Calculations!$I$15:$I$1783,$J35,Calculations!AI$15:AI$1783) -> 0 | AG35: =SUMIF(Calculations!$I$15:$I$1783,$J35,Calculations!AJ$15:AJ$1783) -> 0 | AH35: =SUMIF(Calculations!$I$15:$I$1783,$J35,Calculations!AK$15:AK$1783) -> 0 | AI35: =SUMIF(Calculations!$I$15:$I$1783,$J35,Calculations!AL$15:AL$1783) -> 0 | AJ35: =SUMIF(Calculations!$I$15:$I$1783,$J35,Calculations!AM$15:AM$1783) -> 0
I36: Energy - Fixed | J36: =$J$3&I36 -> 1Energy - Fixed | L36: =SUM(O36:AJ36) -> 61942.15779 | O36: =SUMIF(Calculations!$I$15:$I$1783,$J36,Calculations!R$15:R$1783) -> 0 | P36: =SUMIF(Calculations!$I$15:$I$1783,$J36,Calculations!S$15:S$1783) -> 0 | Q36: =SUMIF(Calculations!$I$15:$I$1783,$J36,Calculations!T$15:T$1783) -> 5909.079154 | R36: =SUMIF(Calculations!$I$15:$I$1783,$J36,Calculations!U$15:U$1783) -> 5912.395125 | S36: =SUMIF(Calculations!$I$15:$I$1783,$J36,Calculations!V$15:V$1783) -> 5425.774497 | T36: =SUMIF(Calculations!$I$15:$I$1783,$J36,Calculations!W$15:W$1783) -> 4981.163285 | U36: =SUMIF(Calculations!$I$15:$I$1783,$J36,Calculations!X$15:X$1783) -> 5067.813839 | V36: =SUMIF(Calculations!$I$15:$I$1783,$J36,Calculations!Y$15:Y$1783) -> 4808.008992 | W36: =SUMIF(Calculations!$I$15:$I$1783,$J36,Calculations!Z$15:Z$1783) -> 4880.578486 | X36: =SUMIF(Calculations!$I$15:$I$1783,$J36,Calculations!AA$15:AA$1783) -> 4628.72511 | Y36: =SUMIF(Calculations!$I$15:$I$1783,$J36,Calculations!AB$15:AB$1783) -> 4488.711322 | Z36: =SUMIF(Calculations!$I$15:$I$1783,$J36,Calculations!AC$15:AC$1783) -> 4851.865328 | AA36: =SUMIF(Calculations!$I$15:$I$1783,$J36,Calculations!AD$15:AD$1783) -> 5079.469536 | AB36: =SUMIF(Calculations!$I$15:$I$1783,$J36,Calculations!AE$15:AE$1783) -> 5908.573118 | AC36: =SUMIF(Calculations!$I$15:$I$1783,$J36,Calculations!AF$15:AF$1783) -> 0 | AD36: =SUMIF(Calculations!$I$15:$I$1783,$J36,Calculations!AG$15:AG$1783) -> 0 | AE36: =SUMIF(Calculations!$I$15:$I$1783,$J36,Calculations!AH$15:AH$1783) -> 0 | AF36: =SUMIF(Calculations!$I$15:$I$1783,$J36,Calculations!AI$15:AI$1783) -> 0 | AG36: =SUMIF(Calculations!$I$15:$I$1783,$J36,Calculations!AJ$15:AJ$1783) -> 0 | AH36: =SUMIF(Calculations!$I$15:$I$1783,$J36,Calculations!AK$15:AK$1783) -> 0 | AI36: =SUMIF(Calculations!$I$15:$I$1783,$J36,Calculations!AL$15:AL$1783) -> 0 | AJ36: =SUMIF(Calculations!$I$15:$I$1783,$J36,Calculations!AM$15:AM$1783) -> 0
I37: Site Overheads | J37: 1Site Overheads | L37: =SUM(O37:AJ37) -> 46476.94654 | O37: =SUMIF(Calculations!$I$15:$I$1783,$J37,Calculations!R$15:R$1783) -> 0 | P37: =SUMIF(Calculations!$I$15:$I$1783,$J37,Calculations!S$15:S$1783) -> 0 | Q37: =SUMIF(Calculations!$I$15:$I$1783,$J37,Calculations!T$15:T$1783) -> 4433.748608 | R37: =SUMIF(Calculations!$I$15:$I$1783,$J37,Calculations!U$15:U$1783) -> 4436.236675 | S37: =SUMIF(Calculations!$I$15:$I$1783,$J37,Calculations!V$15:V$1783) -> 4071.111505 | T37: =SUMIF(Calculations!$I$15:$I$1783,$J37,Calculations!W$15:W$1783) -> 3737.507183 | U37: =SUMIF(Calculations!$I$15:$I$1783,$J37,Calculations!X$15:X$1783) -> 3802.523536 | V37: =SUMIF(Calculations!$I$15:$I$1783,$J37,Calculations!Y$15:Y$1783) -> 3607.584638 | W37: =SUMIF(Calculations!$I$15:$I$1783,$J37,Calculations!Z$15:Z$1783) -> 3662.035574 | X37: =SUMIF(Calculations!$I$15:$I$1783,$J37,Calculations!AA$15:AA$1783) -> 3473.062889 | Y37: =SUMIF(Calculations!$I$15:$I$1783,$J37,Calculations!AB$15:AB$1783) -> 3368.006598 | Z37: =SUMIF(Calculations!$I$15:$I$1783,$J37,Calculations!AC$15:AC$1783) -> 3640.491282 | AA37: =SUMIF(Calculations!$I$15:$I$1783,$J37,Calculations!AD$15:AD$1783) -> 3811.269133 | AB37: =SUMIF(Calculations!$I$15:$I$1783,$J37,Calculations!AE$15:AE$1783) -> 4433.368915 | AC37: =SUMIF(Calculations!$I$15:$I$1783,$J37,Calculations!AF$15:AF$1783) -> 0 | AD37: =SUMIF(Calculations!$I$15:$I$1783,$J37,Calculations!AG$15:AG$1783) -> 0 | AE37: =SUMIF(Calculations!$I$15:$I$1783,$J37,Calculations!AH$15:AH$1783) -> 0 | AF37: =SUMIF(Calculations!$I$15:$I$1783,$J37,Calculations!AI$15:AI$1783) -> 0 | AG37: =SUMIF(Calculations!$I$15:$I$1783,$J37,Calculations!AJ$15:AJ$1783) -> 0 | AH37: =SUMIF(Calculations!$I$15:$I$1783,$J37,Calculations!AK$15:AK$1783) -> 0 | AI37: =SUMIF(Calculations!$I$15:$I$1783,$J37,Calculations!AL$15:AL$1783) -> 0 | AJ37: =SUMIF(Calculations!$I$15:$I$1783,$J37,Calculations!AM$15:AM$1783) -> 0
I38: Fixed operating costs | L38: =SUM(L34:L37) -> 474464.2051 | O38: =SUM(O34:O37) -> 0 | P38: =SUM(P34:P37) -> 0 | Q38: =SUM(Q34:Q37) -> 45262.33253 | R38: =SUM(R34:R37) -> 45287.73219 | S38: 41560.31814 | T38: 38154.68758 | U38: 38818.41302 | V38: 36828.36126 | W38: 37384.22868 | X38: 35455.08355 | Y38: 34382.60669 | Z38: 37164.29179 | AA38: 38907.69326 | AB38: 45258.45639 | AC38: 0 | AD38: 0 | AE38: 0 | AF38: 0 | AG38: 0 | AH38: 0 | AI38: 0 | AJ38: 0
I39: Operating Costs | L39: =L33+L38 -> 1197839.3 | O39: =SUM(O33,O38) -> 0 | P39: =SUM(P33,P38) -> 0 | Q39: =SUM(Q33,Q38) -> 58376.40188 | R39: =SUM(R33,R38) -> 61715.22124 | S39: 90168.99636 | T39: 119013.5383 | U39: 132789.4811 | V39: 125215.7255 | W39: 119655.361 | X39: 112356.6134 | Y39: 97031.81049 | Z39: 101052.533 | AA39: 95271.9839 | AB39: 85191.63434 | AC39: 0 | AD39: 0 | AE39: 0 | AF39: 0 | AG39: 0 | AH39: 0 | AI39: 0 | AJ39: 0
I40: Variable supply chain costs | J40: 1Variable supply chain costs | L40: =SUM(O40:AJ40) -> 261527.1988 | O40: =SUMIF(Calculations!$I$15:$I$1783,$J40,Calculations!R$15:R$1783) -> 0 | P40: =SUMIF(Calculations!$I$15:$I$1783,$J40,Calculations!S$15:S$1783) -> 0 | Q40: =SUMIF(Calculations!$I$15:$I$1783,$J40,Calculations!T$15:T$1783) -> 208.3666196 | R40: =SUMIF(Calculations!$I$15:$I$1783,$J40,Calculations!U$15:U$1783) -> 365.2464476 | S40: =SUMIF(Calculations!$I$15:$I$1783,$J40,Calculations!V$15:V$1783) -> 2993.22007 | T40: =SUMIF(Calculations!$I$15:$I$1783,$J40,Calculations!W$15:W$1783) -> 10350.73294 | U40: =SUMIF(Calculations!$I$15:$I$1783,$J40,Calculations!X$15:X$1783) -> 24362.96346 | V40: =SUMIF(Calculations!$I$15:$I$1783,$J40,Calculations!Y$15:Y$1783) -> 29341.01931 | W40: =SUMIF(Calculations!$I$15:$I$1783,$J40,Calculations!Z$15:Z$1783) -> 31501.76737 | X40: =SUMIF(Calculations!$I$15:$I$1783,$J40,Calculations!AA$15:AA$1783) -> 27054.47103 | Y40: =SUMIF(Calculations!$I$15:$I$1783,$J40,Calculations!AB$15:AB$1783) -> 27365.0116 | Z40: =SUMIF(Calculations!$I$15:$I$1783,$J40,Calculations!AC$15:AC$1783) -> 24342.9212 | AA40: =SUMIF(Calculations!$I$15:$I$1783,$J40,Calculations!AD$15:AD$1783) -> 19124.32526 | AB40: =SUMIF(Calculations!$I$15:$I$1783,$J40,Calculations!AE$15:AE$1783) -> 19650.71872 | AC40: =SUMIF(Calculations!$I$15:$I$1783,$J40,Calculations!AF$15:AF$1783) -> 16947.42431 | AD40: =SUMIF(Calculations!$I$15:$I$1783,$J40,Calculations!AG$15:AG$1783) -> 16177.34542 | AE40: =SUMIF(Calculations!$I$15:$I$1783,$J40,Calculations!AH$15:AH$1783) -> 6958.504612 | AF40: =SUMIF(Calculations!$I$15:$I$1783,$J40,Calculations!AI$15:AI$1783) -> 4151.290799 | AG40: =SUMIF(Calculations!$I$15:$I$1783,$J40,Calculations!AJ$15:AJ$1783) -> 631.8696333 | AH40: =SUMIF(Calculations!$I$15:$I$1783,$J40,Calculations!AK$15:AK$1783) -> 0 | AI40: =SUMIF(Calculations!$I$15:$I$1783,$J40,Calculations!AL$15:AL$1783) -> 0 | AJ40: =SUMIF(Calculations!$I$15:$I$1783,$J40,Calculations!AM$15:AM$1783) -> 0
I41: Fixed supply chain costs | J41: 1Fixed supply chain costs | L41: =SUM(O41:AJ41) -> 37295.9002 | O41: =SUMIF(Calculations!$I$15:$I$1783,$J41,Calculations!R$15:R$1783) -> 0 | P41: =SUMIF(Calculations!$I$15:$I$1783,$J41,Calculations!S$15:S$1783) -> 0 | Q41: =SUMIF(Calculations!$I$15:$I$1783,$J41,Calculations!T$15:T$1783) -> 2870.051354 | R41: =SUMIF(Calculations!$I$15:$I$1783,$J41,Calculations!U$15:U$1783) -> 2267.653531 | S41: =SUMIF(Calculations!$I$15:$I$1783,$J41,Calculations!V$15:V$1783) -> 2788.879492 | T41: =SUMIF(Calculations!$I$15:$I$1783,$J41,Calculations!W$15:W$1783) -> 3125.16575 | U41: =SUMIF(Calculations!$I$15:$I$1783,$J41,Calculations!X$15:X$1783) -> 3234.916334 | V41: =SUMIF(Calculations!$I$15:$I$1783,$J41,Calculations!Y$15:Y$1783) -> 3387.80977 | W41: =SUMIF(Calculations!$I$15:$I$1783,$J41,Calculations!Z$15:Z$1783) -> 3197.772985 | X41: =SUMIF(Calculations!$I$15:$I$1783,$J41,Calculations!AA$15:AA$1783) -> 3602.164965 | Y41: =SUMIF(Calculations!$I$15:$I$1783,$J41,Calculations!AB$15:AB$1783) -> 3111.355093 | Z41: =SUMIF(Calculations!$I$15:$I$1783,$J41,Calculations!AC$15:AC$1783) -> 3506.959298 | AA41: =SUMIF(Calculations!$I$15:$I$1783,$J41,Calculations!AD$15:AD$1783) -> 3042.610655 | AB41: =SUMIF(Calculations!$I$15:$I$1783,$J41,Calculations!AE$15:AE$1783) -> 3160.560972 | AC41: =SUMIF(Calculations!$I$15:$I$1783,$J41,Calculations!AF$15:AF$1783) -> 0 | AD41: =SUMIF(Calculations!$I$15:$I$1783,$J41,Calculations!AG$15:AG$1783) -> 0 | AE41: =SUMIF(Calculations!$I$15:$I$1783,$J41,Calculations!AH$15:AH$1783) -> 0 | AF41: =SUMIF(Calculations!$I$15:$I$1783,$J41,Calculations!AI$15:AI$1783) -> 0 | AG41: =SUMIF(Calculations!$I$15:$I$1783,$J41,Calculations!AJ$15:AJ$1783) -> 0 | AH41: =SUMIF(Calculations!$I$15:$I$1783,$J41,Calculations!AK$15:AK$1783) -> 0 | AI41: =SUMIF(Calculations!$I$15:$I$1783,$J41,Calculations!AL$15:AL$1783) -> 0 | AJ41: =SUMIF(Calculations!$I$15:$I$1783,$J41,Calculations!AM$15:AM$1783) -> 0
I42: Supply Chain | L42: =SUM(L40:L41) -> 298823.099 | O42: =SUM(O40:O41) -> 0 | P42: =SUM(P40:P41) -> 0 | Q42: =SUM(Q40:Q41) -> 3078.417974 | R42: 2632.899978 | S42: 5782.099562 | T42: 13475.89869 | U42: 27597.87979 | V42: 32728.82908 | W42: 34699.54035 | X42: 30656.636 | Y42: 30476.36669 | Z42: 27849.8805 | AA42: 22166.93592 | AB42: 22811.27969 | AC42: 16947.42431 | AD42: 16177.34542 | AE42: 6958.504612 | AF42: 4151.290799 | AG42: 631.8696333 | AH42: 0 | AI42: 0 | AJ42: 0
I43: Administration | J43: 1Administration | L43: =SUM(O43:AJ43) -> 438141.9231 | O43: =SUMIF(Calculations!$I$15:$I$1783,$J43,Calculations!R$15:R$1783) -> 0 | P43: =SUMIF(Calculations!$I$15:$I$1783,$J43,Calculations!S$15:S$1783) -> 0 | Q43: =SUMIF(Calculations!$I$15:$I$1783,$J43,Calculations!T$15:T$1783) -> 30394.23802 | R43: =SUMIF(Calculations!$I$15:$I$1783,$J43,Calculations!U$15:U$1783) -> 70764.08767 | S43: =SUMIF(Calculations!$I$15:$I$1783,$J43,Calculations!V$15:V$1783) -> 33128.35839 | T43: =SUMIF(Calculations!$I$15:$I$1783,$J43,Calculations!W$15:W$1783) -> 33801.4837 | U43: =SUMIF(Calculations!$I$15:$I$1783,$J43,Calculations!X$15:X$1783) -> 37639.70405 | V43: =SUMIF(Calculations!$I$15:$I$1783,$J43,Calculations!Y$15:Y$1783) -> 31997.82876 | W43: =SUMIF(Calculations!$I$15:$I$1783,$J43,Calculations!Z$15:Z$1783) -> 35836.99865 | X43: =SUMIF(Calculations!$I$15:$I$1783,$J43,Calculations!AA$15:AA$1783) -> 31781.35362 | Y43: =SUMIF(Calculations!$I$15:$I$1783,$J43,Calculations!AB$15:AB$1783) -> 29341.46723 | Z43: =SUMIF(Calculations!$I$15:$I$1783,$J43,Calculations!AC$15:AC$1783) -> 34489.97439 | AA43: =SUMIF(Calculations!$I$15:$I$1783,$J43,Calculations!AD$15:AD$1783) -> 33629.86894 | AB43: =SUMIF(Calculations!$I$15:$I$1783,$J43,Calculations!AE$15:AE$1783) -> 35336.55967 | AC43: =SUMIF(Calculations!$I$15:$I$1783,$J43,Calculations!AF$15:AF$1783) -> 0 | AD43: =SUMIF(Calculations!$I$15:$I$1783,$J43,Calculations!AG$15:AG$1783) -> 0 | AE43: =SUMIF(Calculations!$I$15:$I$1783,$J43,Calculations!AH$15:AH$1783) -> 0 | AF43: =SUMIF(Calculations!$I$15:$I$1783,$J43,Calculations!AI$15:AI$1783) -> 0 | AG43: =SUMIF(Calculations!$I$15:$I$1783,$J43,Calculations!AJ$15:AJ$1783) -> 0 | AH43: =SUMIF(Calculations!$I$15:$I$1783,$J43,Calculations!AK$15:AK$1783) -> 0 | AI43: =SUMIF(Calculations!$I$15:$I$1783,$J43,Calculations!AL$15:AL$1783) -> 0 | AJ43: =SUMIF(Calculations!$I$15:$I$1783,$J43,Calculations!AM$15:AM$1783) -> 0
I44: Miscellaneous costs | J44: =$J$3&I44 -> 1Miscellaneous costs | L44: =SUM(O44:AJ44) -> 45993.53566 | O44: =SUMIF(Calculations!$I$15:$I$1783,$J44,Calculations!R$15:R$1783) -> 0 | P44: =SUMIF(Calculations!$I$15:$I$1783,$J44,Calculations!S$15:S$1783) -> 0 | Q44: =SUMIF(Calculations!$I$15:$I$1783,$J44,Calculations!T$15:T$1783) -> 0 | R44: =SUMIF(Calculations!$I$15:$I$1783,$J44,Calculations!U$15:U$1783) -> 0 | S44: =SUMIF(Calculations!$I$15:$I$1783,$J44,Calculations!V$15:V$1783) -> 3832.794638 | T44: =SUMIF(Calculations!$I$15:$I$1783,$J44,Calculations!W$15:W$1783) -> 3832.794638 | U44: =SUMIF(Calculations!$I$15:$I$1783,$J44,Calculations!X$15:X$1783) -> 3832.794638 | V44: =SUMIF(Calculations!$I$15:$I$1783,$J44,Calculations!Y$15:Y$1783) -> 3832.794638 | W44: =SUMIF(Calculations!$I$15:$I$1783,$J44,Calculations!Z$15:Z$1783) -> 3832.794638 | X44: =SUMIF(Calculations!$I$15:$I$1783,$J44,Calculations!AA$15:AA$1783) -> 3832.794638 | Y44: =SUMIF(Calculations!$I$15:$I$1783,$J44,Calculations!AB$15:AB$1783) -> 3832.794638 | Z44: =SUMIF(Calculations!$I$15:$I$1783,$J44,Calculations!AC$15:AC$1783) -> 3832.794638 | AA44: =SUMIF(Calculations!$I$15:$I$1783,$J44,Calculations!AD$15:AD$1783) -> 3832.794638 | AB44: =SUMIF(Calculations!$I$15:$I$1783,$J44,Calculations!AE$15:AE$1783) -> 3832.794638 | AC44: =SUMIF(Calculations!$I$15:$I$1783,$J44,Calculations!AF$15:AF$1783) -> 3832.794638 | AD44: =SUMIF(Calculations!$I$15:$I$1783,$J44,Calculations!AG$15:AG$1783) -> 3832.794638 | AE44: =SUMIF(Calculations!$I$15:$I$1783,$J44,Calculations!AH$15:AH$1783) -> 0 | AF44: =SUMIF(Calculations!$I$15:$I$1783,$J44,Calculations!AI$15:AI$1783) -> 0 | AG44: =SUMIF(Calculations!$I$15:$I$1783,$J44,Calculations!AJ$15:AJ$1783) -> 0 | AH44: =SUMIF(Calculations!$I$15:$I$1783,$J44,Calculations!AK$15:AK$1783) -> 0 | AI44: =SUMIF(Calculations!$I$15:$I$1783,$J44,Calculations!AL$15:AL$1783) -> 0 | AJ44: =SUMIF(Calculations!$I$15:$I$1783,$J44,Calculations!AM$15:AM$1783) -> 0
I45: Depreciation Expense | J45: =$J$3&I45 -> 1Depreciation Expense | L45: =SUM(O45:AJ45) -> 290587.3446 | O45: =SUMIF(Calculations!$I$15:$I$1783,$J45,Calculations!R$15:R$1783) -> 0 | P45: =SUMIF(Calculations!$I$15:$I$1783,$J45,Calculations!S$15:S$1783) -> 0 | Q45: =SUMIF(Calculations!$I$15:$I$1783,$J45,Calculations!T$15:T$1783) -> 0 | R45: =SUMIF(Calculations!$I$15:$I$1783,$J45,Calculations!U$15:U$1783) -> 0 | S45: =SUMIF(Calculations!$I$15:$I$1783,$J45,Calculations!V$15:V$1783) -> 0 | T45: =SUMIF(Calculations!$I$15:$I$1783,$J45,Calculations!W$15:W$1783) -> 0 | U45: =SUMIF(Calculations!$I$15:$I$1783,$J45,Calculations!X$15:X$1783) -> 0 | V45: =SUMIF(Calculations!$I$15:$I$1783,$J45,Calculations!Y$15:Y$1783) -> 0 | W45: =SUMIF(Calculations!$I$15:$I$1783,$J45,Calculations!Z$15:Z$1783) -> 0 | X45: =SUMIF(Calculations!$I$15:$I$1783,$J45,Calculations!AA$15:AA$1783) -> 0 | Y45: =SUMIF(Calculations!$I$15:$I$1783,$J45,Calculations!AB$15:AB$1783) -> 0 | Z45: =SUMIF(Calculations!$I$15:$I$1783,$J45,Calculations!AC$15:AC$1783) -> 0 | AA45: =SUMIF(Calculations!$I$15:$I$1783,$J45,Calculations!AD$15:AD$1783) -> 0 | AB45: =SUMIF(Calculations!$I$15:$I$1783,$J45,Calculations!AE$15:AE$1783) -> 290587.3446 | AC45: =SUMIF(Calculations!$I$15:$I$1783,$J45,Calculations!AF$15:AF$1783) -> 0 | AD45: =SUMIF(Calculations!$I$15:$I$1783,$J45,Calculations!AG$15:AG$1783) -> 0 | AE45: =SUMIF(Calculations!$I$15:$I$1783,$J45,Calculations!AH$15:AH$1783) -> 0 | AF45: =SUMIF(Calculations!$I$15:$I$1783,$J45,Calculations!AI$15:AI$1783) -> 0 | AG45: =SUMIF(Calculations!$I$15:$I$1783,$J45,Calculations!AJ$15:AJ$1783) -> 0 | AH45: =SUMIF(Calculations!$I$15:$I$1783,$J45,Calculations!AK$15:AK$1783) -> 0 | AI45: =SUMIF(Calculations!$I$15:$I$1783,$J45,Calculations!AL$15:AL$1783) -> 0 | AJ45: =SUMIF(Calculations!$I$15:$I$1783,$J45,Calculations!AM$15:AM$1783) -> 0
I46: Inventory Movement | J46: =$J$3&I46 -> 1Inventory Movement | L46: =SUM(O46:AJ46) -> 9.822542779e-10 | O46: =SUMIF(Calculations!$I$15:$I$1783,$J46,Calculations!R$15:R$1783) -> 0 | P46: =SUMIF(Calculations!$I$15:$I$1783,$J46,Calculations!S$15:S$1783) -> 0 | Q46: =SUMIF(Calculations!$I$15:$I$1783,$J46,Calculations!T$15:T$1783) -> -296195.5704 | R46: =SUMIF(Calculations!$I$15:$I$1783,$J46,Calculations!U$15:U$1783) -> -402501.8248 | S46: =SUMIF(Calculations!$I$15:$I$1783,$J46,Calculations!V$15:V$1783) -> -1097524.145 | T46: =SUMIF(Calculations!$I$15:$I$1783,$J46,Calculations!W$15:W$1783) -> -1315871.62 | U46: =SUMIF(Calculations!$I$15:$I$1783,$J46,Calculations!X$15:X$1783) -> -785028.1153 | V46: =SUMIF(Calculations!$I$15:$I$1783,$J46,Calculations!Y$15:Y$1783) -> -259082.8112 | W46: =SUMIF(Calculations!$I$15:$I$1783,$J46,Calculations!Z$15:Z$1783) -> 13137.87 | X46: =SUMIF(Calculations!$I$15:$I$1783,$J46,Calculations!AA$15:AA$1783) -> -157983.0665 | Y46: =SUMIF(Calculations!$I$15:$I$1783,$J46,Calculations!AB$15:AB$1783) -> 253357.2942 | Z46: =SUMIF(Calculations!$I$15:$I$1783,$J46,Calculations!AC$15:AC$1783) -> -6044.722687 | AA46: =SUMIF(Calculations!$I$15:$I$1783,$J46,Calculations!AD$15:AD$1783) -> -175120.1011 | AB46: =SUMIF(Calculations!$I$15:$I$1783,$J46,Calculations!AE$15:AE$1783) -> 404881.4792 | AC46: =SUMIF(Calculations!$I$15:$I$1783,$J46,Calculations!AF$15:AF$1783) -> 1389777.143 | AD46: =SUMIF(Calculations!$I$15:$I$1783,$J46,Calculations!AG$15:AG$1783) -> 1367022.422 | AE46: =SUMIF(Calculations!$I$15:$I$1783,$J46,Calculations!AH$15:AH$1783) -> 627185.9617 | AF46: =SUMIF(Calculations!$I$15:$I$1783,$J46,Calculations!AI$15:AI$1783) -> 381335.3213 | AG46: =SUMIF(Calculations!$I$15:$I$1783,$J46,Calculations!AJ$15:AJ$1783) -> 58654.4851 | AH46: =SUMIF(Calculations!$I$15:$I$1783,$J46,Calculations!AK$15:AK$1783) -> 0 | AI46: =SUMIF(Calculations!$I$15:$I$1783,$J46,Calculations!AL$15:AL$1783) -> 0 | AJ46: =SUMIF(Calculations!$I$15:$I$1783,$J46,Calculations!AM$15:AM$1783) -> 0
I47: Non-Milk Expenses | L47: =SUM(L22:L24,L39,L42:L46) -> 3506361.27 | O47: =SUM(O22:O24,O39,O42:O46) -> 0 | P47: 0 | Q47: -179710.8949 | R47: -237827.8126 | S47: -891437.4521 | T47: -1032348.991 | U47: -440287.6532 | V47: 76432.94979 | W47: 337753.3835 | X47: 146943.9658 | Y47: 519162.0454 | Z47: 281133.3842 | AA47: 95386.75441 | AB47: 932966.1681 | AC47: 1420564.909 | AD47: 1396976.167 | AE47: 635197.1807 | AF47: 386101.2845 | AG47: 59355.88091 | AH47: 0 | AI47: 0 | AJ47: 0
I49: Aggregate Commodity Milk Payments Amount | L49: =Calculations!N912 -> 15349353.74
I51: Notional Winter Milk premium | J51: =$J$3&I51 -> 1Notional Winter Milk premium | L51: =SUM(O51:AJ51) -> 21724.83108 | O51: =SUMIF(Calculations!$I$15:$I$1783,$J51,Calculations!R$15:R$1783) -> 0 | P51: =SUMIF(Calculations!$I$15:$I$1783,$J51,Calculations!S$15:S$1783) -> 0 | Q51: =SUMIF(Calculations!$I$15:$I$1783,$J51,Calculations!T$15:T$1783) -> 8673.43758 | R51: =SUMIF(Calculations!$I$15:$I$1783,$J51,Calculations!U$15:U$1783) -> 4748.86182 | S51: =SUMIF(Calculations!$I$15:$I$1783,$J51,Calculations!V$15:V$1783) -> 0 | T51: =SUMIF(Calculations!$I$15:$I$1783,$J51,Calculations!W$15:W$1783) -> 0 | U51: =SUMIF(Calculations!$I$15:$I$1783,$J51,Calculations!X$15:X$1783) -> 0 | V51: =SUMIF(Calculations!$I$15:$I$1783,$J51,Calculations!Y$15:Y$1783) -> 0 | W51: =SUMIF(Calculations!$I$15:$I$1783,$J51,Calculations!Z$15:Z$1783) -> 0 | X51: =SUMIF(Calculations!$I$15:$I$1783,$J51,Calculations!AA$15:AA$1783) -> 0 | Y51: =SUMIF(Calculations!$I$15:$I$1783,$J51,Calculations!AB$15:AB$1783) -> 0 | Z51: =SUMIF(Calculations!$I$15:$I$1783,$J51,Calculations!AC$15:AC$1783) -> 0 | AA51: =SUMIF(Calculations!$I$15:$I$1783,$J51,Calculations!AD$15:AD$1783) -> 0 | AB51: =SUMIF(Calculations!$I$15:$I$1783,$J51,Calculations!AE$15:AE$1783) -> 8302.53168 | AC51: =SUMIF(Calculations!$I$15:$I$1783,$J51,Calculations!AF$15:AF$1783) -> 0 | AD51: =SUMIF(Calculations!$I$15:$I$1783,$J51,Calculations!AG$15:AG$1783) -> 0 | AE51: =SUMIF(Calculations!$I$15:$I$1783,$J51,Calculations!AH$15:AH$1783) -> 0 | AF51: =SUMIF(Calculations!$I$15:$I$1783,$J51,Calculations!AI$15:AI$1783) -> 0 | AG51: =SUMIF(Calculations!$I$15:$I$1783,$J51,Calculations!AJ$15:AJ$1783) -> 0 | AH51: =SUMIF(Calculations!$I$15:$I$1783,$J51,Calculations!AK$15:AK$1783) -> 0 | AI51: =SUMIF(Calculations!$I$15:$I$1783,$J51,Calculations!AL$15:AL$1783) -> 0 | AJ51: =SUMIF(Calculations!$I$15:$I$1783,$J51,Calculations!AM$15:AM$1783) -> 0
I52: Gisborne | L52: =Calculations!N1288 -> 0
I53: Other contract milk | L53: =Calculations!N1289 -> 0
I54: MyMilk | L54: =Calculations!N1290 -> 0
I55: Additional Commodity Milk Payments | L55: =SUM(L51:L54) -> 21724.83108
I56: Demerits | L56: =Calculations!N1292 -> -8946.151552
I57: Net volume charge | L57: =Calculations!N1293 -> 431.7661
I58: DDE | L58: =Calculations!N1294 -> 0
I59: Standard Supply Adjustments | L59: =SUM(L56:L58) -> -8514.385453
I60: Standard Cash Milk Price (for monthly inventory milk price and advance rate schedule) | L60: =L49-L51 -> 15327628.91 | O60: =Calculations!R915 -> 0 | P60: =Calculations!S915 -> 0 | Q60: =Calculations!T915 -> 146830.7369 | R60: =Calculations!U915 -> 208975.7165 | S60: =Calculations!V915 -> 995215.1734 | T60: =Calculations!W915 -> 1769612.164 | U60: =Calculations!X915 -> 2082414.346 | V60: =Calculations!Y915 -> 1947395.028 | W60: =Calculations!Z915 -> 1812871.215 | X60: =Calculations!AA915 -> 1683264.991 | Y60: =Calculations!AB915 -> 1358276.003 | Z60: =Calculations!AC915 -> 1370031.724 | AA60: =Calculations!AD915 -> 1170391.556 | AB60: =Calculations!AE915 -> 782350.2567 | AC60: =Calculations!AF915 -> 0 | AD60: =Calculations!AG915 -> 0 | AE60: =Calculations!AH915 -> 0 | AF60: =Calculations!AI915 -> 0 | AG60: =Calculations!AJ915 -> 0 | AH60: =Calculations!AK915 -> 0 | AI60: =Calculations!AL915 -> 0 | AJ60: =Calculations!AM915 -> 0
I61: Aggregate Farmgate Milk Price | L61: =L49-L55-L59 -> 15336143.3
I63: Check | L63: =L60-SUM(O60:AJ60) -> 0
I65: EBIT | J65: =$J$3&I65 -> 1EBIT | L65: =L19-L47-L60-L51 -> 549968.3409 | O65: =O19-O47-O51-O60 -> 0 | P65: =P19-P47-P51-P60 -> 0 | Q65: 24206.72044 | R65: 24103.23431 | S65: -40930.07839 | T65: -254380.9921 | U65: -73880.87932 | V65: -34072.42786 | W65: 58469.08614 | X65: 143665.5196 | Y65: 187613.7282 | Z65: 192901.0416 | AA65: 166649.1069 | AB65: -127191.8819 | AC65: 123823.5908 | AD65: 118372.4769 | AE65: 11678.29316 | AF65: 17489.63333 | AG65: 11452.16912 | AH65: 0 | AI65: 0 | AJ65: 0
I67: Tax Expense | J67: =$J$3&I67 -> 1Tax Expense | L67: =SUM(O67:AJ67) -> 120737.5433 | O67: =SUMIF(Calculations!$I$15:$I$1783,$J67,Calculations!R$15:R$1783) -> 0 | P67: =SUMIF(Calculations!$I$15:$I$1783,$J67,Calculations!S$15:S$1783) -> 0 | Q67: =SUMIF(Calculations!$I$15:$I$1783,$J67,Calculations!T$15:T$1783) -> 10061.46194 | R67: =SUMIF(Calculations!$I$15:$I$1783,$J67,Calculations!U$15:U$1783) -> 10061.46194 | S67: =SUMIF(Calculations!$I$15:$I$1783,$J67,Calculations!V$15:V$1783) -> 10061.46194 | T67: =SUMIF(Calculations!$I$15:$I$1783,$J67,Calculations!W$15:W$1783) -> 10061.46194 | U67: =SUMIF(Calculations!$I$15:$I$1783,$J67,Calculations!X$15:X$1783) -> 10061.46194 | V67: =SUMIF(Calculations!$I$15:$I$1783,$J67,Calculations!Y$15:Y$1783) -> 10061.46194 | W67: =SUMIF(Calculations!$I$15:$I$1783,$J67,Calculations!Z$15:Z$1783) -> 10061.46194 | X67: =SUMIF(Calculations!$I$15:$I$1783,$J67,Calculations!AA$15:AA$1783) -> 10061.46194 | Y67: =SUMIF(Calculations!$I$15:$I$1783,$J67,Calculations!AB$15:AB$1783) -> 10061.46194 | Z67: =SUMIF(Calculations!$I$15:$I$1783,$J67,Calculations!AC$15:AC$1783) -> 10061.46194 | AA67: =SUMIF(Calculations!$I$15:$I$1783,$J67,Calculations!AD$15:AD$1783) -> 10061.46194 | AB67: =SUMIF(Calculations!$I$15:$I$1783,$J67,Calculations!AE$15:AE$1783) -> 10061.46194 | AC67: =SUMIF(Calculations!$I$15:$I$1783,$J67,Calculations!AF$15:AF$1783) -> 0 | AD67: =SUMIF(Calculations!$I$15:$I$1783,$J67,Calculations!AG$15:AG$1783) -> 0 | AE67: =SUMIF(Calculations!$I$15:$I$1783,$J67,Calculations!AH$15:AH$1783) -> 0 | AF67: =SUMIF(Calculations!$I$15:$I$1783,$J67,Calculations!AI$15:AI$1783) -> 0 | AG67: =SUMIF(Calculations!$I$15:$I$1783,$J67,Calculations!AJ$15:AJ$1783) -> 0 | AH67: =SUMIF(Calculations!$I$15:$I$1783,$J67,Calculations!AK$15:AK$1783) -> 0 | AI67: =SUMIF(Calculations!$I$15:$I$1783,$J67,Calculations!AL$15:AL$1783) -> 0 | AJ67: =SUMIF(Calculations!$I$15:$I$1783,$J67,Calculations!AM$15:AM$1783) -> 0
I69: NOPLAT | L69: =L65-L67 -> 429230.7976 | O69: =O65-O67 -> 0 | P69: =P65-P67 -> 0 | Q69: =Q65-Q67 -> 14145.2585 | R69: 14041.77237 | S69: -50991.54033 | T69: -264442.4541 | U69: -83942.34126 | V69: -44133.8898 | W69: 48407.6242 | X69: 133604.0577 | Y69: 177552.2663 | Z69: 182839.5796 | AA69: 156587.6449 | AB69: -137253.3439 | AC69: 123823.5908 | AD69: 118372.4769 | AE69: 11678.29316 | AF69: 17489.63333 | AG69: 11452.16912 | AH69: 0 | AI69: 0 | AJ69: 0
I71: Capital Charge | J71: =$J$3&I71 -> 1Capital Charge | L71: =L81 -> 429230.7976 | O71: =O81 -> 0 | P71: =P81 -> 31.33953933 | Q71: =Q81 -> 92.68390051 | R71: 502.1748356 | S71: 1764.820568 | T71: 2978.008675 | U71: 5230.417034 | V71: 8622.216937 | W71: 9564.085549 | X71: 9291.863949 | Y71: 11373.63161 | Z71: 11511.30628 | AA71: 9020.819542 | AB71: 335573.2486 | AC71: 7633.701539 | AD71: 6518.336537 | AE71: 2139.705031 | AF71: -1705.484225 | AG71: 41.71030621 | AH71: 242.0171217 | AI71: -1.155425693e-13 | AJ71: -1.155425693e-13
I73: Capital Base
I75: Capital Charge Rate | J75: =$J$3&I75 -> 1Capital Charge Rate | O75: =Global!$O$36 -> 0.004153777443 | P75: =Global!$O$36 -> 0.004153777443 | Q75: =Global!$O$36 -> 0.004153777443 | R75: =Q75 -> 0.004153777443 | S75: 0.004153777443 | T75: 0.004153777443 | U75: 0.004153777443 | V75: 0.004153777443 | W75: 0.004153777443 | X75: 0.004153777443 | Y75: 0.004153777443 | Z75: 0.004153777443 | AA75: 0.004153777443 | AB75: 0.004153777443 | AC75: 0.004153777443 | AD75: 0.004153777443 | AE75: 0.004153777443 | AF75: 0.004153777443 | AG75: 0.004153777443 | AH75: 0.004153777443 | AI75: 0.004153777443 | AJ75: 0.004153777443
I76: Capital Charge on Fixed Assets | L76: =Calculations!N1653 -> 327422.7823 | O76: =Calculations!R1653 -> 0 | P76: =Calculations!S1653 -> 0 | Q76: =Calculations!T1653 -> 0 | R76: =Calculations!U1653 -> 0 | S76: =Calculations!V1653 -> 0 | T76: =Calculations!W1653 -> 0 | U76: =Calculations!X1653 -> 0 | V76: =Calculations!Y1653 -> 0 | W76: =Calculations!Z1653 -> 0 | X76: =Calculations!AA1653 -> 0 | Y76: =Calculations!AB1653 -> 0 | Z76: =Calculations!AC1653 -> 0 | AA76: =Calculations!AD1653 -> 0 | AB76: =Calculations!AE1653 -> 327422.7823 | AC76: =Calculations!AF1653 -> 0 | AD76: =Calculations!AG1653 -> 0
I78: 12 Month Average | L78: =SUM(O78:AJ78)/12 -> 1865848.261 | O78: =Calculations!R1666 -> 0 | P78: =Calculations!S1666 -> 7544.828716 | Q78: =Calculations!T1666 -> 22313.15996 | R78: =Calculations!U1666 -> 120895.9417 | S78: =Calculations!V1666 -> 424871.239 | T78: =Calculations!W1666 -> 716939.8736 | U78: =Calculations!X1666 -> 1259195.3 | V78: =Calculations!Y1666 -> 2075753.228 | W78: =Calculations!Z1666 -> 2302503.127 | X78: =Calculations!AA1666 -> 2236967.213 | Y78: =Calculations!AB1666 -> 2738141.792 | Z78: =Calculations!AC1666 -> 2771286.243 | AA78: =Calculations!AD1666 -> 2171714.702 | AB78: =Calculations!AE1666 -> 1962181.75 | AC78: =Calculations!AF1666 -> 1837773.363 | AD78: =Calculations!AG1666 -> 1569255.124 | AE78: =Calculations!AH1666 -> 515122.6951 | AF78: =Calculations!AI1666 -> -410586.3273 | AG78: =Calculations!AJ1666 -> 10041.53612 | AH78: =Calculations!AK1666 -> 58264.34494 | AI78: =Calculations!AL1666 -> -2.781626385e-11 | AJ78: =Calculations!AM1666 -> -2.781626385e-11
I79: Capital Charge on Net Working Capital | L79: =SUM(O79:AJ79) -> 93003.82103 | O79: =O75*O78 -> 0 | P79: =P75*P78 -> 31.33953933 | Q79: =Q75*Q78 -> 92.68390051 | R79: 502.1748356 | S79: 1764.820568 | T79: 2978.008675 | U79: 5230.417034 | V79: 8622.216937 | W79: 9564.085549 | X79: 9291.863949 | Y79: 11373.63161 | Z79: 11511.30628 | AA79: 9020.819542 | AB79: 8150.466293 | AC79: 7633.701539 | AD79: 6518.336537 | AE79: 2139.705031 | AF79: -1705.484225 | AG79: 41.71030621 | AH79: 242.0171217 | AI79: -1.155425693e-13 | AJ79: -1.155425693e-13
I80: Time Value of Money Adjustment | L80: =L69-L76-L79 -> 8804.19424
I81: Total Capital Charge | L81: =L79+L76+L80 -> 429230.7976 | O81: =O79+O76 -> 0 | P81: =P79+P76 -> 31.33953933 | Q81: =Q79+Q76 -> 92.68390051 | R81: 502.1748356 | S81: 1764.820568 | T81: 2978.008675 | U81: 5230.417034 | V81: 8622.216937 | W81: 9564.085549 | X81: 9291.863949 | Y81: 11373.63161 | Z81: 11511.30628 | AA81: 9020.819542 | AB81: 335573.2486 | AC81: 7633.701539 | AD81: 6518.336537 | AE81: 2139.705031 | AF81: -1705.484225 | AG81: 41.71030621 | AH81: 242.0171217 | AI81: -1.155425693e-13 | AJ81: -1.155425693e-13
I83: Per KGMS
I84: Revenue
I85: Sales | J85: =$J$3&I85 -> 1Sales | L85: =L17/L$11 -> 12.86897333
I86: Downgrade expense (excl rework) | J86: =$J$3&I86 -> 1Downgrade expense (excl rework) | L86: =L18/L$11 -> -0.009270442936
I87: Net Sales | L87: =SUM(L85:L86) -> 12.85970288
I89: Non-Milk Costs
I90: Commission | J90: =$J$3&I90 -> 1Commission | L90: =L22/L$11 -> 0.08229202777
I91: Collection Costs | J91: =$J$3&I91 -> 1Collection Costs | L91: =L23/L$11 -> 0.3041395214
I92: Lactose | L92: =L24/L$11 -> 0.4319588676
I93: Operating Costs
I94: Packaging | J94: =$J$3&I94 -> 1Packaging | L94: =L26/L$11 -> 0.1503801382
I95: Energy - Variable | J95: 1Energy - Variable | L95: 0.2509299859
I96: Water | J96: 1Water | L96: 0.005789717133
I97: Cleaning & CIP | J97: 1Cleaning & CIP | L97: 0.02063569581
I98: Consumables | J98: 1Consumables | L98: 0.0160257038
I99: Effluent | J99: 1Effluent | L99: 0.01601511046
I100: Laboratory | J100: 1Laboratory | L100: 0.01958779325
I101: Variable operating costs | L101: 0.4793641445
I102: Wages & ERE | J102: =$J$3&I102 -> 1Wages & ERE | L102: 0.1236721978
I103: Repairs & Maintenance | J103: =$J$3&I103 -> 1Repairs & Maintenance | L103: 0.1188975253
I104: Energy - Fixed | J104: =$J$3&I104 -> 1Energy - Fixed | L104: 0.04104765241
I105: Site Overheads | J105: =$J$3&I105 -> 1Site Overheads | L105: 0.03079921034
I106: Fixed operating costs | L106: 0.3144165859
I107: Operating Costs | J107: =$J$3&I107 -> 1Operating Costs | L107: 0.7937807304
I108: Variable supply chain costs | J108: 1Variable supply chain costs | L108: 0.173308098
I109: Fixed supply chain costs | J109: 1Fixed supply chain costs | L109: 0.02471514074
I110: Supply Chain | J110: 1Supply Chain | L110: 0.1980232387
I111: Administration | J111: 1Administration | L111: 0.2903466396
I112: Miscellaneous costs | J112: 1Miscellaneous costs | L112: 0.030478865
I113: Depreciation Expense | J113: 1Depreciation Expense | L113: 0.1925655925
I114: Capital Charge | J114: 1Capital Charge | L114: =L140 -> 0.2844414404
I115: Tax Expense | J115: 1Tax Expense | L115: =L67/L$11 -> 0.08001001074
I116: Total Expenses | L116: =SUM(L90:L92,L107,L110:L115) -> 2.688036934
I118: Commodity Milk Payments Amount | L118: =L49/$L$11 -> 10.17166595
I120: Winter Milk premium | L120: =L51/$L$11 -> 0.01439654908
I121: Gisborne | L121: 0
I122: Other contract milk | L122: 0
I123: MyMilk | L123: 0
I124: Additional Commodity Milk Payments | L124: =SUM(L120:L123) -> 0.01439654908
I125: Demerits | L125: -0.005928410189
I126: Net volume charge | L126: 0.0002861215274
I127: DDE | L127: 0
I128: Standard Supply Adjustments | L128: =SUM(L125:L127) -> -0.005642288661
I130: Standard Cash Milk Price (for monthly inventory milk price and advance rate schedule) | L130: =Calculations!$N$1713 -> 10.1572694
I131: Farmgate Milk Price | L131: =L118-L124-L128 -> 10.16291169
I132: Checks
I133: Commodity Milk Payments Amount less Winter Milk premium | L133: =(L118-L120)-L130 -> 0
I134: Net sales less Non-milk expenses less Winter Milk premium | L134: =L130-(L87-L116-L120) -> 0
I136: Capital Base
I137: Capital Charge on Fixed Assets | L137: =L76/L$11 -> 0.2169755953
I138: Capital Charge on Net Working Capital | L138: =L79/L$11 -> 0.06163150679
I139: Time Value of Money Adjustment | L139: =L80/L$11 -> 0.005834338322
I140: Total Capital Charge | L140: =L138+L137+L139 -> 0.2844414404
I142: Cash Flows
I144: Cash From Sales | L144: =SUM(O144:AJ144) -> 19405683.35 | O144: =Calculations!R1352 -> 0 | P144: =Calculations!S1352 -> 0 | Q144: =Calculations!T1352 -> 0 | R144: =Calculations!U1352 -> 0 | S144: =Calculations!V1352 -> 18982.2007 | T144: =Calculations!W1352 -> 141027.8343 | U144: =Calculations!X1352 -> 710635.1373 | V144: =Calculations!Y1352 -> 1596301.971 | W144: =Calculations!Z1352 -> 2108769.371 | X144: =Calculations!AA1352 -> 2146743.639 | Y144: =Calculations!AB1352 -> 1828859.54 | Z144: =Calculations!AC1352 -> 2183049.337 | AA144: =Calculations!AD1352 -> 1714206.392 | AB144: =Calculations!AE1352 -> 1491775.176 | AC144: =Calculations!AF1352 -> 1551567.686 | AD144: =Calculations!AG1352 -> 1580796.428 | AE144: =Calculations!AH1352 -> 1335396.971 | AF144: =Calculations!AI1352 -> 589326.267 | AG144: =Calculations!AJ1352 -> 349573.7948 | AH144: =Calculations!AK1352 -> 58671.60703 | AI144: =Calculations!AL1352 -> 0 | AJ144: =Calculations!AM1352 -> 0
I146: Trade Creditors | L146: =SUM(O146:AJ146) -> -3215773.925 | O146: =Calculations!R1720 -> -7544.828716 | P146: =Calculations!S1720 -> -14768.33124 | Q146: =Calculations!T1720 -> -84437.52324 | R146: =Calculations!U1720 -> -194525.7115 | S146: =Calculations!V1720 -> -233849.4809 | T146: =Calculations!W1720 -> -259741.7287 | U146: =Calculations!X1720 -> -318430.9871 | V146: =Calculations!Y1720 -> -329616.0206 | W146: =Calculations!Z1720 -> -332821.9223 | X146: =Calculations!AA1720 -> -323411.1517 | Y146: =Calculations!AB1720 -> -275829.7947 | Z146: =Calculations!AC1720 -> -263979.7731 | AA146: =Calculations!AD1720 -> -201589.7048 | AB146: =Calculations!AE1720 -> -194357.5443 | AC146: =Calculations!AF1720 -> -118964.4397 | AD146: =Calculations!AG1720 -> -31033.90729 | AE146: =Calculations!AH1720 -> -20752.04062 | AF146: =Calculations!AI1720 -> -6558.060821 | AG146: =Calculations!AJ1720 -> -3153.711687 | AH146: =Calculations!AK1720 -> -407.2620866 | AI146: =Calculations!AL1720 -> 0 | AJ146: =Calculations!AM1720 -> 0
I147: Suppliers | L147: =SUM(O147:AJ147) -> -15349353.74 | O147: =Calculations!R1721 -> 0 | P147: =Calculations!S1721 -> 0 | Q147: =Calculations!T1721 -> 0 | R147: =Calculations!U1721 -> -95407.81338 | S147: =Calculations!V1721 -> -128192.8948 | T147: =Calculations!W1721 -> -647738.1384 | U147: =Calculations!X1721 -> -1292704.42 | V147: =Calculations!Y1721 -> -1537569.738 | W147: =Calculations!Z1721 -> -1662003.911 | X147: =Calculations!AA1721 -> -2150657.161 | Y147: =Calculations!AB1721 -> -1408621.93 | Z147: =Calculations!AC1721 -> -1136658.444 | AA147: =Calculations!AD1721 -> -1146496.091 | AB147: =Calculations!AE1721 -> -979429.3955 | AC147: =Calculations!AF1721 -> -1040261.417 | AD147: =Calculations!AG1721 -> -377257.6149 | AE147: =Calculations!AH1721 -> -377257.6149 | AF147: =Calculations!AI1721 -> -985906.4362 | AG147: =Calculations!AJ1721 -> -383190.7228 | AH147: =Calculations!AK1721 -> 0 | AI147: =Calculations!AL1721 -> 0 | AJ147: =Calculations!AM1721 -> 0
I148: Tax | L148: =SUM(O148:AJ148) -> -120737.5433 | O148: =Calculations!R1722 -> 0 | P148: =Calculations!S1722 -> 0 | Q148: =Calculations!T1722 -> 0 | R148: =Calculations!U1722 -> 0 | S148: =Calculations!V1722 -> 0 | T148: =Calculations!W1722 -> -40245.84776 | U148: =Calculations!X1722 -> 0 | V148: =Calculations!Y1722 -> 0 | W148: =Calculations!Z1722 -> 0 | X148: =Calculations!AA1722 -> -40245.84776 | Y148: =Calculations!AB1722 -> 0 | Z148: =Calculations!AC1722 -> 0 | AA148: =Calculations!AD1722 -> 0 | AB148: =Calculations!AE1722 -> -40245.84776 | AC148: =Calculations!AF1722 -> 0 | AD148: =Calculations!AG1722 -> 0 | AE148: =Calculations!AH1722 -> 0 | AF148: =Calculations!AI1722 -> 0 | AG148: =Calculations!AJ1722 -> 0 | AH148: =Calculations!AK1722 -> 0 | AI148: =Calculations!AL1722 -> 0 | AJ148: =Calculations!AM1722 -> 0
I150: Operating Cash Flow | L150: =SUM(O150:AJ150) -> 719818.1421 | O150: =SUM(O144,O146:O148) -> -7544.828716 | P150: =SUM(P144,P146:P148) -> -14768.33124 | Q150: =SUM(Q144,Q146:Q148) -> -84437.52324 | R150: -289933.5249 | S150: -343060.175 | T150: -806697.8807 | U150: -900500.2694 | V150: -270883.7879 | W150: 113943.5378 | X150: -367570.5218 | Y150: 144407.8158 | Z150: 782411.1204 | AA150: 366120.5967 | AB150: 277742.3883 | AC150: 392341.8293 | AD150: 1172504.906 | AE150: 937387.3155 | AF150: -403138.2301 | AG150: -36770.63971 | AH150: 58264.34494 | AI150: 0 | AJ150: 0
I152: WACC | L152: =Global!O35 -> 0.051 | O152: =O75 -> 0.004153777443 | P152: 0.004153777443 | Q152: 0.004153777443 | R152: 0.004153777443 | S152: 0.004153777443 | T152: 0.004153777443 | U152: 0.004153777443 | V152: 0.004153777443 | W152: 0.004153777443 | X152: 0.004153777443 | Y152: 0.004153777443 | Z152: 0.004153777443 | AA152: 0.004153777443 | AB152: 0.004153777443 | AC152: 0.004153777443 | AD152: 0.004153777443 | AE152: 0.004153777443 | AF152: 0.004153777443 | AG152: 0.004153777443 | AH152: 0.004153777443 | AI152: 0.004153777443 | AJ152: 0.004153777443
I154: Discount Factor | O154: =P154*(1+O152) -> 1.004153777 | P154: =Q154*(1+P152) -> 1 | Q154: =1/(1+Q152) -> 0.9958634051 | R154: =Q154/(1+R152) -> 0.9917439215 | S154: =R154/(1+S152) -> 0.9876414786 | T154: 0.9835560059 | U154: 0.9794874331 | V154: 0.9754356903 | W154: 0.971400708 | X154: 0.9673824167 | Y154: 0.9633807475 | Z154: 0.9593956315 | AA154: 0.9554270004 | AB154: 0.9514747859 | AC154: 0.9475389201 | AD154: 0.9436193354 | AE154: 0.9397159644 | AF154: 0.9358287401 | AG154: 0.9319575957 | AH154: 0.9281024646 | AI154: 0.9242632806 | AJ154: 0.9204399778
I155: Discounted Cash Flows | L155: =SUM(O155:AJ155) -> 588021.0532 | O155: =O154*O150 -> -7576.168255 | P155: =P154*P150 -> -14768.33124 | Q155: =Q154*Q150 -> -84088.23941 | R155: =R154*R150 -> -287539.811 | S155: =S154*S150 -> -338820.4585 | T155: -793432.5455 | U155: -882028.6974 | V155: -264229.7146 | W155: 110684.8333 | X155: -355581.2597 | Y155: 139119.7095 | Z155: 750641.811 | AA155: 349801.5035 | AB155: 264264.8794 | AC155: 371759.1532 | AD155: 1106398.3 | AE155: 880877.8253 | AF155: -377268.3419 | AG155: -34268.67698 | AH155: 54075.28214 | AI155: 0 | AJ155: 0
I157: Present Value of required return
I158: Capital charge on fixed assets (discounted) | L158: =SUMPRODUCT(Q$154:AD$154,Q76:AD76) -> 311534.5217
I159: Depreciation (discounted) | L159: =SUMPRODUCT(Q$154:AD$154,Q45:AD45) -> 276486.5314
I160: Net | L160: =SUM(L158:L159) -> 588021.0532
I162: Excess / (Deficit) Return | L162: =L155-L160 -> 4.190951586e-09
I163: cents / kgms | L163: =L162/L12 -> 2.777289767e-15
I165: Check consistency of financials / cash flows
I166: NOPLAT | O166: =O69 -> 0 | P166: 0 | Q166: 14145.2585 | R166: 14041.77237 | S166: -50991.54033 | T166: -264442.4541 | U166: -83942.34126 | V166: -44133.8898 | W166: 48407.6242 | X166: 133604.0577 | Y166: 177552.2663 | Z166: 182839.5796 | AA166: 156587.6449 | AB166: -137253.3439 | AC166: 123823.5908 | AD166: 118372.4769 | AE166: 11678.29316 | AF166: 17489.63333 | AG166: 11452.16912 | AH166: 0 | AI166: 0 | AJ166: 0
I167: + depreciation | O167: =O45 -> 0 | P167: 0 | Q167: 0 | R167: 0 | S167: 0 | T167: 0 | U167: 0 | V167: 0 | W167: 0 | X167: 0 | Y167: 0 | Z167: 0 | AA167: 0 | AB167: 290587.3446 | AC167: 0 | AD167: 0 | AE167: 0 | AF167: 0 | AG167: 0 | AH167: 0 | AI167: 0 | AJ167: 0
I168: + change in working capital | O168: =-(P78-O78) -> -7544.828716 | P168: -14768.33124 | Q168: -98582.78174 | R168: -303975.2973 | S168: -292068.6347 | T168: -542255.4266 | U168: -816557.9282 | V168: -226749.8981 | W168: 65535.91357 | X168: -501174.5795 | Y168: -33144.45053 | Z168: 599571.5408 | AA168: 209532.9518 | AB168: 124408.3876 | AC168: 268518.2384 | AD168: 1054132.429 | AE168: 925709.0224 | AF168: -420627.8634 | AG168: -48222.80883 | AH168: 58264.34494 | AI168: 0 | AJ168: -2.781626385e-11
I169: Operating Cash Flow | O169: =SUM(O166:O168) -> -7544.828716 | P169: =SUM(P166:P168) -> -14768.33124 | Q169: =SUM(Q166:Q168) -> -84437.52324 | R169: -289933.5249 | S169: -343060.175 | T169: -806697.8807 | U169: -900500.2694 | V169: -270883.7879 | W169: 113943.5378 | X169: -367570.5218 | Y169: 144407.8158 | Z169: 782411.1204 | AA169: 366120.5967 | AB169: 277742.3883 | AC169: 392341.8293 | AD169: 1172504.906 | AE169: 937387.3155 | AF169: -403138.2301 | AG169: -36770.63971 | AH169: 58264.34494 | AI169: 0 | AJ169: -2.781626385e-11
I170: check | L170: =IF(ROUND(SUM(O170:AJ170),3)=0,"Okay","Error") -> Okay | O170: =O150-O169 -> 0 | P170: =P150-P169 -> 0 | Q170: =Q150-Q169 -> 0 | R170: =R150-R169 -> 0 | S170: 0 | T170: 0 | U170: 0 | V170: -1.513399184e-09 | W170: 5.966285244e-10 | X170: 0 | Y170: 3.783497959e-10 | Z170: 0 | AA170: -1.746229827e-09 | AB170: 0 | AC170: 0 | AD170: 0 | AE170: 0 | AF170: 0 | AG170: 0 | AH170: 0 | AI170: 0 | AJ170: 2.781626385e-11

Sheet MP Statement Tables
A2: Appendix 4: Milk Supplied
D4: Milk Supplied (million kgMS)
B5: JUN TO AUG | D5: =SUM('Data Input'!T39:V39)/1000 -> 133.0103174
B6: SEP TO NOV | D6: =SUM('Data Input'!W39:Y39)/1000 -> 570.9398779
B7: DEC TO FEB | D7: =SUM('Data Input'!Z39:AB39)/1000 -> 477.9249243
B8: MAR TO MAY | D8: =SUM('Data Input'!AC39:AE39)/1000 -> 327.1325596
B9: Total | D9: =SUM(D5:D8) -> 1509.007679
A11: Appendix 4: Production Volumes (PRODUCTION (000 MT) OF FINISHED PRODUCT)
D13: WMP | E13: SMP | F13: Butter | G13: AMF | H13: BMP | I13: Total
B14: JUN TO AUG | D14: =SUM(Calculations!T541:V541)/1000 -> 122.6920485 | E14: =SUM(Calculations!T539:V539)/1000 -> 82.04603132 | F14: =SUM(Calculations!T537:V537)/1000 -> 20.80090023 | G14: =SUM(Calculations!T538:V538)/1000 -> 23.5658119 | H14: =SUM(Calculations!T540:V540)/1000 -> 6.652829969 | I14: =SUM(D14:H14) -> 255.7576219
B15: SEP TO NOV | D15: =SUM(Calculations!W541:Y541)/1000 -> 710.6623793 | E15: =SUM(Calculations!W539:Y539)/1000 -> 223.9133392 | F15: =SUM(Calculations!W537:Y537)/1000 -> 98.16972009 | G15: =SUM(Calculations!W538:Y538)/1000 -> 49.30440032 | H15: =SUM(Calculations!W540:Y540)/1000 -> 14.76035396 | I15: =SUM(D15:H15) -> 1096.810193
B16: DEC TO FEB | D16: =SUM(Calculations!Z541:AB541)/1000 -> 560.3537621 | E16: =SUM(Calculations!Z539:AB539)/1000 -> 204.3916208 | F16: =SUM(Calculations!Z537:AB537)/1000 -> 90.92570314 | G16: =SUM(Calculations!Z538:AB538)/1000 -> 44.81104758 | H16: =SUM(Calculations!Z540:AB540)/1000 -> 15.01123997 | I16: =SUM(D16:H16) -> 915.4933736
B17: MAR TO MAY | D17: =SUM(Calculations!AC541:AE541)/1000 -> 390.4344969 | E17: =SUM(Calculations!AC539:AE539)/1000 -> 127.1903568 | F17: =SUM(Calculations!AC537:AE537)/1000 -> 51.96297551 | G17: =SUM(Calculations!AC538:AE538)/1000 -> 38.77042 | H17: =SUM(Calculations!AC540:AE540)/1000 -> 13.606611 | I17: =SUM(D17:H17) -> 621.9648602
B18: Total | D18: =SUM(D14:D17) -> 1784.142687 | E18: 637.541348 | F18: 261.859299 | G18: 156.4516798 | H18: 50.0310349 | I18: 2890.026048
A20: Appendix 5: Sales Volumes (SHIPMENTS (000 MT) OF FINISHED PRODUCT)
D22: WMP | E22: SMP | F22: Butter | G22: AMF | H22: BMP | I22: Total
B23: AUG TO OCT | D23: =SUM(Calculations!V710:X710)/1000 -> 233.9944928 | E23: =SUM(Calculations!V708:X708)/1000 -> 93.83540174 | F23: =SUM(Calculations!V706:X706)/1000 -> 22.01594546 | G23: =SUM(Calculations!V707:X707)/1000 -> 13.39149444 | H23: =SUM(Calculations!V709:X709)/1000 -> 6.174177138 | I23: =SUM(D23:H23) -> 369.4115116
B24: NOV TO JAN | D24: =SUM(Calculations!Y710:AA710)/1000 -> 599.0475673 | E24: =SUM(Calculations!Y708:AA708)/1000 -> 222.7447269 | F24: =SUM(Calculations!Y706:AA706)/1000 -> 100.1259218 | G24: =SUM(Calculations!Y707:AA707)/1000 -> 40.61964625 | H24: =SUM(Calculations!Y709:AA709)/1000 -> 13.54377236 | I24: =SUM(D24:H24) -> 976.0816346
B25: FEB TO APR | D25: =SUM(Calculations!AB710:AD710)/1000 -> 474.8630721 | E25: =SUM(Calculations!AB708:AD708)/1000 -> 179.3364987 | F25: =SUM(Calculations!AB706:AD706)/1000 -> 65.72702868 | G25: =SUM(Calculations!AB707:AD707)/1000 -> 39.54680986 | H25: =SUM(Calculations!AB709:AD709)/1000 -> 14.15660633 | I25: =SUM(D25:H25) -> 773.6300157
B26: MAY TO JUL | D26: =SUM(Calculations!AE710:AG710)/1000 -> 397.8739381 | E26: =SUM(Calculations!AE708:AG708)/1000 -> 119.0038378 | F26: =SUM(Calculations!AE706:AG706)/1000 -> 50.85869256 | G26: =SUM(Calculations!AE707:AG707)/1000 -> 50.96484793 | H26: =SUM(Calculations!AE709:AG709)/1000 -> 11.59467657 | I26: =SUM(D26:H26) -> 630.295993
B27: AUG TO OCT | D27: =SUM(Calculations!AH710:AJ710)/1000 -> 78.36361645 | E27: =SUM(Calculations!AH708:AJ708)/1000 -> 22.62088287 | F27: =SUM(Calculations!AH706:AJ706)/1000 -> 23.1317105 | G27: =SUM(Calculations!AH707:AJ707)/1000 -> 11.92888133 | H27: =SUM(Calculations!AH709:AJ709)/1000 -> 4.5618025 | I27: =SUM(D27:H27) -> 140.6068936
B28: Total | D28: =SUM(D23:D27) -> 1784.142687 | E28: 637.541348 | F28: 261.859299 | G28: 156.4516798 | H28: 50.0310349 | I28: 2890.026048
A30: Appendix 8: Average USD Prices
D32: WMP | E32: SMP | F32: Butter | G32: AMF | H32: BMP
B33: AUG TO OCT | D33: =(SUM(Calculations!V727:X727)-SUM(Calculations!V828:X828))/D23 -> 3346.180535 | E33: =(SUM(Calculations!V725:X725)-SUM(Calculations!V826:X826))/E23 -> 2689.633805 | F33: =(SUM(Calculations!V723:X723)-SUM(Calculations!V824:X824))/F23 -> 6681.729462 | G33: =(SUM(Calculations!V724:X724)-SUM(Calculations!V825:X825))/G23 -> 7335.220407 | H33: =(SUM(Calculations!V726:X726)-SUM(Calculations!V827:X827))/H23 -> 3058.450201
B34: NOV TO JAN | D34: =(SUM(Calculations!Y727:AA727)-SUM(Calculations!Y828:AA828))/D24 -> 3505.363823 | E34: =(SUM(Calculations!Y725:AA725)-SUM(Calculations!Y826:AA826))/E24 -> 2784.989104 | F34: =(SUM(Calculations!Y723:AA723)-SUM(Calculations!Y824:AA824))/F24 -> 6582.500604 | G34: =(SUM(Calculations!Y724:AA724)-SUM(Calculations!Y825:AA825))/G24 -> 7308.818587 | H34: =(SUM(Calculations!Y726:AA726)-SUM(Calculations!Y827:AA827))/H24 -> 3235.467395
B35: FEB TO APR | D35: =(SUM(Calculations!AB727:AD727)-SUM(Calculations!AB828:AD828))/D25 -> 3893.856224 | E35: =(SUM(Calculations!AB725:AD725)-SUM(Calculations!AB826:AD826))/E25 -> 2900.375342 | F35: =(SUM(Calculations!AB723:AD723)-SUM(Calculations!AB824:AD824))/F25 -> 6858.18136 | G35: =(SUM(Calculations!AB724:AD724)-SUM(Calculations!AB825:AD825))/G25 -> 7132.638566 | H35: =(SUM(Calculations!AB726:AD726)-SUM(Calculations!AB827:AD827))/H25 -> 3502.99284
B36: MAY TO JUL | D36: =(SUM(Calculations!AE727:AG727)-SUM(Calculations!AE828:AG828))/D26 -> 4136.43825 | E36: =(SUM(Calculations!AE725:AG725)-SUM(Calculations!AE826:AG826))/E26 -> 2967.308722 | F36: =(SUM(Calculations!AE723:AG723)-SUM(Calculations!AE824:AG824))/F26 -> 7618.154393 | G36: =(SUM(Calculations!AE724:AG724)-SUM(Calculations!AE825:AG825))/G26 -> 6962.846792 | H36: =(SUM(Calculations!AE726:AG726)-SUM(Calculations!AE827:AG827))/H26 -> 3495.00653
B37: AUG TO OCT | D37: =(SUM(Calculations!AH727:AJ727)-SUM(Calculations!AH828:AJ828))/D27 -> 4100.403471 | E37: =(SUM(Calculations!AH725:AJ725)-SUM(Calculations!AH826:AJ826))/E27 -> 2926.735456 | F37: =(SUM(Calculations!AH723:AJ723)-SUM(Calculations!AH824:AJ824))/F27 -> 7686.420493 | G37: =(SUM(Calculations!AH724:AJ724)-SUM(Calculations!AH825:AJ825))/G27 -> 7332.198144 | H37: =(SUM(Calculations!AH726:AJ726)-SUM(Calculations!AH827:AJ827))/H27 -> 3185.668792
B38: Total Weighted Average Price | D38: =SUMPRODUCT(D33:D37,D23:D27)/D28 -> 3754.755428 | E38: =SUMPRODUCT(E33:E37,E23:E27)/E28 -> 2842.473098 | F38: =SUMPRODUCT(F33:F37,F23:F27)/F28 -> 6958.70205 | G38: =SUMPRODUCT(G33:G37,G23:G27)/G28 -> 7155.625563 | H38: =SUMPRODUCT(H33:H37,H23:H27)/H28 -> 3344.92781
A40: Appendix 9: Average NZD/USD Conversion
D42: Fonterra’s average conversion rate
B43: AUG TO OCT | D43: =SUM(Calculations!V728:X728)/SUM(Calculations!V736:X736) -> 0.6147601211
B44: NOV TO JAN | D44: =SUM(Calculations!Y728:AA728)/SUM(Calculations!Y736:AA736) -> 0.6026514579
B45: FEB TO APR | D45: =SUM(Calculations!AB728:AD728)/SUM(Calculations!AB736:AD736) -> 0.5900208678
B46: MAY TO JUL | D46: =SUM(Calculations!AE728:AG728)/SUM(Calculations!AE736:AG736) -> 0.5974306924
B47: AUG TO OCT | D47: =SUM(Calculations!AH728:AJ728)/SUM(Calculations!AH736:AJ736) -> 0.5951487402
B48: Revenue-weighted annual average rate | D48: =Calculations!N728/Calculations!N736 -> 0.5988077291

Sheet LookupTables (hidden)
E8: Year to date month | I8: Selected
E9: =Global!K29 -> 2024-06-30 | F9: YTD_Months | I9: 14
E10: =EOMONTH(E9,1) -> 2024-07-31 | I10: =CHOOSE(YTD_Months_No,$E$9,$E$10,$E$11,$E$12,$E$13,$E$14,$E$15,$E$16,$E$17,$E$18,$E$19,$E$20,$E$21,$E$22,$E$23,$E$24,$E$25,$E$26) -> 2025-07-31
E11: =EOMONTH(E10,1) -> 2024-08-31
E12: 2024-09-30
E13: 2024-10-31
E14: 2024-11-30
E15: 2024-12-31
E16: 2025-01-31
E17: 2025-02-28
E18: 2025-03-31
E19: 2025-04-30
E20: 2025-05-31
E21: 2025-06-30
E22: 2025-07-31
E23: 2025-08-31
E24: 2025-09-30
E25: 2025-10-31
E26: 2025-11-30
E28: Standardisation Override | I28: Selected
E29: 1 | I29: 3
E30: 0
E31: MPM Calculated

Sheet CR&T (hidden)
A1: Sent to: Commodity Risk and Trading Team
A2: Sent by: Divya Gudalore (MP Analyst)
A3: Date and Time: 30/01/2015 12.58pm
